Workbook

Sheet Calculation
G3: With Holiday Adjustment? | H3: YES | I3: standard: YES
D5: IMSM Margin Calculator Example V 3.2.2
D6: valid from: 2025-03-06
A10: Date | B10: Exposure | C10: T0Exposure | D10: ="Exposure > " & minIMSM & " EUR" -> Exposure > 0 EUR | E10: ="T0Exposure > " & minIMSM & " EUR" -> T0Exposure > 0 EUR | F10: Mean | G10: Standard Deviation (SD) | H10: Number of datapoints | I10: Mean + alpha * SD | J10: beta * Max (T-30 to T) | K10: Scaling Factor (Holiday Adjustment) | L10: IMSM Requirement
A11: =IF($A$12="","",OFFSET(Calendar!$A$1,VLOOKUP(Calculation!$A$12,Calendar!$A$2:$C$1825,2,FALSE)+1,0)) -> 2025-10-02 | E11: =IF(C11>minIMSM,C11,"") ->  | F11: =IF($A11="","",IFERROR((AVERAGE(E12,INDIRECT("D" & ROW(A13) & ":D" & ROW(A13) + window_size-2))),0)) -> 883471.3692 | G11: 563305.9667 | H11: 214 | I11: =IF($A11="","",F11+alpha*G11) -> 1897422.109 | J11: =IF($A11="","",beta*MAX(E12,INDIRECT("B" & ROW(A13) & ":B" & ROW(A13) + window_size_max-2))) -> 4444297.6 | K11: =IF($A12="","",IF($H$3="YES",VLOOKUP(OFFSET(A12,M11,0),Calendar!$A$2:$C$10000,3,FALSE),1)) -> 1 | L11: =IF(A12="","",IF(VLOOKUP(A11,Calendar!A:E,5,FALSE)=0,"",CEILING(K11*CEILING(MAX(OFFSET(J11,M11,0),OFFSET(I11,M11,0)),roundto),roundto)+add_margin)) -> 4500000 | M11: =IF(INDIRECT("Calendar!E"&MATCH($A11,Calendar!A:A,0)-1),0,IF(INDIRECT("Calendar!E"&MATCH($A11,Calendar!A:A,0)-2),1,2)) -> 0
A12: 2025-10-01 | B12: 323440 | C12: 240947 | D12: =IF(B12>minIMSM,B12,"") -> 323440 | E12: 240947 | F12: =IF($A12="","",IFERROR((AVERAGE(E13,INDIRECT("D" & ROW(A14) & ":D" & ROW(A14) + window_size-2))),0)) -> 882945.8084 | G12: 564454.8823 | H12: 214 | I12: 1898964.597 | J12: 4444297.6 | K12: =IF($A13="","",IF($H$3="YES",VLOOKUP(OFFSET(A13,M12,0),Calendar!$A$2:$C$10000,3,FALSE),1)) -> 1 | L12: =IF(A13="","",IF(VLOOKUP(A12,Calendar!A:E,5,FALSE)=0,"",CEILING(K12*CEILING(MAX(OFFSET(J12,M12,0),OFFSET(I12,M12,0)),roundto),roundto)+add_margin)) -> 4500000 | M12: =IF(INDIRECT("Calendar!E"&MATCH($A12,Calendar!A:A,0)-1),0,IF(INDIRECT("Calendar!E"&MATCH($A12,Calendar!A:A,0)-2),1,2)) -> 0
A13: 2025-09-30 | B13: 566967 | C13: 326020 | D13: 566967 | E13: 326020 | F13: 886098.1308 | G13: 567824.8617 | H13: 214 | I13: 1908182.882 | J13: 4444297.6 | K13: =IF($A14="","",IF($H$3="YES",VLOOKUP(OFFSET(A14,M13,0),Calendar!$A$2:$C$10000,3,FALSE),1)) -> 1 | L13: =IF(A14="","",IF(VLOOKUP(A13,Calendar!A:E,5,FALSE)=0,"",CEILING(K13*CEILING(MAX(OFFSET(J13,M13,0),OFFSET(I13,M13,0)),roundto),roundto)+add_margin)) -> 4500000 | M13: =IF(INDIRECT("Calendar!E"&MATCH($A13,Calendar!A:A,0)-1),0,IF(INDIRECT("Calendar!E"&MATCH($A13,Calendar!A:A,0)-2),1,2)) -> 0
A14: 2025-09-29 | B14: 340789 | C14: 56745 | D14: 340789 | E14: 56745 | F14: 887080.9814 | G14: 567655.7774 | H14: 215 | I14: 1908861.381 | J14: 4444297.6 | K14: =IF($A15="","",IF($H$3="YES",VLOOKUP(OFFSET(A15,M14,0),Calendar!$A$2:$C$10000,3,FALSE),1)) -> 1 | L14: =IF(A15="","",IF(VLOOKUP(A14,Calendar!A:E,5,FALSE)=0,"",CEILING(K14*CEILING(MAX(OFFSET(J14,M14,0),OFFSET(I14,M14,0)),roundto),roundto)+add_margin)) -> 4500000 | M14: =IF(INDIRECT("Calendar!E"&MATCH($A14,Calendar!A:A,0)-1),0,IF(INDIRECT("Calendar!E"&MATCH($A14,Calendar!A:A,0)-2),1,2)) -> 0
A15: 2025-09-26 | B15: -3109 | C15: 40545 | E15: 40545 | F15: 888625.0744 | G15: 563442.8035 | H15: 215 | I15: 1902822.121 | J15: 4444297.6 | K15: =IF($A16="","",IF($H$3="YES",VLOOKUP(OFFSET(A16,M15,0),Calendar!$A$2:$C$10000,3,FALSE),1)) -> 1 | L15: =IF(A16="","",IF(VLOOKUP(A15,Calendar!A:E,5,FALSE)=0,"",CEILING(K15*CEILING(MAX(OFFSET(J15,M15,0),OFFSET(I15,M15,0)),roundto),roundto)+add_margin)) -> 4500000 | M15: =IF(INDIRECT("Calendar!E"&MATCH($A15,Calendar!A:A,0)-1),0,IF(INDIRECT("Calendar!E"&MATCH($A15,Calendar!A:A,0)-2),1,2)) -> 0
A16: 2025-09-25 | B16: 1015000 | C16: 1029335 | D16: 1015000 | E16: 1029335 | F16: 881563.493 | G16: 570761.7244 | H16: 215 | I16: 1908934.597 | J16: 4444297.6 | K16: =IF($A17="","",IF($H$3="YES",VLOOKUP(OFFSET(A17,M16,0),Calendar!$A$2:$C$10000,3,FALSE),1)) -> 1 | L16: =IF(A17="","",IF(VLOOKUP(A16,Calendar!A:E,5,FALSE)=0,"",CEILING(K16*CEILING(MAX(OFFSET(J16,M16,0),OFFSET(I16,M16,0)),roundto),roundto)+add_margin)) -> 4500000 | M16: =IF(INDIRECT("Calendar!E"&MATCH($A16,Calendar!A:A,0)-1),0,IF(INDIRECT("Calendar!E"&MATCH($A16,Calendar!A:A,0)-2),1,2)) -> 0
A17: 2025-09-24 | B17: 1121777 | C17: 252812 | D17: 1121777 | E17: 252812 | F17: 881088.9721 | G17: 567297.9148 | H17: 215 | I17: 1902225.219 | J17: 4444297.6 | K17: =IF($A18="","",IF($H$3="YES",VLOOKUP(OFFSET(A18,M17,0),Calendar!$A$2:$C$10000,3,FALSE),1)) -> 1 | L17: =IF(A18="","",IF(VLOOKUP(A17,Calendar!A:E,5,FALSE)=0,"",CEILING(K17*CEILING(MAX(OFFSET(J17,M17,0),OFFSET(I17,M17,0)),roundto),roundto)+add_margin)) -> 4500000 | M17: =IF(INDIRECT("Calendar!E"&MATCH($A17,Calendar!A:A,0)-1),0,IF(INDIRECT("Calendar!E"&MATCH($A17,Calendar!A:A,0)-2),1,2)) -> 0
A18: 2025-09-23 | B18: 2167612 | C18: 2048958 | D18: 2167612 | E18: 2048958 | F18: 865846.0744 | G18: 520192.5122 | H18: 215 | I18: 1802192.596 | J18: 2520105.6 | K18: =IF($A19="","",IF($H$3="YES",VLOOKUP(OFFSET(A19,M18,0),Calendar!$A$2:$C$10000,3,FALSE),1)) -> 1 | L18: =IF(A19="","",IF(VLOOKUP(A18,Calendar!A:E,5,FALSE)=0,"",CEILING(K18*CEILING(MAX(OFFSET(J18,M18,0),OFFSET(I18,M18,0)),roundto),roundto)+add_margin)) -> 2580000 | M18: =IF(INDIRECT("Calendar!E"&MATCH($A18,Calendar!A:A,0)-1),0,IF(INDIRECT("Calendar!E"&MATCH($A18,Calendar!A:A,0)-2),1,2)) -> 0
A19: 2025-09-22 | B19: 2777686 | C19: 861622 | D19: 2777686 | E19: 861622 | F19: 861613.3628 | G19: 524586.0406 | H19: 215 | I19: 1805868.236 | J19: 2783016 | K19: =IF($A20="","",IF($H$3="YES",VLOOKUP(OFFSET(A20,M19,0),Calendar!$A$2:$C$10000,3,FALSE),1)) -> 1 | L19: =IF(A20="","",IF(VLOOKUP(A19,Calendar!A:E,5,FALSE)=0,"",CEILING(K19*CEILING(MAX(OFFSET(J19,M19,0),OFFSET(I19,M19,0)),roundto),roundto)+add_margin)) -> 2840000 | M19: =IF(INDIRECT("Calendar!E"&MATCH($A19,Calendar!A:A,0)-1),0,IF(INDIRECT("Calendar!E"&MATCH($A19,Calendar!A:A,0)-2),1,2)) -> 0
A20: 2025-09-19 | B20: 1149197 | C20: 421528 | D20: 1149197 | E20: 421528 | F20: 861285.7256 | G20: 523582.2045 | H20: 215 | I20: 1803733.694 | J20: 2783016 | K20: =IF($A21="","",IF($H$3="YES",VLOOKUP(OFFSET(A21,M20,0),Calendar!$A$2:$C$10000,3,FALSE),1)) -> 1 | L20: =IF(A21="","",IF(VLOOKUP(A20,Calendar!A:E,5,FALSE)=0,"",CEILING(K20*CEILING(MAX(OFFSET(J20,M20,0),OFFSET(I20,M20,0)),roundto),roundto)+add_margin)) -> 2840000 | M20: =IF(INDIRECT("Calendar!E"&MATCH($A20,Calendar!A:A,0)-1),0,IF(INDIRECT("Calendar!E"&MATCH($A20,Calendar!A:A,0)-2),1,2)) -> 0
A21: 2025-09-18 | B21: 1257405 | C21: 935896 | D21: 1257405 | E21: 935896 | F21: 856982.7674 | G21: 525662.725 | H21: 215 | I21: 1803175.672 | J21: 2783016 | K21: =IF($A22="","",IF($H$3="YES",VLOOKUP(OFFSET(A22,M21,0),Calendar!$A$2:$C$10000,3,FALSE),1)) -> 1 | L21: =IF(A22="","",IF(VLOOKUP(A21,Calendar!A:E,5,FALSE)=0,"",CEILING(K21*CEILING(MAX(OFFSET(J21,M21,0),OFFSET(I21,M21,0)),roundto),roundto)+add_margin)) -> 2840000 | M21: =IF(INDIRECT("Calendar!E"&MATCH($A21,Calendar!A:A,0)-1),0,IF(INDIRECT("Calendar!E"&MATCH($A21,Calendar!A:A,0)-2),1,2)) -> 0
A22: 2025-09-17 | B22: 1248066 | C22: 628424 | D22: 1248066 | E22: 628424 | F22: 852287.0279 | G22: 529210.4343 | H22: 215 | I22: 1804865.81 | J22: 2783016 | K22: =IF($A23="","",IF($H$3="YES",VLOOKUP(OFFSET(A23,M22,0),Calendar!$A$2:$C$10000,3,FALSE),1)) -> 1 | L22: =IF(A23="","",IF(VLOOKUP(A22,Calendar!A:E,5,FALSE)=0,"",CEILING(K22*CEILING(MAX(OFFSET(J22,M22,0),OFFSET(I22,M22,0)),roundto),roundto)+add_margin)) -> 2840000 | M22: =IF(INDIRECT("Calendar!E"&MATCH($A22,Calendar!A:A,0)-1),0,IF(INDIRECT("Calendar!E"&MATCH($A22,Calendar!A:A,0)-2),1,2)) -> 0
A23: 2025-09-16 | B23: 1102410 | C23: 548039 | D23: =IF(B23>minIMSM,B23,"") -> 1102410 | E23: 548039 | F23: 848978.5628 | G23: 537321.8409 | H23: 215 | I23: 1816157.876 | J23: 2783016 | K23: =IF($A24="","",IF($H$3="YES",VLOOKUP(OFFSET(A24,M23,0),Calendar!$A$2:$C$10000,3,FALSE),1)) -> 1 | L23: =IF(A24="","",IF(VLOOKUP(A23,Calendar!A:E,5,FALSE)=0,"",CEILING(K23*CEILING(MAX(OFFSET(J23,M23,0),OFFSET(I23,M23,0)),roundto),roundto)+add_margin)) -> 2840000 | M23: =IF(INDIRECT("Calendar!E"&MATCH($A23,Calendar!A:A,0)-1),0,IF(INDIRECT("Calendar!E"&MATCH($A23,Calendar!A:A,0)-2),1,2)) -> 0
A24: 2025-09-15 | B24: 453305 | C24: 19400 | D24: 453305 | E24: 19400 | F24: 851415.9349 | G24: 531557.5187 | H24: 215 | I24: 1808219.469 | J24: 2783016 | K24: =IF($A25="","",IF($H$3="YES",VLOOKUP(OFFSET(A25,M24,0),Calendar!$A$2:$C$10000,3,FALSE),1)) -> 1 | L24: =IF(A25="","",IF(VLOOKUP(A24,Calendar!A:E,5,FALSE)=0,"",CEILING(K24*CEILING(MAX(OFFSET(J24,M24,0),OFFSET(I24,M24,0)),roundto),roundto)+add_margin)) -> 2840000 | M24: =IF(INDIRECT("Calendar!E"&MATCH($A24,Calendar!A:A,0)-1),0,IF(INDIRECT("Calendar!E"&MATCH($A24,Calendar!A:A,0)-2),1,2)) -> 0
A25: 2025-09-12 | B25: 293583 | C25: 388371 | D25: 293583 | E25: 388371 | F25: 850887.4093 | G25: 533607.5257 | H25: 215 | I25: 1811380.956 | J25: 2783016 | K25: =IF($A26="","",IF($H$3="YES",VLOOKUP(OFFSET(A26,M25,0),Calendar!$A$2:$C$10000,3,FALSE),1)) -> 1 | L25: =IF(A26="","",IF(VLOOKUP(A25,Calendar!A:E,5,FALSE)=0,"",CEILING(K25*CEILING(MAX(OFFSET(J25,M25,0),OFFSET(I25,M25,0)),roundto),roundto)+add_margin)) -> 2840000 | M25: =IF(INDIRECT("Calendar!E"&MATCH($A25,Calendar!A:A,0)-1),0,IF(INDIRECT("Calendar!E"&MATCH($A25,Calendar!A:A,0)-2),1,2)) -> 0
A26: 2025-09-11 | B26: 651970 | C26: 432616 | D26: 651970 | E26: 432616 | F26: 850236.9349 | G26: 535345.088 | H26: 215 | I26: 1813858.093 | J26: 2783016 | K26: =IF($A27="","",IF($H$3="YES",VLOOKUP(OFFSET(A27,M26,0),Calendar!$A$2:$C$10000,3,FALSE),1)) -> 1 | L26: =IF(A27="","",IF(VLOOKUP(A26,Calendar!A:E,5,FALSE)=0,"",CEILING(K26*CEILING(MAX(OFFSET(J26,M26,0),OFFSET(I26,M26,0)),roundto),roundto)+add_margin)) -> 2840000 | M26: =IF(INDIRECT("Calendar!E"&MATCH($A26,Calendar!A:A,0)-1),0,IF(INDIRECT("Calendar!E"&MATCH($A26,Calendar!A:A,0)-2),1,2)) -> 0
A27: 2025-09-10 | B27: 862497 | C27: 588877 | D27: 862497 | E27: 588877 | F27: 845683.0186 | G27: 537015.6102 | H27: 215 | I27: 1812311.117 | J27: 2783016 | K27: =IF($A28="","",IF($H$3="YES",VLOOKUP(OFFSET(A28,M27,0),Calendar!$A$2:$C$10000,3,FALSE),1)) -> 1 | L27: =IF(A28="","",IF(VLOOKUP(A27,Calendar!A:E,5,FALSE)=0,"",CEILING(K27*CEILING(MAX(OFFSET(J27,M27,0),OFFSET(I27,M27,0)),roundto),roundto)+add_margin)) -> 2840000 | M27: =IF(INDIRECT("Calendar!E"&MATCH($A27,Calendar!A:A,0)-1),0,IF(INDIRECT("Calendar!E"&MATCH($A27,Calendar!A:A,0)-2),1,2)) -> 0
A28: 2025-09-09 | B28: 1253310 | C28: 741357 | D28: 1253310 | E28: 741357 | F28: 843432.7256 | G28: 540121.508 | H28: 215 | I28: 1815651.44 | J28: 2783016 | K28: =IF($A29="","",IF($H$3="YES",VLOOKUP(OFFSET(A29,M28,0),Calendar!$A$2:$C$10000,3,FALSE),1)) -> 1 | L28: =IF(A29="","",IF(VLOOKUP(A28,Calendar!A:E,5,FALSE)=0,"",CEILING(K28*CEILING(MAX(OFFSET(J28,M28,0),OFFSET(I28,M28,0)),roundto),roundto)+add_margin)) -> 2840000 | M28: =IF(INDIRECT("Calendar!E"&MATCH($A28,Calendar!A:A,0)-1),0,IF(INDIRECT("Calendar!E"&MATCH($A28,Calendar!A:A,0)-2),1,2)) -> 0
A29: 2025-09-08 | B29: 1123881 | C29: 533563 | D29: 1123881 | E29: 533563 | F29: 845044.5488 | G29: 542871.4911 | H29: 215 | I29: 1822213.233 | J29: 2783016 | K29: =IF($A30="","",IF($H$3="YES",VLOOKUP(OFFSET(A30,M29,0),Calendar!$A$2:$C$10000,3,FALSE),1)) -> 1 | L29: =IF(A30="","",IF(VLOOKUP(A29,Calendar!A:E,5,FALSE)=0,"",CEILING(K29*CEILING(MAX(OFFSET(J29,M29,0),OFFSET(I29,M29,0)),roundto),roundto)+add_margin)) -> 2840000 | M29: =IF(INDIRECT("Calendar!E"&MATCH($A29,Calendar!A:A,0)-1),0,IF(INDIRECT("Calendar!E"&MATCH($A29,Calendar!A:A,0)-2),1,2)) -> 0
A30: 2025-09-05 | B30: 695014 | C30: 474965 | D30: 695014 | E30: 474965 | F30: 843933.8884 | G30: 545118.2309 | H30: 215 | I30: 1825146.704 | J30: 2783016 | K30: =IF($A31="","",IF($H$3="YES",VLOOKUP(OFFSET(A31,M30,0),Calendar!$A$2:$C$10000,3,FALSE),1)) -> 1 | L30: =IF(A31="","",IF(VLOOKUP(A30,Calendar!A:E,5,FALSE)=0,"",CEILING(K30*CEILING(MAX(OFFSET(J30,M30,0),OFFSET(I30,M30,0)),roundto),roundto)+add_margin)) -> 2840000 | M30: =IF(INDIRECT("Calendar!E"&MATCH($A30,Calendar!A:A,0)-1),0,IF(INDIRECT("Calendar!E"&MATCH($A30,Calendar!A:A,0)-2),1,2)) -> 0
A31: 2025-09-04 | B31: 884049 | C31: 587569 | D31: 884049 | E31: 587569 | F31: 843160.6326 | G31: 546527.6173 | H31: 215 | I31: 1826910.344 | J31: 2783016 | K31: =IF($A32="","",IF($H$3="YES",VLOOKUP(OFFSET(A32,M31,0),Calendar!$A$2:$C$10000,3,FALSE),1)) -> 1 | L31: =IF(A32="","",IF(VLOOKUP(A31,Calendar!A:E,5,FALSE)=0,"",CEILING(K31*CEILING(MAX(OFFSET(J31,M31,0),OFFSET(I31,M31,0)),roundto),roundto)+add_margin)) -> 2840000 | M31: =IF(INDIRECT("Calendar!E"&MATCH($A31,Calendar!A:A,0)-1),0,IF(INDIRECT("Calendar!E"&MATCH($A31,Calendar!A:A,0)-2),1,2)) -> 0
A32: 2025-09-03 | B32: 1144105 | C32: 715273 | D32: 1144105 | E32: 715273 | F32: 840939.9674 | G32: 544389.0454 | H32: 215 | I32: 1820840.249 | J32: 2783016 | K32: =IF($A33="","",IF($H$3="YES",VLOOKUP(OFFSET(A33,M32,0),Calendar!$A$2:$C$10000,3,FALSE),1)) -> 1 | L32: =IF(A33="","",IF(VLOOKUP(A32,Calendar!A:E,5,FALSE)=0,"",CEILING(K32*CEILING(MAX(OFFSET(J32,M32,0),OFFSET(I32,M32,0)),roundto),roundto)+add_margin)) -> 2840000 | M32: =IF(INDIRECT("Calendar!E"&MATCH($A32,Calendar!A:A,0)-1),0,IF(INDIRECT("Calendar!E"&MATCH($A32,Calendar!A:A,0)-2),1,2)) -> 0
A33: 2025-09-02 | B33: 1575066 | C33: 1063504 | D33: 1575066 | E33: 1063504 | F33: 837869.6744 | G33: 548696.3793 | H33: 215 | I33: 1825523.157 | J33: 3581795.2 | K33: =IF($A34="","",IF($H$3="YES",VLOOKUP(OFFSET(A34,M33,0),Calendar!$A$2:$C$10000,3,FALSE),1)) -> 1 | L33: =IF(A34="","",IF(VLOOKUP(A33,Calendar!A:E,5,FALSE)=0,"",CEILING(K33*CEILING(MAX(OFFSET(J33,M33,0),OFFSET(I33,M33,0)),roundto),roundto)+add_margin)) -> 3640000 | M33: =IF(INDIRECT("Calendar!E"&MATCH($A33,Calendar!A:A,0)-1),0,IF(INDIRECT("Calendar!E"&MATCH($A33,Calendar!A:A,0)-2),1,2)) -> 0
A34: 2025-09-01 | B34: 1217077 | C34: 310029 | D34: 1217077 | E34: 310029 | F34: 840061.5953 | G34: 549364.1045 | H34: 215 | I34: 1828916.983 | J34: 3581795.2 | K34: =IF($A35="","",IF($H$3="YES",VLOOKUP(OFFSET(A35,M34,0),Calendar!$A$2:$C$10000,3,FALSE),1)) -> 1 | L34: =IF(A35="","",IF(VLOOKUP(A34,Calendar!A:E,5,FALSE)=0,"",CEILING(K34*CEILING(MAX(OFFSET(J34,M34,0),OFFSET(I34,M34,0)),roundto),roundto)+add_margin)) -> 3640000 | M34: =IF(INDIRECT("Calendar!E"&MATCH($A34,Calendar!A:A,0)-1),0,IF(INDIRECT("Calendar!E"&MATCH($A34,Calendar!A:A,0)-2),1,2)) -> 0
A35: 2025-08-29 | B35: 410225 | C35: 301574 | D35: 410225 | E35: 301574 | F35: 839145.6186 | G35: 550507.187 | H35: 215 | I35: 1830058.555 | J35: 3581795.2 | K35: =IF($A36="","",IF($H$3="YES",VLOOKUP(OFFSET(A36,M35,0),Calendar!$A$2:$C$10000,3,FALSE),1)) -> 1 | L35: =IF(A36="","",IF(VLOOKUP(A35,Calendar!A:E,5,FALSE)=0,"",CEILING(K35*CEILING(MAX(OFFSET(J35,M35,0),OFFSET(I35,M35,0)),roundto),roundto)+add_margin)) -> 3640000 | M35: =IF(INDIRECT("Calendar!E"&MATCH($A35,Calendar!A:A,0)-1),0,IF(INDIRECT("Calendar!E"&MATCH($A35,Calendar!A:A,0)-2),1,2)) -> 0
A36: 2025-08-28 | B36: 626020 | C36: 483621 | D36: 626020 | E36: 483621 | F36: 836444.3535 | G36: 554846.7977 | H36: 215 | I36: 1835168.589 | J36: 3581795.2 | K36: =IF($A37="","",IF($H$3="YES",VLOOKUP(OFFSET(A37,M36,0),Calendar!$A$2:$C$10000,3,FALSE),1)) -> 1 | L36: =IF(A37="","",IF(VLOOKUP(A36,Calendar!A:E,5,FALSE)=0,"",CEILING(K36*CEILING(MAX(OFFSET(J36,M36,0),OFFSET(I36,M36,0)),roundto),roundto)+add_margin)) -> 3640000 | M36: =IF(INDIRECT("Calendar!E"&MATCH($A36,Calendar!A:A,0)-1),0,IF(INDIRECT("Calendar!E"&MATCH($A36,Calendar!A:A,0)-2),1,2)) -> 0
A37: 2025-08-27 | B37: 580668 | C37: 333994 | D37: 580668 | E37: 333994 | F37: 835488.0279 | G37: 555965.0442 | H37: 215 | I37: 1836225.107 | J37: 3581795.2 | K37: =IF($A38="","",IF($H$3="YES",VLOOKUP(OFFSET(A38,M37,0),Calendar!$A$2:$C$10000,3,FALSE),1)) -> 1 | L37: =IF(A38="","",IF(VLOOKUP(A37,Calendar!A:E,5,FALSE)=0,"",CEILING(K37*CEILING(MAX(OFFSET(J37,M37,0),OFFSET(I37,M37,0)),roundto),roundto)+add_margin)) -> 3640000 | M37: =IF(INDIRECT("Calendar!E"&MATCH($A37,Calendar!A:A,0)-1),0,IF(INDIRECT("Calendar!E"&MATCH($A37,Calendar!A:A,0)-2),1,2)) -> 0
A38: 2025-08-26 | B38: 743322 | C38: 628866 | D38: 743322 | E38: 628866 | F38: 832089.6977 | G38: 562266.9374 | H38: 215 | I38: 1844170.185 | J38: 3581795.2 | K38: =IF($A39="","",IF($H$3="YES",VLOOKUP(OFFSET(A39,M38,0),Calendar!$A$2:$C$10000,3,FALSE),1)) -> 1 | L38: =IF(A39="","",IF(VLOOKUP(A38,Calendar!A:E,5,FALSE)=0,"",CEILING(K38*CEILING(MAX(OFFSET(J38,M38,0),OFFSET(I38,M38,0)),roundto),roundto)+add_margin)) -> 3640000 | M38: =IF(INDIRECT("Calendar!E"&MATCH($A38,Calendar!A:A,0)-1),0,IF(INDIRECT("Calendar!E"&MATCH($A38,Calendar!A:A,0)-2),1,2)) -> 0
A39: 2025-08-25 | B39: 656513 | C39: 254069 | D39: 656513 | E39: 254069 | F39: 831369.4791 | G39: 563624.5824 | H39: 215 | I39: 1845893.727 | J39: 3581795.2 | K39: =IF($A40="","",IF($H$3="YES",VLOOKUP(OFFSET(A40,M39,0),Calendar!$A$2:$C$10000,3,FALSE),1)) -> 1 | L39: =IF(A40="","",IF(VLOOKUP(A39,Calendar!A:E,5,FALSE)=0,"",CEILING(K39*CEILING(MAX(OFFSET(J39,M39,0),OFFSET(I39,M39,0)),roundto),roundto)+add_margin)) -> 3640000 | M39: =IF(INDIRECT("Calendar!E"&MATCH($A39,Calendar!A:A,0)-1),0,IF(INDIRECT("Calendar!E"&MATCH($A39,Calendar!A:A,0)-2),1,2)) -> 0
A40: 2025-08-22 | B40: 248557 | C40: 144410 | D40: 248557 | E40: 144410 | F40: 831170.2558 | G40: 563926.2337 | H40: 215 | I40: 1846237.476 | J40: 3581795.2 | K40: =IF($A41="","",IF($H$3="YES",VLOOKUP(OFFSET(A41,M40,0),Calendar!$A$2:$C$10000,3,FALSE),1)) -> 1 | L40: =IF(A41="","",IF(VLOOKUP(A40,Calendar!A:E,5,FALSE)=0,"",CEILING(K40*CEILING(MAX(OFFSET(J40,M40,0),OFFSET(I40,M40,0)),roundto),roundto)+add_margin)) -> 3640000 | M40: =IF(INDIRECT("Calendar!E"&MATCH($A40,Calendar!A:A,0)-1),0,IF(INDIRECT("Calendar!E"&MATCH($A40,Calendar!A:A,0)-2),1,2)) -> 0
A41: 2025-08-21 | B41: 165393 | C41: 44105 | D41: 165393 | E41: 44105 | F41: 832233.3488 | G41: 560874.9652 | H41: 215 | I41: 1841808.286 | J41: 3581795.2 | K41: =IF($A42="","",IF($H$3="YES",VLOOKUP(OFFSET(A42,M41,0),Calendar!$A$2:$C$10000,3,FALSE),1)) -> 1 | L41: =IF(A42="","",IF(VLOOKUP(A41,Calendar!A:E,5,FALSE)=0,"",CEILING(K41*CEILING(MAX(OFFSET(J41,M41,0),OFFSET(I41,M41,0)),roundto),roundto)+add_margin)) -> 3640000 | M41: =IF(INDIRECT("Calendar!E"&MATCH($A41,Calendar!A:A,0)-1),0,IF(INDIRECT("Calendar!E"&MATCH($A41,Calendar!A:A,0)-2),1,2)) -> 0
A42: 2025-08-20 | B42: 123163 | C42: 106375 | D42: 123163 | E42: 106375 | F42: 833384.6047 | G42: 558372.6727 | H42: 215 | I42: 1838455.416 | J42: 3581795.2 | K42: =IF($A43="","",IF($H$3="YES",VLOOKUP(OFFSET(A43,M42,0),Calendar!$A$2:$C$10000,3,FALSE),1)) -> 1 | L42: =IF(A43="","",IF(VLOOKUP(A42,Calendar!A:E,5,FALSE)=0,"",CEILING(K42*CEILING(MAX(OFFSET(J42,M42,0),OFFSET(I42,M42,0)),roundto),roundto)+add_margin)) -> 3640000 | M42: =IF(INDIRECT("Calendar!E"&MATCH($A42,Calendar!A:A,0)-1),0,IF(INDIRECT("Calendar!E"&MATCH($A42,Calendar!A:A,0)-2),1,2)) -> 0
A43: 2025-08-19 | B43: 713075 | C43: 711429 | D43: 713075 | E43: 711429 | F43: 833963.1302 | G43: 563441.9821 | H43: 215 | I43: 1848158.698 | J43: 3581795.2 | K43: =IF($A44="","",IF($H$3="YES",VLOOKUP(OFFSET(A44,M43,0),Calendar!$A$2:$C$10000,3,FALSE),1)) -> 1 | L43: =IF(A44="","",IF(VLOOKUP(A43,Calendar!A:E,5,FALSE)=0,"",CEILING(K43*CEILING(MAX(OFFSET(J43,M43,0),OFFSET(I43,M43,0)),roundto),roundto)+add_margin)) -> 3640000 | M43: =IF(INDIRECT("Calendar!E"&MATCH($A43,Calendar!A:A,0)-1),0,IF(INDIRECT("Calendar!E"&MATCH($A43,Calendar!A:A,0)-2),1,2)) -> 0
A44: 2025-08-18 | B44: 972766 | C44: 357968 | D44: 972766 | E44: 357968 | F44: 838211.9628 | G44: 564598.3957 | H44: 215 | I44: 1854489.075 | J44: 3581795.2 | K44: =IF($A45="","",IF($H$3="YES",VLOOKUP(OFFSET(A45,M44,0),Calendar!$A$2:$C$10000,3,FALSE),1)) -> 1 | L44: =IF(A45="","",IF(VLOOKUP(A44,Calendar!A:E,5,FALSE)=0,"",CEILING(K44*CEILING(MAX(OFFSET(J44,M44,0),OFFSET(I44,M44,0)),roundto),roundto)+add_margin)) -> 3640000 | M44: =IF(INDIRECT("Calendar!E"&MATCH($A44,Calendar!A:A,0)-1),0,IF(INDIRECT("Calendar!E"&MATCH($A44,Calendar!A:A,0)-2),1,2)) -> 0
A45: 2025-08-15 | B45: 428502 | C45: 309315 | D45: 428502 | E45: 309315 | F45: 837879.0093 | G45: 566351.7966 | H45: 215 | I45: 1857312.243 | J45: 3581795.2 | K45: =IF($A46="","",IF($H$3="YES",VLOOKUP(OFFSET(A46,M45,0),Calendar!$A$2:$C$10000,3,FALSE),1)) -> 1 | L45: =IF(A46="","",IF(VLOOKUP(A45,Calendar!A:E,5,FALSE)=0,"",CEILING(K45*CEILING(MAX(OFFSET(J45,M45,0),OFFSET(I45,M45,0)),roundto),roundto)+add_margin)) -> 3640000 | M45: =IF(INDIRECT("Calendar!E"&MATCH($A45,Calendar!A:A,0)-1),0,IF(INDIRECT("Calendar!E"&MATCH($A45,Calendar!A:A,0)-2),1,2)) -> 0
A46: 2025-08-14 | B46: 615845 | C46: 391934 | D46: 615845 | E46: 391934 | F46: 837739.893 | G46: 568886.0582 | H46: 215 | I46: 1861734.798 | J46: 3581795.2 | K46: =IF($A47="","",IF($H$3="YES",VLOOKUP(OFFSET(A47,M46,0),Calendar!$A$2:$C$10000,3,FALSE),1)) -> 1 | L46: =IF(A47="","",IF(VLOOKUP(A46,Calendar!A:E,5,FALSE)=0,"",CEILING(K46*CEILING(MAX(OFFSET(J46,M46,0),OFFSET(I46,M46,0)),roundto),roundto)+add_margin)) -> 3640000 | M46: =IF(INDIRECT("Calendar!E"&MATCH($A46,Calendar!A:A,0)-1),0,IF(INDIRECT("Calendar!E"&MATCH($A46,Calendar!A:A,0)-2),1,2)) -> 0
A47: 2025-08-13 | B47: 695085 | C47: 411384 | D47: 695085 | E47: 411384 | F47: 836292.1209 | G47: 568796.4731 | H47: 215 | I47: 1860125.772 | J47: 3581795.2 | K47: =IF($A48="","",IF($H$3="YES",VLOOKUP(OFFSET(A48,M47,0),Calendar!$A$2:$C$10000,3,FALSE),1)) -> 1 | L47: =IF(A48="","",IF(VLOOKUP(A47,Calendar!A:E,5,FALSE)=0,"",CEILING(K47*CEILING(MAX(OFFSET(J47,M47,0),OFFSET(I47,M47,0)),roundto),roundto)+add_margin)) -> 3640000 | M47: =IF(INDIRECT("Calendar!E"&MATCH($A47,Calendar!A:A,0)-1),0,IF(INDIRECT("Calendar!E"&MATCH($A47,Calendar!A:A,0)-2),1,2)) -> 0
A48: 2025-08-12 | B48: 1300802 | C48: 1041538 | D48: 1300802 | E48: 1041538 | F48: 832405.8558 | G48: 564003.2607 | H48: 215 | I48: 1847611.725 | J48: 3581795.2 | K48: =IF($A49="","",IF($H$3="YES",VLOOKUP(OFFSET(A49,M48,0),Calendar!$A$2:$C$10000,3,FALSE),1)) -> 1 | L48: =IF(A49="","",IF(VLOOKUP(A48,Calendar!A:E,5,FALSE)=0,"",CEILING(K48*CEILING(MAX(OFFSET(J48,M48,0),OFFSET(I48,M48,0)),roundto),roundto)+add_margin)) -> 3640000 | M48: =IF(INDIRECT("Calendar!E"&MATCH($A48,Calendar!A:A,0)-1),0,IF(INDIRECT("Calendar!E"&MATCH($A48,Calendar!A:A,0)-2),1,2)) -> 0
A49: 2025-08-11 | B49: 1739385 | C49: 825822 | D49: 1739385 | E49: 825822 | F49: 835561.1488 | G49: 563682.649 | H49: 215 | I49: 1850189.917 | J49: 3581795.2 | K49: =IF($A50="","",IF($H$3="YES",VLOOKUP(OFFSET(A50,M49,0),Calendar!$A$2:$C$10000,3,FALSE),1)) -> 1 | L49: =IF(A50="","",IF(VLOOKUP(A49,Calendar!A:E,5,FALSE)=0,"",CEILING(K49*CEILING(MAX(OFFSET(J49,M49,0),OFFSET(I49,M49,0)),roundto),roundto)+add_margin)) -> 3640000 | M49: =IF(INDIRECT("Calendar!E"&MATCH($A49,Calendar!A:A,0)-1),0,IF(INDIRECT("Calendar!E"&MATCH($A49,Calendar!A:A,0)-2),1,2)) -> 0
A50: 2025-08-08 | B50: 1495665 | C50: 996898 | D50: 1495665 | E50: 996898 | F50: 832489.8977 | G50: 569634.7437 | H50: 215 | I50: 1857832.436 | J50: 3581795.2 | K50: =IF($A51="","",IF($H$3="YES",VLOOKUP(OFFSET(A51,M50,0),Calendar!$A$2:$C$10000,3,FALSE),1)) -> 1 | L50: =IF(A51="","",IF(VLOOKUP(A50,Calendar!A:E,5,FALSE)=0,"",CEILING(K50*CEILING(MAX(OFFSET(J50,M50,0),OFFSET(I50,M50,0)),roundto),roundto)+add_margin)) -> 3640000 | M50: =IF(INDIRECT("Calendar!E"&MATCH($A50,Calendar!A:A,0)-1),0,IF(INDIRECT("Calendar!E"&MATCH($A50,Calendar!A:A,0)-2),1,2)) -> 0
A51: 2025-08-07 | B51: 920419 | C51: 299301 | D51: 920419 | E51: 299301 | F51: 834671.9349 | G51: 569350.1955 | H51: 215 | I51: 1859502.287 | J51: 3581795.2 | K51: =IF($A52="","",IF($H$3="YES",VLOOKUP(OFFSET(A52,M51,0),Calendar!$A$2:$C$10000,3,FALSE),1)) -> 1 | L51: =IF(A52="","",IF(VLOOKUP(A51,Calendar!A:E,5,FALSE)=0,"",CEILING(K51*CEILING(MAX(OFFSET(J51,M51,0),OFFSET(I51,M51,0)),roundto),roundto)+add_margin)) -> 3640000 | M51: =IF(INDIRECT("Calendar!E"&MATCH($A51,Calendar!A:A,0)-1),0,IF(INDIRECT("Calendar!E"&MATCH($A51,Calendar!A:A,0)-2),1,2)) -> 0
A52: 2025-08-06 | B52: 506366 | C52: 489028 | D52: 506366 | E52: 489028 | F52: 834080.8558 | G52: 568353.9544 | H52: 215 | I52: 1857117.974 | J52: 3581795.2 | K52: =IF($A53="","",IF($H$3="YES",VLOOKUP(OFFSET(A53,M52,0),Calendar!$A$2:$C$10000,3,FALSE),1)) -> 1 | L52: =IF(A53="","",IF(VLOOKUP(A52,Calendar!A:E,5,FALSE)=0,"",CEILING(K52*CEILING(MAX(OFFSET(J52,M52,0),OFFSET(I52,M52,0)),roundto),roundto)+add_margin)) -> 3640000 | M52: =IF(INDIRECT("Calendar!E"&MATCH($A52,Calendar!A:A,0)-1),0,IF(INDIRECT("Calendar!E"&MATCH($A52,Calendar!A:A,0)-2),1,2)) -> 0
A53: 2025-08-05 | B53: 1508966 | C53: 1245077 | D53: 1508966 | E53: 1245077 | F53: 829224.186 | G53: 572457.0956 | H53: 215 | I53: 1859646.958 | J53: 3581795.2 | K53: =IF($A54="","",IF($H$3="YES",VLOOKUP(OFFSET(A54,M53,0),Calendar!$A$2:$C$10000,3,FALSE),1)) -> 1 | L53: =IF(A54="","",IF(VLOOKUP(A53,Calendar!A:E,5,FALSE)=0,"",CEILING(K53*CEILING(MAX(OFFSET(J53,M53,0),OFFSET(I53,M53,0)),roundto),roundto)+add_margin)) -> 3640000 | M53: =IF(INDIRECT("Calendar!E"&MATCH($A53,Calendar!A:A,0)-1),0,IF(INDIRECT("Calendar!E"&MATCH($A53,Calendar!A:A,0)-2),1,2)) -> 0
A54: 2025-08-04 | B54: 1090451 | C54: 314357 | D54: 1090451 | E54: 314357 | F54: 832571.8 | G54: 573669.4254 | H54: 215 | I54: 1865176.766 | J54: 3581795.2 | K54: =IF($A55="","",IF($H$3="YES",VLOOKUP(OFFSET(A55,M54,0),Calendar!$A$2:$C$10000,3,FALSE),1)) -> 1 | L54: =IF(A55="","",IF(VLOOKUP(A54,Calendar!A:E,5,FALSE)=0,"",CEILING(K54*CEILING(MAX(OFFSET(J54,M54,0),OFFSET(I54,M54,0)),roundto),roundto)+add_margin)) -> 3640000 | M54: =IF(INDIRECT("Calendar!E"&MATCH($A54,Calendar!A:A,0)-1),0,IF(INDIRECT("Calendar!E"&MATCH($A54,Calendar!A:A,0)-2),1,2)) -> 0
A55: 2025-08-01 | B55: 298362 | C55: 171660 | D55: 298362 | E55: 171660 | F55: 833119.893 | G55: 572958.8615 | H55: 215 | I55: 1864445.844 | J55: 3581795.2 | K55: =IF($A56="","",IF($H$3="YES",VLOOKUP(OFFSET(A56,M55,0),Calendar!$A$2:$C$10000,3,FALSE),1)) -> 1 | L55: =IF(A56="","",IF(VLOOKUP(A55,Calendar!A:E,5,FALSE)=0,"",CEILING(K55*CEILING(MAX(OFFSET(J55,M55,0),OFFSET(I55,M55,0)),roundto),roundto)+add_margin)) -> 3640000 | M55: =IF(INDIRECT("Calendar!E"&MATCH($A55,Calendar!A:A,0)-1),0,IF(INDIRECT("Calendar!E"&MATCH($A55,Calendar!A:A,0)-2),1,2)) -> 0
A56: 2025-07-31 | B56: 493521 | C56: 412646 | D56: 493521 | E56: 412646 | F56: 832790.0744 | G56: 573903.5348 | H56: 215 | I56: 1865816.437 | J56: 3581795.2 | K56: =IF($A57="","",IF($H$3="YES",VLOOKUP(OFFSET(A57,M56,0),Calendar!$A$2:$C$10000,3,FALSE),1)) -> 1 | L56: =IF(A57="","",IF(VLOOKUP(A56,Calendar!A:E,5,FALSE)=0,"",CEILING(K56*CEILING(MAX(OFFSET(J56,M56,0),OFFSET(I56,M56,0)),roundto),roundto)+add_margin)) -> 3640000 | M56: =IF(INDIRECT("Calendar!E"&MATCH($A56,Calendar!A:A,0)-1),0,IF(INDIRECT("Calendar!E"&MATCH($A56,Calendar!A:A,0)-2),1,2)) -> 0
A57: 2025-07-30 | B57: 1025796 | C57: 760015 | D57: 1025796 | E57: 760015 | F57: 829113.1814 | G57: 578212.234 | H57: 215 | I57: 1869895.203 | J57: 3581795.2 | K57: =IF($A58="","",IF($H$3="YES",VLOOKUP(OFFSET(A58,M57,0),Calendar!$A$2:$C$10000,3,FALSE),1)) -> 1 | L57: =IF(A58="","",IF(VLOOKUP(A57,Calendar!A:E,5,FALSE)=0,"",CEILING(K57*CEILING(MAX(OFFSET(J57,M57,0),OFFSET(I57,M57,0)),roundto),roundto)+add_margin)) -> 3640000 | M57: =IF(INDIRECT("Calendar!E"&MATCH($A57,Calendar!A:A,0)-1),0,IF(INDIRECT("Calendar!E"&MATCH($A57,Calendar!A:A,0)-2),1,2)) -> 0
A58: 2025-07-29 | B58: 1064666 | C58: 487404 | D58: 1064666 | E58: 487404 | F58: 827349.6326 | G58: 582064.5394 | H58: 215 | I58: 1875065.804 | J58: 3936224 | K58: =IF($A59="","",IF($H$3="YES",VLOOKUP(OFFSET(A59,M58,0),Calendar!$A$2:$C$10000,3,FALSE),1)) -> 1 | L58: =IF(A59="","",IF(VLOOKUP(A58,Calendar!A:E,5,FALSE)=0,"",CEILING(K58*CEILING(MAX(OFFSET(J58,M58,0),OFFSET(I58,M58,0)),roundto),roundto)+add_margin)) -> 3990000 | M58: =IF(INDIRECT("Calendar!E"&MATCH($A58,Calendar!A:A,0)-1),0,IF(INDIRECT("Calendar!E"&MATCH($A58,Calendar!A:A,0)-2),1,2)) -> 0
A59: 2025-07-28 | B59: 776991 | C59: 423471 | D59: 776991 | E59: 423471 | F59: 832236.0651 | G59: 583171.4916 | H59: 215 | I59: 1881944.75 | J59: 3953004.8 | K59: =IF($A60="","",IF($H$3="YES",VLOOKUP(OFFSET(A60,M59,0),Calendar!$A$2:$C$10000,3,FALSE),1)) -> 1 | L59: =IF(A60="","",IF(VLOOKUP(A59,Calendar!A:E,5,FALSE)=0,"",CEILING(K59*CEILING(MAX(OFFSET(J59,M59,0),OFFSET(I59,M59,0)),roundto),roundto)+add_margin)) -> 4010000 | M59: =IF(INDIRECT("Calendar!E"&MATCH($A59,Calendar!A:A,0)-1),0,IF(INDIRECT("Calendar!E"&MATCH($A59,Calendar!A:A,0)-2),1,2)) -> 0
A60: 2025-07-25 | B60: 734205 | C60: 654561 | D60: 734205 | E60: 654561 | F60: 832747.0605 | G60: 586569.0612 | H60: 215 | I60: 1888571.371 | J60: 3953004.8 | K60: =IF($A61="","",IF($H$3="YES",VLOOKUP(OFFSET(A61,M60,0),Calendar!$A$2:$C$10000,3,FALSE),1)) -> 1 | L60: =IF(A61="","",IF(VLOOKUP(A60,Calendar!A:E,5,FALSE)=0,"",CEILING(K60*CEILING(MAX(OFFSET(J60,M60,0),OFFSET(I60,M60,0)),roundto),roundto)+add_margin)) -> 4010000 | M60: =IF(INDIRECT("Calendar!E"&MATCH($A60,Calendar!A:A,0)-1),0,IF(INDIRECT("Calendar!E"&MATCH($A60,Calendar!A:A,0)-2),1,2)) -> 0
A61: 2025-07-24 | B61: 902164 | C61: 540256 | D61: 902164 | E61: 540256 | F61: 834509.2744 | G61: 587285.1306 | H61: 215 | I61: 1891622.51 | J61: 3953004.8 | K61: =IF($A62="","",IF($H$3="YES",VLOOKUP(OFFSET(A62,M61,0),Calendar!$A$2:$C$10000,3,FALSE),1)) -> 1 | L61: =IF(A62="","",IF(VLOOKUP(A61,Calendar!A:E,5,FALSE)=0,"",CEILING(K61*CEILING(MAX(OFFSET(J61,M61,0),OFFSET(I61,M61,0)),roundto),roundto)+add_margin)) -> 4010000 | M61: =IF(INDIRECT("Calendar!E"&MATCH($A61,Calendar!A:A,0)-1),0,IF(INDIRECT("Calendar!E"&MATCH($A61,Calendar!A:A,0)-2),1,2)) -> 0
A62: 2025-07-23 | B62: 1333530 | C62: 1202454 | D62: 1333530 | E62: 1202454 | F62: 830294.6744 | G62: 576492.9007 | H62: 215 | I62: 1867981.896 | J62: 3953004.8 | K62: =IF($A63="","",IF($H$3="YES",VLOOKUP(OFFSET(A63,M62,0),Calendar!$A$2:$C$10000,3,FALSE),1)) -> 1 | L62: =IF(A63="","",IF(VLOOKUP(A62,Calendar!A:E,5,FALSE)=0,"",CEILING(K62*CEILING(MAX(OFFSET(J62,M62,0),OFFSET(I62,M62,0)),roundto),roundto)+add_margin)) -> 4010000 | M62: =IF(INDIRECT("Calendar!E"&MATCH($A62,Calendar!A:A,0)-1),0,IF(INDIRECT("Calendar!E"&MATCH($A62,Calendar!A:A,0)-2),1,2)) -> 0
A63: 2025-07-22 | B63: 2238622 | C63: 1611184 | D63: 2238622 | E63: 1611184 | F63: 822744.7721 | G63: 570476.8015 | H63: 215 | I63: 1849603.015 | J63: 3953004.8 | K63: =IF($A64="","",IF($H$3="YES",VLOOKUP(OFFSET(A64,M63,0),Calendar!$A$2:$C$10000,3,FALSE),1)) -> 1 | L63: =IF(A64="","",IF(VLOOKUP(A63,Calendar!A:E,5,FALSE)=0,"",CEILING(K63*CEILING(MAX(OFFSET(J63,M63,0),OFFSET(I63,M63,0)),roundto),roundto)+add_margin)) -> 4010000 | M63: =IF(INDIRECT("Calendar!E"&MATCH($A63,Calendar!A:A,0)-1),0,IF(INDIRECT("Calendar!E"&MATCH($A63,Calendar!A:A,0)-2),1,2)) -> 0
A64: 2025-07-21 | B64: 1637678 | C64: 373375 | D64: 1637678 | E64: 373375 | F64: 827611.7488 | G64: 572927.2661 | H64: 215 | I64: 1858880.828 | J64: 3953004.8 | K64: =IF($A65="","",IF($H$3="YES",VLOOKUP(OFFSET(A65,M64,0),Calendar!$A$2:$C$10000,3,FALSE),1)) -> 1 | L64: =IF(A65="","",IF(VLOOKUP(A64,Calendar!A:E,5,FALSE)=0,"",CEILING(K64*CEILING(MAX(OFFSET(J64,M64,0),OFFSET(I64,M64,0)),roundto),roundto)+add_margin)) -> 4010000 | M64: =IF(INDIRECT("Calendar!E"&MATCH($A64,Calendar!A:A,0)-1),0,IF(INDIRECT("Calendar!E"&MATCH($A64,Calendar!A:A,0)-2),1,2)) -> 0
A65: 2025-07-18 | B65: 489865 | C65: 286974 | D65: 489865 | E65: 286974 | F65: 831349.214 | G65: 573363.8569 | H65: 215 | I65: 1863404.156 | J65: 3953004.8 | K65: =IF($A66="","",IF($H$3="YES",VLOOKUP(OFFSET(A66,M65,0),Calendar!$A$2:$C$10000,3,FALSE),1)) -> 1 | L65: =IF(A66="","",IF(VLOOKUP(A65,Calendar!A:E,5,FALSE)=0,"",CEILING(K65*CEILING(MAX(OFFSET(J65,M65,0),OFFSET(I65,M65,0)),roundto),roundto)+add_margin)) -> 4010000 | M65: =IF(INDIRECT("Calendar!E"&MATCH($A65,Calendar!A:A,0)-1),0,IF(INDIRECT("Calendar!E"&MATCH($A65,Calendar!A:A,0)-2),1,2)) -> 0
A66: 2025-07-17 | B66: 245244 | C66: 162842 | D66: 245244 | E66: 162842 | F66: 837038.493 | G66: 570839.7978 | H66: 215 | I66: 1864550.129 | J66: 3953004.8 | K66: =IF($A67="","",IF($H$3="YES",VLOOKUP(OFFSET(A67,M66,0),Calendar!$A$2:$C$10000,3,FALSE),1)) -> 1 | L66: =IF(A67="","",IF(VLOOKUP(A66,Calendar!A:E,5,FALSE)=0,"",CEILING(K66*CEILING(MAX(OFFSET(J66,M66,0),OFFSET(I66,M66,0)),roundto),roundto)+add_margin)) -> 4010000 | M66: =IF(INDIRECT("Calendar!E"&MATCH($A66,Calendar!A:A,0)-1),0,IF(INDIRECT("Calendar!E"&MATCH($A66,Calendar!A:A,0)-2),1,2)) -> 0
A67: 2025-07-16 | B67: 576536 | C67: 612163 | D67: 576536 | E67: 612163 | F67: 838182.893 | G67: 573112.807 | H67: 215 | I67: 1869785.946 | J67: 3953004.8 | K67: =IF($A68="","",IF($H$3="YES",VLOOKUP(OFFSET(A68,M67,0),Calendar!$A$2:$C$10000,3,FALSE),1)) -> 1 | L67: =IF(A68="","",IF(VLOOKUP(A67,Calendar!A:E,5,FALSE)=0,"",CEILING(K67*CEILING(MAX(OFFSET(J67,M67,0),OFFSET(I67,M67,0)),roundto),roundto)+add_margin)) -> 4010000 | M67: =IF(INDIRECT("Calendar!E"&MATCH($A67,Calendar!A:A,0)-1),0,IF(INDIRECT("Calendar!E"&MATCH($A67,Calendar!A:A,0)-2),1,2)) -> 0
A68: 2025-07-15 | B68: 920563 | C68: 976776 | D68: 920563 | E68: 976776 | F68: 834978.6093 | G68: 577336.2427 | H68: 215 | I68: 1874183.846 | J68: 3953004.8 | K68: =IF($A69="","",IF($H$3="YES",VLOOKUP(OFFSET(A69,M68,0),Calendar!$A$2:$C$10000,3,FALSE),1)) -> 1 | L68: =IF(A69="","",IF(VLOOKUP(A68,Calendar!A:E,5,FALSE)=0,"",CEILING(K68*CEILING(MAX(OFFSET(J68,M68,0),OFFSET(I68,M68,0)),roundto),roundto)+add_margin)) -> 4010000 | M68: =IF(INDIRECT("Calendar!E"&MATCH($A68,Calendar!A:A,0)-1),0,IF(INDIRECT("Calendar!E"&MATCH($A68,Calendar!A:A,0)-2),1,2)) -> 0
A69: 2025-07-14 | B69: 1106078 | C69: 430946 | D69: 1106078 | E69: 430946 | F69: 835497.3488 | G69: 578623.5716 | H69: 215 | I69: 1877019.778 | J69: 3953004.8 | K69: =IF($A70="","",IF($H$3="YES",VLOOKUP(OFFSET(A70,M69,0),Calendar!$A$2:$C$10000,3,FALSE),1)) -> 1 | L69: =IF(A70="","",IF(VLOOKUP(A69,Calendar!A:E,5,FALSE)=0,"",CEILING(K69*CEILING(MAX(OFFSET(J69,M69,0),OFFSET(I69,M69,0)),roundto),roundto)+add_margin)) -> 4010000 | M69: =IF(INDIRECT("Calendar!E"&MATCH($A69,Calendar!A:A,0)-1),0,IF(INDIRECT("Calendar!E"&MATCH($A69,Calendar!A:A,0)-2),1,2)) -> 0
A70: 2025-07-11 | B70: 502617 | C70: 504279 | D70: 502617 | E70: 504279 | F70: 836134.9346 | G70: 581411.8012 | H70: 214 | I70: 1882676.177 | J70: 3953004.8 | K70: =IF($A71="","",IF($H$3="YES",VLOOKUP(OFFSET(A71,M70,0),Calendar!$A$2:$C$10000,3,FALSE),1)) -> 1 | L70: =IF(A71="","",IF(VLOOKUP(A70,Calendar!A:E,5,FALSE)=0,"",CEILING(K70*CEILING(MAX(OFFSET(J70,M70,0),OFFSET(I70,M70,0)),roundto),roundto)+add_margin)) -> 4010000 | M70: =IF(INDIRECT("Calendar!E"&MATCH($A70,Calendar!A:A,0)-1),0,IF(INDIRECT("Calendar!E"&MATCH($A70,Calendar!A:A,0)-2),1,2)) -> 0
A71: 2025-07-10 | B71: 749778 | C71: 555003 | D71: 749778 | E71: 555003 | F71: 834015.7991 | G71: 585494.234 | H71: 214 | I71: 1887905.42 | J71: 3953004.8 | K71: =IF($A72="","",IF($H$3="YES",VLOOKUP(OFFSET(A72,M71,0),Calendar!$A$2:$C$10000,3,FALSE),1)) -> 1 | L71: =IF(A72="","",IF(VLOOKUP(A71,Calendar!A:E,5,FALSE)=0,"",CEILING(K71*CEILING(MAX(OFFSET(J71,M71,0),OFFSET(I71,M71,0)),roundto),roundto)+add_margin)) -> 4010000 | M71: =IF(INDIRECT("Calendar!E"&MATCH($A71,Calendar!A:A,0)-1),0,IF(INDIRECT("Calendar!E"&MATCH($A71,Calendar!A:A,0)-2),1,2)) -> 0
A72: 2025-07-09 | B72: 530542 | C72: 379485 | D72: 530542 | E72: 379485 | F72: 833140.3738 | G72: 587667.7979 | H72: 214 | I72: 1890942.41 | J72: 3953004.8 | K72: =IF($A73="","",IF($H$3="YES",VLOOKUP(OFFSET(A73,M72,0),Calendar!$A$2:$C$10000,3,FALSE),1)) -> 1 | L72: =IF(A73="","",IF(VLOOKUP(A72,Calendar!A:E,5,FALSE)=0,"",CEILING(K72*CEILING(MAX(OFFSET(J72,M72,0),OFFSET(I72,M72,0)),roundto),roundto)+add_margin)) -> 4010000 | M72: =IF(INDIRECT("Calendar!E"&MATCH($A72,Calendar!A:A,0)-1),0,IF(INDIRECT("Calendar!E"&MATCH($A72,Calendar!A:A,0)-2),1,2)) -> 0
A73: 2025-07-08 | B73: 1303974 | C73: 1356436 | D73: 1303974 | E73: 1356436 | F73: 823276.5748 | G73: 583844.8634 | H73: 214 | I73: 1874197.329 | J73: 3953004.8 | K73: =IF($A74="","",IF($H$3="YES",VLOOKUP(OFFSET(A74,M73,0),Calendar!$A$2:$C$10000,3,FALSE),1)) -> 1 | L73: =IF(A74="","",IF(VLOOKUP(A73,Calendar!A:E,5,FALSE)=0,"",CEILING(K73*CEILING(MAX(OFFSET(J73,M73,0),OFFSET(I73,M73,0)),roundto),roundto)+add_margin)) -> 4010000 | M73: =IF(INDIRECT("Calendar!E"&MATCH($A73,Calendar!A:A,0)-1),0,IF(INDIRECT("Calendar!E"&MATCH($A73,Calendar!A:A,0)-2),1,2)) -> 0
A74: 2025-07-07 | B74: 1668819 | C74: 639812 | D74: 1668819 | E74: 639812 | F74: 821574.4813 | G74: 587323.9991 | H74: 214 | I74: 1878757.68 | J74: 3953004.8 | K74: =IF($A75="","",IF($H$3="YES",VLOOKUP(OFFSET(A75,M74,0),Calendar!$A$2:$C$10000,3,FALSE),1)) -> 1 | L74: =IF(A75="","",IF(VLOOKUP(A74,Calendar!A:E,5,FALSE)=0,"",CEILING(K74*CEILING(MAX(OFFSET(J74,M74,0),OFFSET(I74,M74,0)),roundto),roundto)+add_margin)) -> 4010000 | M74: =IF(INDIRECT("Calendar!E"&MATCH($A74,Calendar!A:A,0)-1),0,IF(INDIRECT("Calendar!E"&MATCH($A74,Calendar!A:A,0)-2),1,2)) -> 0
A75: 2025-07-04 | B75: 859618 | C75: 611591 | D75: 859618 | E75: =IF(C75>minIMSM,C75,"") -> 611591 | F75: =IF($A75="","",IFERROR((AVERAGE(E76,INDIRECT("D" & ROW(A77) & ":D" & ROW(A77) + window_size-2))),0)) -> 818307.6308 | G75: 590956.2483 | H75: 214 | I75: =IF($A75="","",F75+alpha*G75) -> 1882028.878 | J75: =IF($A75="","",beta*MAX(E76,INDIRECT("B" & ROW(A77) & ":B" & ROW(A77) + window_size_max-2))) -> 3953004.8 | K75: =IF($A76="","",IF($H$3="YES",VLOOKUP(OFFSET(A76,M75,0),Calendar!$A$2:$C$10000,3,FALSE),1)) -> 1 | L75: =IF(A76="","",IF(VLOOKUP(A75,Calendar!A:E,5,FALSE)=0,"",CEILING(K75*CEILING(MAX(OFFSET(J75,M75,0),OFFSET(I75,M75,0)),roundto),roundto)+add_margin)) -> 4010000 | M75: =IF(INDIRECT("Calendar!E"&MATCH($A75,Calendar!A:A,0)-1),0,IF(INDIRECT("Calendar!E"&MATCH($A75,Calendar!A:A,0)-2),1,2)) -> 0
A76: 2025-07-03 | B76: 956969 | C76: 740737 | D76: =IF(B76>minIMSM,B76,"") -> 956969 | E76: 740737 | F76: 814969.229 | G76: 593338.5277 | H76: 214 | I76: 1882978.579 | J76: 3953004.8 | K76: =IF($A77="","",IF($H$3="YES",VLOOKUP(OFFSET(A77,M76,0),Calendar!$A$2:$C$10000,3,FALSE),1)) -> 1 | L76: =IF(A77="","",IF(VLOOKUP(A76,Calendar!A:E,5,FALSE)=0,"",CEILING(K76*CEILING(MAX(OFFSET(J76,M76,0),OFFSET(I76,M76,0)),roundto),roundto)+add_margin)) -> 4010000 | M76: =IF(INDIRECT("Calendar!E"&MATCH($A76,Calendar!A:A,0)-1),0,IF(INDIRECT("Calendar!E"&MATCH($A76,Calendar!A:A,0)-2),1,2)) -> 0
A77: 2025-07-02 | B77: 1200186 | C77: 768569 | D77: 1200186 | E77: 768569 | F77: 812805.0234 | G77: 593810.7747 | H77: 214 | I77: 1881664.418 | J77: 3953004.8 | K77: =IF($A78="","",IF($H$3="YES",VLOOKUP(OFFSET(A78,M77,0),Calendar!$A$2:$C$10000,3,FALSE),1)) -> 1 | L77: =IF(A78="","",IF(VLOOKUP(A77,Calendar!A:E,5,FALSE)=0,"",CEILING(K77*CEILING(MAX(OFFSET(J77,M77,0),OFFSET(I77,M77,0)),roundto),roundto)+add_margin)) -> 4010000 | M77: =IF(INDIRECT("Calendar!E"&MATCH($A77,Calendar!A:A,0)-1),0,IF(INDIRECT("Calendar!E"&MATCH($A77,Calendar!A:A,0)-2),1,2)) -> 0
A78: 2025-07-01 | B78: 1552882 | C78: 1292183 | D78: 1552882 | E78: 1292183 | F78: 805066.0093 | G78: 595643.8671 | H78: 214 | I78: 1877224.97 | J78: 3953004.8 | K78: =IF($A79="","",IF($H$3="YES",VLOOKUP(OFFSET(A79,M78,0),Calendar!$A$2:$C$10000,3,FALSE),1)) -> 1 | L78: =IF(A79="","",IF(VLOOKUP(A78,Calendar!A:E,5,FALSE)=0,"",CEILING(K78*CEILING(MAX(OFFSET(J78,M78,0),OFFSET(I78,M78,0)),roundto),roundto)+add_margin)) -> 4010000 | M78: =IF(INDIRECT("Calendar!E"&MATCH($A78,Calendar!A:A,0)-1),0,IF(INDIRECT("Calendar!E"&MATCH($A78,Calendar!A:A,0)-2),1,2)) -> 0
A79: 2025-06-30 | B79: 1326920 | C79: 347774 | D79: 1326920 | E79: 347774 | F79: 805007.0467 | G79: 596912.2259 | H79: 214 | I79: 1879449.053 | J79: 3953004.8 | K79: =IF($A80="","",IF($H$3="YES",VLOOKUP(OFFSET(A80,M79,0),Calendar!$A$2:$C$10000,3,FALSE),1)) -> 1 | L79: =IF(A80="","",IF(VLOOKUP(A79,Calendar!A:E,5,FALSE)=0,"",CEILING(K79*CEILING(MAX(OFFSET(J79,M79,0),OFFSET(I79,M79,0)),roundto),roundto)+add_margin)) -> 4010000 | M79: =IF(INDIRECT("Calendar!E"&MATCH($A79,Calendar!A:A,0)-1),0,IF(INDIRECT("Calendar!E"&MATCH($A79,Calendar!A:A,0)-2),1,2)) -> 0
A80: 2025-06-27 | B80: 796063 | C80: 703653 | D80: 796063 | E80: 703653 | F80: 803453.3709 | G80: 597202.094 | H80: 213 | I80: 1878417.14 | J80: 3953004.8 | K80: =IF($A81="","",IF($H$3="YES",VLOOKUP(OFFSET(A81,M80,0),Calendar!$A$2:$C$10000,3,FALSE),1)) -> 1 | L80: =IF(A81="","",IF(VLOOKUP(A80,Calendar!A:E,5,FALSE)=0,"",CEILING(K80*CEILING(MAX(OFFSET(J80,M80,0),OFFSET(I80,M80,0)),roundto),roundto)+add_margin)) -> 4010000 | M80: =IF(INDIRECT("Calendar!E"&MATCH($A80,Calendar!A:A,0)-1),0,IF(INDIRECT("Calendar!E"&MATCH($A80,Calendar!A:A,0)-2),1,2)) -> 0
A81: 2025-06-26 | B81: 1427988 | C81: 995701 | D81: 1427988 | E81: 995701 | F81: 799637.5775 | G81: 601174.1242 | H81: 213 | I81: 1881751.001 | J81: 3953004.8 | K81: =IF($A82="","",IF($H$3="YES",VLOOKUP(OFFSET(A82,M81,0),Calendar!$A$2:$C$10000,3,FALSE),1)) -> 1 | L81: =IF(A82="","",IF(VLOOKUP(A81,Calendar!A:E,5,FALSE)=0,"",CEILING(K81*CEILING(MAX(OFFSET(J81,M81,0),OFFSET(I81,M81,0)),roundto),roundto)+add_margin)) -> 4010000 | M81: =IF(INDIRECT("Calendar!E"&MATCH($A81,Calendar!A:A,0)-1),0,IF(INDIRECT("Calendar!E"&MATCH($A81,Calendar!A:A,0)-2),1,2)) -> 0
A82: 2025-06-25 | B82: 928174 | C82: 538325 | D82: 928174 | E82: 538325 | F82: 799086.6009 | G82: 600311.6759 | H82: 213 | I82: 1879647.618 | J82: 3953004.8 | K82: =IF($A83="","",IF($H$3="YES",VLOOKUP(OFFSET(A83,M82,0),Calendar!$A$2:$C$10000,3,FALSE),1)) -> 1 | L82: =IF(A83="","",IF(VLOOKUP(A82,Calendar!A:E,5,FALSE)=0,"",CEILING(K82*CEILING(MAX(OFFSET(J82,M82,0),OFFSET(I82,M82,0)),roundto),roundto)+add_margin)) -> 4010000 | M82: =IF(INDIRECT("Calendar!E"&MATCH($A82,Calendar!A:A,0)-1),0,IF(INDIRECT("Calendar!E"&MATCH($A82,Calendar!A:A,0)-2),1,2)) -> 0
A83: 2025-06-24 | B83: 1902723 | C83: 1724674 | D83: 1902723 | E83: 1724674 | F83: 790995.9906 | G83: 584233.4991 | H83: 213 | I83: 1842616.289 | J83: 3953004.8 | K83: =IF($A84="","",IF($H$3="YES",VLOOKUP(OFFSET(A84,M83,0),Calendar!$A$2:$C$10000,3,FALSE),1)) -> 1 | L83: =IF(A84="","",IF(VLOOKUP(A83,Calendar!A:E,5,FALSE)=0,"",CEILING(K83*CEILING(MAX(OFFSET(J83,M83,0),OFFSET(I83,M83,0)),roundto),roundto)+add_margin)) -> 4010000 | M83: =IF(INDIRECT("Calendar!E"&MATCH($A83,Calendar!A:A,0)-1),0,IF(INDIRECT("Calendar!E"&MATCH($A83,Calendar!A:A,0)-2),1,2)) -> 0
A84: 2025-06-23 | B84: 1955406 | C84: 642623 | D84: 1955406 | E84: 642623 | F84: 787730.1925 | G84: 589617.0563 | H84: 213 | I84: 1849040.894 | J84: 3953004.8 | K84: =IF($A85="","",IF($H$3="YES",VLOOKUP(OFFSET(A85,M84,0),Calendar!$A$2:$C$10000,3,FALSE),1)) -> 1 | L84: =IF(A85="","",IF(VLOOKUP(A84,Calendar!A:E,5,FALSE)=0,"",CEILING(K84*CEILING(MAX(OFFSET(J84,M84,0),OFFSET(I84,M84,0)),roundto),roundto)+add_margin)) -> 4010000 | M84: =IF(INDIRECT("Calendar!E"&MATCH($A84,Calendar!A:A,0)-1),0,IF(INDIRECT("Calendar!E"&MATCH($A84,Calendar!A:A,0)-2),1,2)) -> 0
A85: 2025-06-20 | B85: 804904 | C85: 345668 | D85: 804904 | E85: 345668 | F85: 786609 | G85: 591518.3694 | H85: 213 | I85: 1851342.065 | J85: 3953004.8 | K85: =IF($A86="","",IF($H$3="YES",VLOOKUP(OFFSET(A86,M85,0),Calendar!$A$2:$C$10000,3,FALSE),1)) -> 1 | L85: =IF(A86="","",IF(VLOOKUP(A85,Calendar!A:E,5,FALSE)=0,"",CEILING(K85*CEILING(MAX(OFFSET(J85,M85,0),OFFSET(I85,M85,0)),roundto),roundto)+add_margin)) -> 4010000 | M85: =IF(INDIRECT("Calendar!E"&MATCH($A85,Calendar!A:A,0)-1),0,IF(INDIRECT("Calendar!E"&MATCH($A85,Calendar!A:A,0)-2),1,2)) -> 0
A86: 2025-06-19 | B86: 699213 | C86: 617360 | D86: 699213 | E86: 617360 | F86: 785375.0189 | G86: 594857.9265 | H86: 212 | I86: 1856119.287 | J86: 3953004.8 | K86: =IF($A87="","",IF($H$3="YES",VLOOKUP(OFFSET(A87,M86,0),Calendar!$A$2:$C$10000,3,FALSE),1)) -> 1 | L86: =IF(A87="","",IF(VLOOKUP(A86,Calendar!A:E,5,FALSE)=0,"",CEILING(K86*CEILING(MAX(OFFSET(J86,M86,0),OFFSET(I86,M86,0)),roundto),roundto)+add_margin)) -> 4010000 | M86: =IF(INDIRECT("Calendar!E"&MATCH($A86,Calendar!A:A,0)-1),0,IF(INDIRECT("Calendar!E"&MATCH($A86,Calendar!A:A,0)-2),1,2)) -> 0
A87: 2025-06-18 | B87: 1001213 | C87: 570360 | D87: 1001213 | E87: 570360 | F87: 784471.4834 | G87: 586528.9282 | H87: 211 | I87: 1840223.554 | J87: 3953004.8 | K87: =IF($A88="","",IF($H$3="YES",VLOOKUP(OFFSET(A88,M87,0),Calendar!$A$2:$C$10000,3,FALSE),1)) -> 1 | L87: =IF(A88="","",IF(VLOOKUP(A87,Calendar!A:E,5,FALSE)=0,"",CEILING(K87*CEILING(MAX(OFFSET(J87,M87,0),OFFSET(I87,M87,0)),roundto),roundto)+add_margin)) -> 4010000 | M87: =IF(INDIRECT("Calendar!E"&MATCH($A87,Calendar!A:A,0)-1),0,IF(INDIRECT("Calendar!E"&MATCH($A87,Calendar!A:A,0)-2),1,2)) -> 0
A88: 2025-06-17 | B88: 2460140 | C88: 2054479 | D88: 2460140 | E88: 2054479 | F88: 767670.91 | G88: 547713.4694 | H88: 211 | I88: 1753555.155 | J88: 3861900.8 | K88: =IF($A89="","",IF($H$3="YES",VLOOKUP(OFFSET(A89,M88,0),Calendar!$A$2:$C$10000,3,FALSE),1)) -> 1 | L88: =IF(A89="","",IF(VLOOKUP(A88,Calendar!A:E,5,FALSE)=0,"",CEILING(K88*CEILING(MAX(OFFSET(J88,M88,0),OFFSET(I88,M88,0)),roundto),roundto)+add_margin)) -> 3920000 | M88: =IF(INDIRECT("Calendar!E"&MATCH($A88,Calendar!A:A,0)-1),0,IF(INDIRECT("Calendar!E"&MATCH($A88,Calendar!A:A,0)-2),1,2)) -> 0
A89: 2025-06-16 | B89: 2470628 | C89: 761079 | D89: 2470628 | E89: 761079 | F89: 762002.0047 | G89: 550173.4755 | H89: 211 | I89: 1752314.261 | J89: 3861900.8 | K89: =IF($A90="","",IF($H$3="YES",VLOOKUP(OFFSET(A90,M89,0),Calendar!$A$2:$C$10000,3,FALSE),1)) -> 1 | L89: =IF(A90="","",IF(VLOOKUP(A89,Calendar!A:E,5,FALSE)=0,"",CEILING(K89*CEILING(MAX(OFFSET(J89,M89,0),OFFSET(I89,M89,0)),roundto),roundto)+add_margin)) -> 3920000 | M89: =IF(INDIRECT("Calendar!E"&MATCH($A89,Calendar!A:A,0)-1),0,IF(INDIRECT("Calendar!E"&MATCH($A89,Calendar!A:A,0)-2),1,2)) -> 0
A90: 2025-06-13 | B90: 1216464 | C90: 546597 | D90: =IF(B90>minIMSM,B90,"") -> 1216464 | E90: 546597 | F90: 760813.4429 | G90: 549670.2023 | H90: 210 | I90: 1750219.807 | J90: 3861900.8 | K90: =IF($A91="","",IF($H$3="YES",VLOOKUP(OFFSET(A91,M90,0),Calendar!$A$2:$C$10000,3,FALSE),1)) -> 1 | L90: =IF(A91="","",IF(VLOOKUP(A90,Calendar!A:E,5,FALSE)=0,"",CEILING(K90*CEILING(MAX(OFFSET(J90,M90,0),OFFSET(I90,M90,0)),roundto),roundto)+add_margin)) -> 3920000 | M90: =IF(INDIRECT("Calendar!E"&MATCH($A90,Calendar!A:A,0)-1),0,IF(INDIRECT("Calendar!E"&MATCH($A90,Calendar!A:A,0)-2),1,2)) -> 0
A91: 2025-06-12 | B91: 1345630 | C91: 880627 | D91: 1345630 | E91: 880627 | F91: 754949.019 | G91: 546043.0994 | H91: 210 | I91: 1737826.598 | J91: 3861900.8 | K91: =IF($A92="","",IF($H$3="YES",VLOOKUP(OFFSET(A92,M91,0),Calendar!$A$2:$C$10000,3,FALSE),1)) -> 1 | L91: =IF(A92="","",IF(VLOOKUP(A91,Calendar!A:E,5,FALSE)=0,"",CEILING(K91*CEILING(MAX(OFFSET(J91,M91,0),OFFSET(I91,M91,0)),roundto),roundto)+add_margin)) -> 3920000 | M91: =IF(INDIRECT("Calendar!E"&MATCH($A91,Calendar!A:A,0)-1),0,IF(INDIRECT("Calendar!E"&MATCH($A91,Calendar!A:A,0)-2),1,2)) -> 0
A92: 2025-06-11 | B92: 1603548 | C92: 834068 | D92: 1603548 | E92: 834068 | F92: 752042.3923 | G92: 534055.7338 | H92: 209 | I92: 1713342.713 | J92: 3569328 | K92: =IF($A93="","",IF($H$3="YES",VLOOKUP(OFFSET(A93,M92,0),Calendar!$A$2:$C$10000,3,FALSE),1)) -> 1 | L92: =IF(A93="","",IF(VLOOKUP(A92,Calendar!A:E,5,FALSE)=0,"",CEILING(K92*CEILING(MAX(OFFSET(J92,M92,0),OFFSET(I92,M92,0)),roundto),roundto)+add_margin)) -> 3620000 | M92: =IF(INDIRECT("Calendar!E"&MATCH($A92,Calendar!A:A,0)-1),0,IF(INDIRECT("Calendar!E"&MATCH($A92,Calendar!A:A,0)-2),1,2)) -> 0
A93: 2025-06-10 | B93: 2413688 | C93: 1885322 | D93: 2413688 | E93: 1885322 | F93: 737364.351 | G93: 502948.8826 | H93: 208 | I93: 1642672.34 | J93: 3999868.8 | K93: =IF($A94="","",IF($H$3="YES",VLOOKUP(OFFSET(A94,M93,0),Calendar!$A$2:$C$10000,3,FALSE),1)) -> 1 | L93: =IF(A94="","",IF(VLOOKUP(A93,Calendar!A:E,5,FALSE)=0,"",CEILING(K93*CEILING(MAX(OFFSET(J93,M93,0),OFFSET(I93,M93,0)),roundto),roundto)+add_margin)) -> 4050000 | M93: =IF(INDIRECT("Calendar!E"&MATCH($A93,Calendar!A:A,0)-1),0,IF(INDIRECT("Calendar!E"&MATCH($A93,Calendar!A:A,0)-2),1,2)) -> 0
A94: 2025-06-09 | B94: 2224344 | C94: 304591 | D94: 2224344 | E94: 304591 | F94: 738256.8357 | G94: 503519.3607 | H94: 207 | I94: 1644591.685 | J94: 3999868.8 | K94: =IF($A95="","",IF($H$3="YES",VLOOKUP(OFFSET(A95,M94,0),Calendar!$A$2:$C$10000,3,FALSE),1)) -> 1 | L94: =IF(A95="","",IF(VLOOKUP(A94,Calendar!A:E,5,FALSE)=0,"",CEILING(K94*CEILING(MAX(OFFSET(J94,M94,0),OFFSET(I94,M94,0)),roundto),roundto)+add_margin)) -> 4050000 | M94: =IF(INDIRECT("Calendar!E"&MATCH($A94,Calendar!A:A,0)-1),0,IF(INDIRECT("Calendar!E"&MATCH($A94,Calendar!A:A,0)-2),1,2)) -> 0
A95: 2025-06-06 | B95: 872389 | C95: 624360 | D95: 872389 | E95: 624360 | F95: 736363.9417 | G95: 502505.1992 | H95: 206 | I95: 1640873.3 | J95: 3999868.8 | K95: =IF($A96="","",IF($H$3="YES",VLOOKUP(OFFSET(A96,M95,0),Calendar!$A$2:$C$10000,3,FALSE),1)) -> 1 | L95: =IF(A96="","",IF(VLOOKUP(A95,Calendar!A:E,5,FALSE)=0,"",CEILING(K95*CEILING(MAX(OFFSET(J95,M95,0),OFFSET(I95,M95,0)),roundto),roundto)+add_margin)) -> 4050000 | M95: =IF(INDIRECT("Calendar!E"&MATCH($A95,Calendar!A:A,0)-1),0,IF(INDIRECT("Calendar!E"&MATCH($A95,Calendar!A:A,0)-2),1,2)) -> 0
A96: 2025-06-05 | B96: 1341073 | C96: 837240 | D96: 1341073 | E96: 837240 | F96: 732342.1756 | G96: 507884.3331 | H96: 205 | I96: 1646533.975 | J96: 3999868.8 | K96: =IF($A97="","",IF($H$3="YES",VLOOKUP(OFFSET(A97,M96,0),Calendar!$A$2:$C$10000,3,FALSE),1)) -> 1 | L96: =IF(A97="","",IF(VLOOKUP(A96,Calendar!A:E,5,FALSE)=0,"",CEILING(K96*CEILING(MAX(OFFSET(J96,M96,0),OFFSET(I96,M96,0)),roundto),roundto)+add_margin)) -> 4050000 | M96: =IF(INDIRECT("Calendar!E"&MATCH($A96,Calendar!A:A,0)-1),0,IF(INDIRECT("Calendar!E"&MATCH($A96,Calendar!A:A,0)-2),1,2)) -> 0
A97: 2025-06-04 | B97: 968244 | C97: 244658 | D97: 968244 | E97: 244658 | F97: 734603.6373 | G97: 507091.1651 | H97: 204 | I97: 1647367.734 | J97: 3999868.8 | K97: =IF($A98="","",IF($H$3="YES",VLOOKUP(OFFSET(A98,M97,0),Calendar!$A$2:$C$10000,3,FALSE),1)) -> 1 | L97: =IF(A98="","",IF(VLOOKUP(A97,Calendar!A:E,5,FALSE)=0,"",CEILING(K97*CEILING(MAX(OFFSET(J97,M97,0),OFFSET(I97,M97,0)),roundto),roundto)+add_margin)) -> 4050000 | M97: =IF(INDIRECT("Calendar!E"&MATCH($A97,Calendar!A:A,0)-1),0,IF(INDIRECT("Calendar!E"&MATCH($A97,Calendar!A:A,0)-2),1,2)) -> 0
A98: 2025-06-03 | B98: 1968512 | C98: 1942166 | D98: 1968512 | E98: 1942166 | F98: 719799.2167 | G98: 468663.1127 | H98: 203 | I98: 1563392.82 | J98: 3999868.8 | K98: =IF($A99="","",IF($H$3="YES",VLOOKUP(OFFSET(A99,M98,0),Calendar!$A$2:$C$10000,3,FALSE),1)) -> 1 | L98: =IF(A99="","",IF(VLOOKUP(A98,Calendar!A:E,5,FALSE)=0,"",CEILING(K98*CEILING(MAX(OFFSET(J98,M98,0),OFFSET(I98,M98,0)),roundto),roundto)+add_margin)) -> 4050000 | M98: =IF(INDIRECT("Calendar!E"&MATCH($A98,Calendar!A:A,0)-1),0,IF(INDIRECT("Calendar!E"&MATCH($A98,Calendar!A:A,0)-2),1,2)) -> 0
A99: 2025-06-02 | B99: 2230830 | C99: 433095 | D99: 2230830 | E99: 433095 | F99: 720057.6584 | G99: 469711.9025 | H99: 202 | I99: 1565539.083 | J99: 3999868.8 | K99: =IF($A100="","",IF($H$3="YES",VLOOKUP(OFFSET(A100,M99,0),Calendar!$A$2:$C$10000,3,FALSE),1)) -> 1 | L99: =IF(A100="","",IF(VLOOKUP(A99,Calendar!A:E,5,FALSE)=0,"",CEILING(K99*CEILING(MAX(OFFSET(J99,M99,0),OFFSET(I99,M99,0)),roundto),roundto)+add_margin)) -> 4050000 | M99: =IF(INDIRECT("Calendar!E"&MATCH($A99,Calendar!A:A,0)-1),0,IF(INDIRECT("Calendar!E"&MATCH($A99,Calendar!A:A,0)-2),1,2)) -> 0
A100: 2025-05-30 | B100: 946304 | C100: 711805 | D100: 946304 | E100: 711805 | F100: 717031.4527 | G100: 468332.629 | H100: 201 | I100: 1560030.185 | J100: 3999868.8 | K100: =IF($A101="","",IF($H$3="YES",VLOOKUP(OFFSET(A101,M100,0),Calendar!$A$2:$C$10000,3,FALSE),1)) -> 1 | L100: =IF(A101="","",IF(VLOOKUP(A100,Calendar!A:E,5,FALSE)=0,"",CEILING(K100*CEILING(MAX(OFFSET(J100,M100,0),OFFSET(I100,M100,0)),roundto),roundto)+add_margin)) -> 4050000 | M100: =IF(INDIRECT("Calendar!E"&MATCH($A100,Calendar!A:A,0)-1),0,IF(INDIRECT("Calendar!E"&MATCH($A100,Calendar!A:A,0)-2),1,2)) -> 0
A101: 2025-05-29 | B101: 1317770 | C101: 701250 | D101: 1317770 | E101: 701250 | F101: 715143.585 | G101: 472276.9152 | H101: 200 | I101: 1565242.032 | J101: 3999868.8 | K101: =IF($A102="","",IF($H$3="YES",VLOOKUP(OFFSET(A102,M101,0),Calendar!$A$2:$C$10000,3,FALSE),1)) -> 1 | L101: =IF(A102="","",IF(VLOOKUP(A101,Calendar!A:E,5,FALSE)=0,"",CEILING(K101*CEILING(MAX(OFFSET(J101,M101,0),OFFSET(I101,M101,0)),roundto),roundto)+add_margin)) -> 4050000 | M101: =IF(INDIRECT("Calendar!E"&MATCH($A101,Calendar!A:A,0)-1),0,IF(INDIRECT("Calendar!E"&MATCH($A101,Calendar!A:A,0)-2),1,2)) -> 0
A102: 2025-05-28 | B102: 803357 | C102: 410002 | D102: 803357 | E102: 410002 | F102: 715923.608 | G102: 472389.5496 | H102: 199 | I102: 1566224.797 | J102: 3999868.8 | K102: =IF($A103="","",IF($H$3="YES",VLOOKUP(OFFSET(A103,M102,0),Calendar!$A$2:$C$10000,3,FALSE),1)) -> 1 | L102: =IF(A103="","",IF(VLOOKUP(A102,Calendar!A:E,5,FALSE)=0,"",CEILING(K102*CEILING(MAX(OFFSET(J102,M102,0),OFFSET(I102,M102,0)),roundto),roundto)+add_margin)) -> 4050000 | M102: =IF(INDIRECT("Calendar!E"&MATCH($A102,Calendar!A:A,0)-1),0,IF(INDIRECT("Calendar!E"&MATCH($A102,Calendar!A:A,0)-2),1,2)) -> 0
A103: 2025-05-27 | B103: 1177722 | C103: 1027805 | D103: 1177722 | E103: 1027805 | F103: 711757.0051 | G103: 477109.4958 | H103: 198 | I103: 1570554.098 | J103: 3999868.8 | K103: =IF($A104="","",IF($H$3="YES",VLOOKUP(OFFSET(A104,M103,0),Calendar!$A$2:$C$10000,3,FALSE),1)) -> 1 | L103: =IF(A104="","",IF(VLOOKUP(A103,Calendar!A:E,5,FALSE)=0,"",CEILING(K103*CEILING(MAX(OFFSET(J103,M103,0),OFFSET(I103,M103,0)),roundto),roundto)+add_margin)) -> 4050000 | M103: =IF(INDIRECT("Calendar!E"&MATCH($A103,Calendar!A:A,0)-1),0,IF(INDIRECT("Calendar!E"&MATCH($A103,Calendar!A:A,0)-2),1,2)) -> 0
A104: 2025-05-26 | B104: 729622 | C104: -211009 | D104: 729622 | F104: 708300.255 | G104: 477891.8567 | H104: 200 | I104: 1568505.597 | J104: 3999868.8 | K104: =IF($A105="","",IF($H$3="YES",VLOOKUP(OFFSET(A105,M104,0),Calendar!$A$2:$C$10000,3,FALSE),1)) -> 1 | L104: =IF(A105="","",IF(VLOOKUP(A104,Calendar!A:E,5,FALSE)=0,"",CEILING(K104*CEILING(MAX(OFFSET(J104,M104,0),OFFSET(I104,M104,0)),roundto),roundto)+add_margin)) -> 4050000 | M104: =IF(INDIRECT("Calendar!E"&MATCH($A104,Calendar!A:A,0)-1),0,IF(INDIRECT("Calendar!E"&MATCH($A104,Calendar!A:A,0)-2),1,2)) -> 0
A105: 2025-05-23 | B105: -37355 | C105: 166244 | E105: 166244 | F105: 710345.26 | G105: 477236.9733 | H105: 200 | I105: 1569371.812 | J105: 3999868.8 | K105: =IF($A106="","",IF($H$3="YES",VLOOKUP(OFFSET(A106,M105,0),Calendar!$A$2:$C$10000,3,FALSE),1)) -> 1 | L105: =IF(A106="","",IF(VLOOKUP(A105,Calendar!A:E,5,FALSE)=0,"",CEILING(K105*CEILING(MAX(OFFSET(J105,M105,0),OFFSET(I105,M105,0)),roundto),roundto)+add_margin)) -> 4050000 | M105: =IF(INDIRECT("Calendar!E"&MATCH($A105,Calendar!A:A,0)-1),0,IF(INDIRECT("Calendar!E"&MATCH($A105,Calendar!A:A,0)-2),1,2)) -> 0
A106: 2025-05-22 | B106: 526693 | C106: 406053 | D106: 526693 | E106: 406053 | F106: 708906.015 | G106: 479966.6551 | H106: 200 | I106: 1572845.994 | J106: 3999868.8 | K106: =IF($A107="","",IF($H$3="YES",VLOOKUP(OFFSET(A107,M106,0),Calendar!$A$2:$C$10000,3,FALSE),1)) -> 1 | L106: =IF(A107="","",IF(VLOOKUP(A106,Calendar!A:E,5,FALSE)=0,"",CEILING(K106*CEILING(MAX(OFFSET(J106,M106,0),OFFSET(I106,M106,0)),roundto),roundto)+add_margin)) -> 4050000 | M106: =IF(INDIRECT("Calendar!E"&MATCH($A106,Calendar!A:A,0)-1),0,IF(INDIRECT("Calendar!E"&MATCH($A106,Calendar!A:A,0)-2),1,2)) -> 0
A107: 2025-05-21 | B107: 742408 | C107: 389214 | D107: 742408 | E107: 389214 | F107: 706266.895 | G107: 476296.2797 | H107: 200 | I107: 1563600.198 | J107: 3999868.8 | K107: =IF($A108="","",IF($H$3="YES",VLOOKUP(OFFSET(A108,M107,0),Calendar!$A$2:$C$10000,3,FALSE),1)) -> 1 | L107: =IF(A108="","",IF(VLOOKUP(A107,Calendar!A:E,5,FALSE)=0,"",CEILING(K107*CEILING(MAX(OFFSET(J107,M107,0),OFFSET(I107,M107,0)),roundto),roundto)+add_margin)) -> 4050000 | M107: =IF(INDIRECT("Calendar!E"&MATCH($A107,Calendar!A:A,0)-1),0,IF(INDIRECT("Calendar!E"&MATCH($A107,Calendar!A:A,0)-2),1,2)) -> 0
A108: 2025-05-20 | B108: 1504967 | C108: 1133773 | D108: 1504967 | E108: 1133773 | F108: 705032.61 | G108: 478174.3221 | H108: 200 | I108: 1565746.39 | J108: 3999868.8 | K108: =IF($A109="","",IF($H$3="YES",VLOOKUP(OFFSET(A109,M108,0),Calendar!$A$2:$C$10000,3,FALSE),1)) -> 1 | L108: =IF(A109="","",IF(VLOOKUP(A108,Calendar!A:E,5,FALSE)=0,"",CEILING(K108*CEILING(MAX(OFFSET(J108,M108,0),OFFSET(I108,M108,0)),roundto),roundto)+add_margin)) -> 4050000 | M108: =IF(INDIRECT("Calendar!E"&MATCH($A108,Calendar!A:A,0)-1),0,IF(INDIRECT("Calendar!E"&MATCH($A108,Calendar!A:A,0)-2),1,2)) -> 0
A109: 2025-05-19 | B109: 1277345 | C109: 207172 | D109: 1277345 | E109: 207172 | F109: 713675.32 | G109: 479747.2769 | H109: 200 | I109: 1577220.418 | J109: 3999868.8 | K109: =IF($A110="","",IF($H$3="YES",VLOOKUP(OFFSET(A110,M109,0),Calendar!$A$2:$C$10000,3,FALSE),1)) -> 1 | L109: =IF(A110="","",IF(VLOOKUP(A109,Calendar!A:E,5,FALSE)=0,"",CEILING(K109*CEILING(MAX(OFFSET(J109,M109,0),OFFSET(I109,M109,0)),roundto),roundto)+add_margin)) -> 4050000 | M109: =IF(INDIRECT("Calendar!E"&MATCH($A109,Calendar!A:A,0)-1),0,IF(INDIRECT("Calendar!E"&MATCH($A109,Calendar!A:A,0)-2),1,2)) -> 0
A110: 2025-05-16 | B110: 864398 | C110: 716258 | D110: 864398 | E110: 716258 | F110: 711714.7688 | G110: 484867.9865 | H110: 199 | I110: 1584477.145 | J110: 3999868.8 | K110: =IF($A111="","",IF($H$3="YES",VLOOKUP(OFFSET(A111,M110,0),Calendar!$A$2:$C$10000,3,FALSE),1)) -> 1 | L110: =IF(A111="","",IF(VLOOKUP(A110,Calendar!A:E,5,FALSE)=0,"",CEILING(K110*CEILING(MAX(OFFSET(J110,M110,0),OFFSET(I110,M110,0)),roundto),roundto)+add_margin)) -> 4050000 | M110: =IF(INDIRECT("Calendar!E"&MATCH($A110,Calendar!A:A,0)-1),0,IF(INDIRECT("Calendar!E"&MATCH($A110,Calendar!A:A,0)-2),1,2)) -> 0
A111: 2025-05-15 | B111: 428758 | C111: -265008 | D111: 428758 | F111: 712893.54 | G111: 483883.7686 | H111: 200 | I111: 1583884.324 | J111: 3999868.8 | K111: =IF($A112="","",IF($H$3="YES",VLOOKUP(OFFSET(A112,M111,0),Calendar!$A$2:$C$10000,3,FALSE),1)) -> 1 | L111: =IF(A112="","",IF(VLOOKUP(A111,Calendar!A:E,5,FALSE)=0,"",CEILING(K111*CEILING(MAX(OFFSET(J111,M111,0),OFFSET(I111,M111,0)),roundto),roundto)+add_margin)) -> 4050000 | M111: =IF(INDIRECT("Calendar!E"&MATCH($A111,Calendar!A:A,0)-1),0,IF(INDIRECT("Calendar!E"&MATCH($A111,Calendar!A:A,0)-2),1,2)) -> 0
A112: 2025-05-14 | B112: 459716 | C112: 577096 | D112: 459716 | E112: 577096 | F112: 710132.95 | G112: 477589.3504 | H112: 200 | I112: 1569793.781 | J112: 3999868.8 | K112: =IF($A113="","",IF($H$3="YES",VLOOKUP(OFFSET(A113,M112,0),Calendar!$A$2:$C$10000,3,FALSE),1)) -> 1 | L112: =IF(A113="","",IF(VLOOKUP(A112,Calendar!A:E,5,FALSE)=0,"",CEILING(K112*CEILING(MAX(OFFSET(J112,M112,0),OFFSET(I112,M112,0)),roundto),roundto)+add_margin)) -> 4050000 | M112: =IF(INDIRECT("Calendar!E"&MATCH($A112,Calendar!A:A,0)-1),0,IF(INDIRECT("Calendar!E"&MATCH($A112,Calendar!A:A,0)-2),1,2)) -> 0
A113: 2025-05-13 | B113: 1663896 | C113: 1131865 | D113: 1663896 | E113: 1131865 | F113: 703069.32 | G113: 467944.6148 | H113: 200 | I113: 1545369.627 | J113: 3999868.8 | K113: =IF($A114="","",IF($H$3="YES",VLOOKUP(OFFSET(A114,M113,0),Calendar!$A$2:$C$10000,3,FALSE),1)) -> 1 | L113: =IF(A114="","",IF(VLOOKUP(A113,Calendar!A:E,5,FALSE)=0,"",CEILING(K113*CEILING(MAX(OFFSET(J113,M113,0),OFFSET(I113,M113,0)),roundto),roundto)+add_margin)) -> 4050000 | M113: =IF(INDIRECT("Calendar!E"&MATCH($A113,Calendar!A:A,0)-1),0,IF(INDIRECT("Calendar!E"&MATCH($A113,Calendar!A:A,0)-2),1,2)) -> 0
A114: 2025-05-12 | B114: 1638245 | C114: 548429 | D114: 1638245 | E114: 548429 | F114: 704100.72 | G114: 469353.0956 | H114: 200 | I114: 1548936.292 | J114: 3999868.8 | K114: =IF($A115="","",IF($H$3="YES",VLOOKUP(OFFSET(A115,M114,0),Calendar!$A$2:$C$10000,3,FALSE),1)) -> 1 | L114: =IF(A115="","",IF(VLOOKUP(A114,Calendar!A:E,5,FALSE)=0,"",CEILING(K114*CEILING(MAX(OFFSET(J114,M114,0),OFFSET(I114,M114,0)),roundto),roundto)+add_margin)) -> 4050000 | M114: =IF(INDIRECT("Calendar!E"&MATCH($A114,Calendar!A:A,0)-1),0,IF(INDIRECT("Calendar!E"&MATCH($A114,Calendar!A:A,0)-2),1,2)) -> 0
A115: 2025-05-09 | B115: 952739 | C115: 692556 | D115: 952739 | E115: 692556 | F115: 698443.98 | G115: 469706.136 | H115: 200 | I115: 1543915.025 | J115: 3999868.8 | K115: =IF($A116="","",IF($H$3="YES",VLOOKUP(OFFSET(A116,M115,0),Calendar!$A$2:$C$10000,3,FALSE),1)) -> 1 | L115: =IF(A116="","",IF(VLOOKUP(A115,Calendar!A:E,5,FALSE)=0,"",CEILING(K115*CEILING(MAX(OFFSET(J115,M115,0),OFFSET(I115,M115,0)),roundto),roundto)+add_margin)) -> 4050000 | M115: =IF(INDIRECT("Calendar!E"&MATCH($A115,Calendar!A:A,0)-1),0,IF(INDIRECT("Calendar!E"&MATCH($A115,Calendar!A:A,0)-2),1,2)) -> 0
A116: 2025-05-08 | B116: 1187990 | C116: 588159 | D116: 1187990 | E116: 588159 | F116: 693687.73 | G116: 471908.8415 | H116: 200 | I116: 1543123.645 | J116: 3999868.8 | K116: =IF($A117="","",IF($H$3="YES",VLOOKUP(OFFSET(A117,M116,0),Calendar!$A$2:$C$10000,3,FALSE),1)) -> 1 | L116: =IF(A117="","",IF(VLOOKUP(A116,Calendar!A:E,5,FALSE)=0,"",CEILING(K116*CEILING(MAX(OFFSET(J116,M116,0),OFFSET(I116,M116,0)),roundto),roundto)+add_margin)) -> 4050000 | M116: =IF(INDIRECT("Calendar!E"&MATCH($A116,Calendar!A:A,0)-1),0,IF(INDIRECT("Calendar!E"&MATCH($A116,Calendar!A:A,0)-2),1,2)) -> 0
A117: 2025-05-07 | B117: 1005080 | C117: 511472 | D117: 1005080 | E117: 511472 | F117: 689373.12 | G117: 464546.2299 | H117: 200 | I117: 1525556.334 | J117: 3999868.8 | K117: =IF($A118="","",IF($H$3="YES",VLOOKUP(OFFSET(A118,M117,0),Calendar!$A$2:$C$10000,3,FALSE),1)) -> 1 | L117: =IF(A118="","",IF(VLOOKUP(A117,Calendar!A:E,5,FALSE)=0,"",CEILING(K117*CEILING(MAX(OFFSET(J117,M117,0),OFFSET(I117,M117,0)),roundto),roundto)+add_margin)) -> 4050000 | M117: =IF(INDIRECT("Calendar!E"&MATCH($A117,Calendar!A:A,0)-1),0,IF(INDIRECT("Calendar!E"&MATCH($A117,Calendar!A:A,0)-2),1,2)) -> 0
A118: 2025-05-06 | B118: 1878893 | C118: 1455454 | D118: 1878893 | E118: 1455454 | F118: 678079.915 | G118: 453659.8749 | H118: 200 | I118: 1494667.69 | J118: 3999868.8 | K118: =IF($A119="","",IF($H$3="YES",VLOOKUP(OFFSET(A119,M118,0),Calendar!$A$2:$C$10000,3,FALSE),1)) -> 1 | L118: =IF(A119="","",IF(VLOOKUP(A118,Calendar!A:E,5,FALSE)=0,"",CEILING(K118*CEILING(MAX(OFFSET(J118,M118,0),OFFSET(I118,M118,0)),roundto),roundto)+add_margin)) -> 4050000 | M118: =IF(INDIRECT("Calendar!E"&MATCH($A118,Calendar!A:A,0)-1),0,IF(INDIRECT("Calendar!E"&MATCH($A118,Calendar!A:A,0)-2),1,2)) -> 0
A119: 2025-05-05 | B119: 1553338 | C119: 159177 | D119: 1553338 | E119: 159177 | F119: 678165.375 | G119: 452702.6409 | H119: 200 | I119: 1493030.129 | J119: 3999868.8 | K119: =IF($A120="","",IF($H$3="YES",VLOOKUP(OFFSET(A120,M119,0),Calendar!$A$2:$C$10000,3,FALSE),1)) -> 1 | L119: =IF(A120="","",IF(VLOOKUP(A119,Calendar!A:E,5,FALSE)=0,"",CEILING(K119*CEILING(MAX(OFFSET(J119,M119,0),OFFSET(I119,M119,0)),roundto),roundto)+add_margin)) -> 4050000 | M119: =IF(INDIRECT("Calendar!E"&MATCH($A119,Calendar!A:A,0)-1),0,IF(INDIRECT("Calendar!E"&MATCH($A119,Calendar!A:A,0)-2),1,2)) -> 0
A120: 2025-05-02 | B120: 749530 | C120: 627048 | D120: 749530 | E120: 627048 | F120: 675728.206 | G120: 449776.6959 | H120: 199 | I120: 1485326.259 | J120: 3999868.8 | K120: =IF($A121="","",IF($H$3="YES",VLOOKUP(OFFSET(A121,M120,0),Calendar!$A$2:$C$10000,3,FALSE),1)) -> 1.3 | L120: =IF(A121="","",IF(VLOOKUP(A120,Calendar!A:E,5,FALSE)=0,"",CEILING(K120*CEILING(MAX(OFFSET(J120,M120,0),OFFSET(I120,M120,0)),roundto),roundto)+add_margin)) -> 5250000 | M120: =IF(INDIRECT("Calendar!E"&MATCH($A120,Calendar!A:A,0)-1),0,IF(INDIRECT("Calendar!E"&MATCH($A120,Calendar!A:A,0)-2),1,2)) -> 1
A121: 2025-05-01 | B121: 1352378 | C121: 816264 | D121: 1352378 | E121: 816264 | F121: 668781.2915 | G121: 444865.5615 | H121: 199 | I121: 1469539.302 | J121: 3999868.8 | K121: =IF($A122="","",IF($H$3="YES",VLOOKUP(OFFSET(A122,M121,0),Calendar!$A$2:$C$10000,3,FALSE),1)) -> 1.3 | L121: =IF(A122="","",IF(VLOOKUP(A121,Calendar!A:E,5,FALSE)=0,"",CEILING(K121*CEILING(MAX(OFFSET(J121,M121,0),OFFSET(I121,M121,0)),roundto),roundto)+add_margin)) ->  | M121: =IF(INDIRECT("Calendar!E"&MATCH($A121,Calendar!A:A,0)-1),0,IF(INDIRECT("Calendar!E"&MATCH($A121,Calendar!A:A,0)-2),1,2)) -> 0
A122: 2025-04-30 | B122: 1438224 | C122: 737263 | D122: 1438224 | E122: 737263 | F122: 663156.7035 | G122: 421296.2732 | H122: 199 | I122: 1421489.995 | J122: 3006888 | K122: =IF($A123="","",IF($H$3="YES",VLOOKUP(OFFSET(A123,M122,0),Calendar!$A$2:$C$10000,3,FALSE),1)) -> 1 | L122: =IF(A123="","",IF(VLOOKUP(A122,Calendar!A:E,5,FALSE)=0,"",CEILING(K122*CEILING(MAX(OFFSET(J122,M122,0),OFFSET(I122,M122,0)),roundto),roundto)+add_margin)) -> 3060000 | M122: =IF(INDIRECT("Calendar!E"&MATCH($A122,Calendar!A:A,0)-1),0,IF(INDIRECT("Calendar!E"&MATCH($A122,Calendar!A:A,0)-2),1,2)) -> 0
A123: 2025-04-29 | B123: 2499918 | C123: 1851718 | D123: 2499918 | E123: 1851718 | F123: 647188.201 | G123: 384867.6053 | H123: 199 | I123: 1339949.891 | J123: 1634692.8 | K123: =IF($A124="","",IF($H$3="YES",VLOOKUP(OFFSET(A124,M123,0),Calendar!$A$2:$C$10000,3,FALSE),1)) -> 1 | L123: =IF(A124="","",IF(VLOOKUP(A123,Calendar!A:E,5,FALSE)=0,"",CEILING(K123*CEILING(MAX(OFFSET(J123,M123,0),OFFSET(I123,M123,0)),roundto),roundto)+add_margin)) -> 1690000 | M123: =IF(INDIRECT("Calendar!E"&MATCH($A123,Calendar!A:A,0)-1),0,IF(INDIRECT("Calendar!E"&MATCH($A123,Calendar!A:A,0)-2),1,2)) -> 0
A124: 2025-04-28 | B124: 1879305 | C124: 140506 | D124: 1879305 | E124: 140506 | F124: 647724.804 | G124: 383605.0711 | H124: 199 | I124: 1338213.932 | J124: 1634692.8 | K124: =IF($A125="","",IF($H$3="YES",VLOOKUP(OFFSET(A125,M124,0),Calendar!$A$2:$C$10000,3,FALSE),1)) -> 1 | L124: =IF(A125="","",IF(VLOOKUP(A124,Calendar!A:E,5,FALSE)=0,"",CEILING(K124*CEILING(MAX(OFFSET(J124,M124,0),OFFSET(I124,M124,0)),roundto),roundto)+add_margin)) -> 1690000 | M124: =IF(INDIRECT("Calendar!E"&MATCH($A124,Calendar!A:A,0)-1),0,IF(INDIRECT("Calendar!E"&MATCH($A124,Calendar!A:A,0)-2),1,2)) -> 0
A125: 2025-04-25 | B125: 541524 | C125: 437428 | D125: 541524 | E125: 437428 | F125: 646664.0101 | G125: 387503.9942 | H125: 198 | I125: 1344171.2 | J125: 1634692.8 | K125: =IF($A126="","",IF($H$3="YES",VLOOKUP(OFFSET(A126,M125,0),Calendar!$A$2:$C$10000,3,FALSE),1)) -> 1 | L125: =IF(A126="","",IF(VLOOKUP(A125,Calendar!A:E,5,FALSE)=0,"",CEILING(K125*CEILING(MAX(OFFSET(J125,M125,0),OFFSET(I125,M125,0)),roundto),roundto)+add_margin)) -> 1690000 | M125: =IF(INDIRECT("Calendar!E"&MATCH($A125,Calendar!A:A,0)-1),0,IF(INDIRECT("Calendar!E"&MATCH($A125,Calendar!A:A,0)-2),1,2)) -> 0
A126: 2025-04-24 | B126: 669356 | C126: 249022 | D126: 669356 | E126: 249022 | F126: 647637.3401 | G126: 386987.3009 | H126: 197 | I126: 1344214.482 | J126: 1634692.8 | K126: =IF($A127="","",IF($H$3="YES",VLOOKUP(OFFSET(A127,M126,0),Calendar!$A$2:$C$10000,3,FALSE),1)) -> 1 | L126: =IF(A127="","",IF(VLOOKUP(A126,Calendar!A:E,5,FALSE)=0,"",CEILING(K126*CEILING(MAX(OFFSET(J126,M126,0),OFFSET(I126,M126,0)),roundto),roundto)+add_margin)) -> 1690000 | M126: =IF(INDIRECT("Calendar!E"&MATCH($A126,Calendar!A:A,0)-1),0,IF(INDIRECT("Calendar!E"&MATCH($A126,Calendar!A:A,0)-2),1,2)) -> 0
A127: 2025-04-23 | B127: 819458 | C127: 613562 | D127: 819458 | E127: 613562 | F127: 642205.9543 | G127: 387582.8574 | H127: 197 | I127: 1339855.098 | J127: 1239851.2 | K127: =IF($A128="","",IF($H$3="YES",VLOOKUP(OFFSET(A128,M127,0),Calendar!$A$2:$C$10000,3,FALSE),1)) -> 1 | L127: =IF(A128="","",IF(VLOOKUP(A127,Calendar!A:E,5,FALSE)=0,"",CEILING(K127*CEILING(MAX(OFFSET(J127,M127,0),OFFSET(I127,M127,0)),roundto),roundto)+add_margin)) -> 1390000 | M127: =IF(INDIRECT("Calendar!E"&MATCH($A127,Calendar!A:A,0)-1),0,IF(INDIRECT("Calendar!E"&MATCH($A127,Calendar!A:A,0)-2),1,2)) -> 0
A128: 2025-04-22 | B128: 1021683 | C128: 514230 | D128: 1021683 | E128: 514230 | F128: 640485.5736 | G128: 393968.9468 | H128: 197 | I128: 1349629.678 | J128: 1239851.2 | K128: =IF($A129="","",IF($H$3="YES",VLOOKUP(OFFSET(A129,M128,0),Calendar!$A$2:$C$10000,3,FALSE),1)) -> 1.6 | L128: =IF(A129="","",IF(VLOOKUP(A128,Calendar!A:E,5,FALSE)=0,"",CEILING(K128*CEILING(MAX(OFFSET(J128,M128,0),OFFSET(I128,M128,0)),roundto),roundto)+add_margin)) -> 2210000 | M128: =IF(INDIRECT("Calendar!E"&MATCH($A128,Calendar!A:A,0)-1),0,IF(INDIRECT("Calendar!E"&MATCH($A128,Calendar!A:A,0)-2),1,2)) -> 2
A129: 2025-04-21 | B129: 488945 | C129: 55084 | D129: 488945 | E129: 55084 | F129: 643492.2437 | G129: 389293.476 | H129: 197 | I129: 1344220.5 | J129: 1239851.2 | K129: =IF($A130="","",IF($H$3="YES",VLOOKUP(OFFSET(A130,M129,0),Calendar!$A$2:$C$10000,3,FALSE),1)) -> 1.6 | L129: =IF(A130="","",IF(VLOOKUP(A129,Calendar!A:E,5,FALSE)=0,"",CEILING(K129*CEILING(MAX(OFFSET(J129,M129,0),OFFSET(I129,M129,0)),roundto),roundto)+add_margin)) ->  | M129: =IF(INDIRECT("Calendar!E"&MATCH($A129,Calendar!A:A,0)-1),0,IF(INDIRECT("Calendar!E"&MATCH($A129,Calendar!A:A,0)-2),1,2)) -> 1
A130: 2025-04-18 | B130: 40017 | C130: 141620 | D130: 40017 | E130: 141620 | F130: 645656.4337 | G130: 388924.5871 | H130: 196 | I130: 1345720.691 | J130: 1239851.2 | K130: =IF($A131="","",IF($H$3="YES",VLOOKUP(OFFSET(A131,M130,0),Calendar!$A$2:$C$10000,3,FALSE),1)) -> 1.6 | L130: =IF(A131="","",IF(VLOOKUP(A130,Calendar!A:E,5,FALSE)=0,"",CEILING(K130*CEILING(MAX(OFFSET(J130,M130,0),OFFSET(I130,M130,0)),roundto),roundto)+add_margin)) ->  | M130: =IF(INDIRECT("Calendar!E"&MATCH($A130,Calendar!A:A,0)-1),0,IF(INDIRECT("Calendar!E"&MATCH($A130,Calendar!A:A,0)-2),1,2)) -> 0
A131: 2025-04-17 | B131: 210667 | C131: 132976 | D131: 210667 | E131: 132976 | F131: 648236.2154 | G131: 387235.4119 | H131: 195 | I131: 1345259.957 | J131: 1224454.4 | K131: =IF($A132="","",IF($H$3="YES",VLOOKUP(OFFSET(A132,M131,0),Calendar!$A$2:$C$10000,3,FALSE),1)) -> 1.6 | L131: =IF(A132="","",IF(VLOOKUP(A131,Calendar!A:E,5,FALSE)=0,"",CEILING(K131*CEILING(MAX(OFFSET(J131,M131,0),OFFSET(I131,M131,0)),roundto),roundto)+add_margin)) -> 2210000 | M131: =IF(INDIRECT("Calendar!E"&MATCH($A131,Calendar!A:A,0)-1),0,IF(INDIRECT("Calendar!E"&MATCH($A131,Calendar!A:A,0)-2),1,2)) -> 0
A132: 2025-04-16 | B132: 774907 | C132: 765284 | D132: 774907 | E132: 765284 | F132: 644659.5077 | G132: 393806.1695 | H132: 195 | I132: 1353510.613 | J132: 556779.2 | K132: =IF($A133="","",IF($H$3="YES",VLOOKUP(OFFSET(A133,M132,0),Calendar!$A$2:$C$10000,3,FALSE),1)) -> 1 | L132: =IF(A133="","",IF(VLOOKUP(A132,Calendar!A:E,5,FALSE)=0,"",CEILING(K132*CEILING(MAX(OFFSET(J132,M132,0),OFFSET(I132,M132,0)),roundto),roundto)+add_margin)) -> 1410000 | M132: =IF(INDIRECT("Calendar!E"&MATCH($A132,Calendar!A:A,0)-1),0,IF(INDIRECT("Calendar!E"&MATCH($A132,Calendar!A:A,0)-2),1,2)) -> 0
A133: 2025-04-15 | B133: 388039 | C133: 21629 | D133: 388039 | E133: 21629 | F133: 652395.1237 | G133: 390217.351 | H133: 194 | I133: 1354786.356 | J133: 556779.2 | K133: =IF($A134="","",IF($H$3="YES",VLOOKUP(OFFSET(A134,M133,0),Calendar!$A$2:$C$10000,3,FALSE),1)) -> 1 | L133: =IF(A134="","",IF(VLOOKUP(A133,Calendar!A:E,5,FALSE)=0,"",CEILING(K133*CEILING(MAX(OFFSET(J133,M133,0),OFFSET(I133,M133,0)),roundto),roundto)+add_margin)) -> 1410000 | M133: =IF(INDIRECT("Calendar!E"&MATCH($A133,Calendar!A:A,0)-1),0,IF(INDIRECT("Calendar!E"&MATCH($A133,Calendar!A:A,0)-2),1,2)) -> 0
A134: 2025-04-14 | B134: 234630 | C134: -156649 | D134: 234630 | F134: 651740.9796 | G134: 393180.6962 | H134: 196 | I134: 1359466.233 | J134: 556779.2 | K134: =IF($A135="","",IF($H$3="YES",VLOOKUP(OFFSET(A135,M134,0),Calendar!$A$2:$C$10000,3,FALSE),1)) -> 1 | L134: =IF(A135="","",IF(VLOOKUP(A134,Calendar!A:E,5,FALSE)=0,"",CEILING(K134*CEILING(MAX(OFFSET(J134,M134,0),OFFSET(I134,M134,0)),roundto),roundto)+add_margin)) -> 1410000 | M134: =IF(INDIRECT("Calendar!E"&MATCH($A134,Calendar!A:A,0)-1),0,IF(INDIRECT("Calendar!E"&MATCH($A134,Calendar!A:A,0)-2),1,2)) -> 0
A135: 2025-04-11 | B135: -239525 | C135: 65098 | E135: 65098 | F135: 650266.0863 | G135: 393947.0758 | H135: 197 | I135: 1359370.823 | J135: 556779.2 | K135: =IF($A136="","",IF($H$3="YES",VLOOKUP(OFFSET(A136,M135,0),Calendar!$A$2:$C$10000,3,FALSE),1)) -> 1 | L135: =IF(A136="","",IF(VLOOKUP(A135,Calendar!A:E,5,FALSE)=0,"",CEILING(K135*CEILING(MAX(OFFSET(J135,M135,0),OFFSET(I135,M135,0)),roundto),roundto)+add_margin)) -> 1410000 | M135: =IF(INDIRECT("Calendar!E"&MATCH($A135,Calendar!A:A,0)-1),0,IF(INDIRECT("Calendar!E"&MATCH($A135,Calendar!A:A,0)-2),1,2)) -> 0
A136: 2025-04-10 | B136: -24234 | C136: 9461 | E136: 9461 | F136: 651545.2487 | G136: 390130.6978 | H136: 197 | I136: 1353780.505 | J136: 556779.2 | K136: =IF($A137="","",IF($H$3="YES",VLOOKUP(OFFSET(A137,M136,0),Calendar!$A$2:$C$10000,3,FALSE),1)) -> 1 | L136: =IF(A137="","",IF(VLOOKUP(A136,Calendar!A:E,5,FALSE)=0,"",CEILING(K136*CEILING(MAX(OFFSET(J136,M136,0),OFFSET(I136,M136,0)),roundto),roundto)+add_margin)) -> 1410000 | M136: =IF(INDIRECT("Calendar!E"&MATCH($A136,Calendar!A:A,0)-1),0,IF(INDIRECT("Calendar!E"&MATCH($A136,Calendar!A:A,0)-2),1,2)) -> 0
A137: 2025-04-09 | B137: -248581 | C137: -163220 | F137: 649754.7576 | G137: 390061.1367 | H137: 198 | I137: 1351864.804 | J137: 556779.2 | K137: =IF($A138="","",IF($H$3="YES",VLOOKUP(OFFSET(A138,M137,0),Calendar!$A$2:$C$10000,3,FALSE),1)) -> 1 | L137: =IF(A138="","",IF(VLOOKUP(A137,Calendar!A:E,5,FALSE)=0,"",CEILING(K137*CEILING(MAX(OFFSET(J137,M137,0),OFFSET(I137,M137,0)),roundto),roundto)+add_margin)) -> 1410000 | M137: =IF(INDIRECT("Calendar!E"&MATCH($A137,Calendar!A:A,0)-1),0,IF(INDIRECT("Calendar!E"&MATCH($A137,Calendar!A:A,0)-2),1,2)) -> 0
A138: 2025-04-08 | B138: -813705 | C138: -494548 | F138: 651524.4422 | G138: 390016.564 | H138: 199 | I138: 1353554.257 | J138: 556779.2 | K138: =IF($A139="","",IF($H$3="YES",VLOOKUP(OFFSET(A139,M138,0),Calendar!$A$2:$C$10000,3,FALSE),1)) -> 1 | L138: =IF(A139="","",IF(VLOOKUP(A138,Calendar!A:E,5,FALSE)=0,"",CEILING(K138*CEILING(MAX(OFFSET(J138,M138,0),OFFSET(I138,M138,0)),roundto),roundto)+add_margin)) -> 1410000 | M138: =IF(INDIRECT("Calendar!E"&MATCH($A138,Calendar!A:A,0)-1),0,IF(INDIRECT("Calendar!E"&MATCH($A138,Calendar!A:A,0)-2),1,2)) -> 0
A139: 2025-04-07 | B139: -857441 | C139: -175671 | E139: =IF(C139>minIMSM,C139,"") ->  | F139: =IF($A139="","",IFERROR((AVERAGE(E140,INDIRECT("D" & ROW(A141) & ":D" & ROW(A141) + window_size-2))),0)) -> 651165.835 | G139: 389718.7508 | H139: 200 | I139: =IF($A139="","",F139+alpha*G139) -> 1352659.586 | J139: =IF($A139="","",beta*MAX(E140,INDIRECT("B" & ROW(A141) & ":B" & ROW(A141) + window_size_max-2))) -> 556779.2 | K139: =IF($A140="","",IF($H$3="YES",VLOOKUP(OFFSET(A140,M139,0),Calendar!$A$2:$C$10000,3,FALSE),1)) -> 1 | L139: =IF(A140="","",IF(VLOOKUP(A139,Calendar!A:E,5,FALSE)=0,"",CEILING(K139*CEILING(MAX(OFFSET(J139,M139,0),OFFSET(I139,M139,0)),roundto),roundto)+add_margin)) -> 1410000 | M139: =IF(INDIRECT("Calendar!E"&MATCH($A139,Calendar!A:A,0)-1),0,IF(INDIRECT("Calendar!E"&MATCH($A139,Calendar!A:A,0)-2),1,2)) -> 0
A140: 2025-04-04 | B140: -215246 | C140: -50624 | F140: 651165.835 | G140: 389718.7508 | H140: 200 | I140: 1352659.586 | J140: 556779.2 | K140: =IF($A141="","",IF($H$3="YES",VLOOKUP(OFFSET(A141,M140,0),Calendar!$A$2:$C$10000,3,FALSE),1)) -> 1 | L140: =IF(A141="","",IF(VLOOKUP(A140,Calendar!A:E,5,FALSE)=0,"",CEILING(K140*CEILING(MAX(OFFSET(J140,M140,0),OFFSET(I140,M140,0)),roundto),roundto)+add_margin)) -> 1410000 | M140: =IF(INDIRECT("Calendar!E"&MATCH($A140,Calendar!A:A,0)-1),0,IF(INDIRECT("Calendar!E"&MATCH($A140,Calendar!A:A,0)-2),1,2)) -> 0
A141: 2025-04-03 | B141: -222707 | C141: -234024 | F141: 651165.835 | G141: 389718.7508 | H141: 200 | I141: 1352659.586 | J141: 556779.2 | K141: =IF($A142="","",IF($H$3="YES",VLOOKUP(OFFSET(A142,M141,0),Calendar!$A$2:$C$10000,3,FALSE),1)) -> 1 | L141: =IF(A142="","",IF(VLOOKUP(A141,Calendar!A:E,5,FALSE)=0,"",CEILING(K141*CEILING(MAX(OFFSET(J141,M141,0),OFFSET(I141,M141,0)),roundto),roundto)+add_margin)) -> 1410000 | M141: =IF(INDIRECT("Calendar!E"&MATCH($A141,Calendar!A:A,0)-1),0,IF(INDIRECT("Calendar!E"&MATCH($A141,Calendar!A:A,0)-2),1,2)) -> 0
A142: 2025-04-02 | B142: -841585 | C142: -616735 | F142: 648170.99 | G142: 390114.1662 | H142: 201 | I142: 1350376.489 | J142: 781470.4 | K142: =IF($A143="","",IF($H$3="YES",VLOOKUP(OFFSET(A143,M142,0),Calendar!$A$2:$C$10000,3,FALSE),1)) -> 1 | L142: =IF(A143="","",IF(VLOOKUP(A142,Calendar!A:E,5,FALSE)=0,"",CEILING(K142*CEILING(MAX(OFFSET(J142,M142,0),OFFSET(I142,M142,0)),roundto),roundto)+add_margin)) -> 1410000 | M142: =IF(INDIRECT("Calendar!E"&MATCH($A142,Calendar!A:A,0)-1),0,IF(INDIRECT("Calendar!E"&MATCH($A142,Calendar!A:A,0)-2),1,2)) -> 0
A143: 2025-04-01 | B143: -800707 | C143: -580127 | F143: 646234.2475 | G143: 390111.249 | H143: 202 | I143: 1348434.496 | J143: 781470.4 | K143: =IF($A144="","",IF($H$3="YES",VLOOKUP(OFFSET(A144,M143,0),Calendar!$A$2:$C$10000,3,FALSE),1)) -> 1 | L143: =IF(A144="","",IF(VLOOKUP(A143,Calendar!A:E,5,FALSE)=0,"",CEILING(K143*CEILING(MAX(OFFSET(J143,M143,0),OFFSET(I143,M143,0)),roundto),roundto)+add_margin)) -> 1400000 | M143: =IF(INDIRECT("Calendar!E"&MATCH($A143,Calendar!A:A,0)-1),0,IF(INDIRECT("Calendar!E"&MATCH($A143,Calendar!A:A,0)-2),1,2)) -> 0
A144: 2025-03-31 | B144: -452793 | C144: -8225 | F144: 644649.9606 | G144: 390018.3294 | H144: 203 | I144: 1346682.954 | J144: 781470.4 | K144: =IF($A145="","",IF($H$3="YES",VLOOKUP(OFFSET(A145,M144,0),Calendar!$A$2:$C$10000,3,FALSE),1)) -> 1 | L144: =IF(A145="","",IF(VLOOKUP(A144,Calendar!A:E,5,FALSE)=0,"",CEILING(K144*CEILING(MAX(OFFSET(J144,M144,0),OFFSET(I144,M144,0)),roundto),roundto)+add_margin)) -> 1400000 | M144: =IF(INDIRECT("Calendar!E"&MATCH($A144,Calendar!A:A,0)-1),0,IF(INDIRECT("Calendar!E"&MATCH($A144,Calendar!A:A,0)-2),1,2)) -> 0
A145: 2025-03-28 | B145: -501367 | C145: -353042 | F145: 642966.7059 | G145: 389959.2318 | H145: 204 | I145: 1344893.323 | J145: 781470.4 | K145: =IF($A146="","",IF($H$3="YES",VLOOKUP(OFFSET(A146,M145,0),Calendar!$A$2:$C$10000,3,FALSE),1)) -> 1 | L145: =IF(A146="","",IF(VLOOKUP(A145,Calendar!A:E,5,FALSE)=0,"",CEILING(K145*CEILING(MAX(OFFSET(J145,M145,0),OFFSET(I145,M145,0)),roundto),roundto)+add_margin)) -> 1400000 | M145: =IF(INDIRECT("Calendar!E"&MATCH($A145,Calendar!A:A,0)-1),0,IF(INDIRECT("Calendar!E"&MATCH($A145,Calendar!A:A,0)-2),1,2)) -> 0
A146: 2025-03-27 | B146: -747312 | C146: -323918 | F146: 641342.3707 | G146: 389892.2715 | H146: 205 | I146: 1343148.46 | J146: 781470.4 | K146: =IF($A147="","",IF($H$3="YES",VLOOKUP(OFFSET(A147,M146,0),Calendar!$A$2:$C$10000,3,FALSE),1)) -> 1 | L146: =IF(A147="","",IF(VLOOKUP(A146,Calendar!A:E,5,FALSE)=0,"",CEILING(K146*CEILING(MAX(OFFSET(J146,M146,0),OFFSET(I146,M146,0)),roundto),roundto)+add_margin)) -> 1400000 | M146: =IF(INDIRECT("Calendar!E"&MATCH($A146,Calendar!A:A,0)-1),0,IF(INDIRECT("Calendar!E"&MATCH($A146,Calendar!A:A,0)-2),1,2)) -> 0
A147: 2025-03-26 | B147: -470684 | C147: -8284 | F147: 640374.1893 | G147: 389691.3599 | H147: 206 | I147: 1341818.637 | J147: 866272 | K147: =IF($A148="","",IF($H$3="YES",VLOOKUP(OFFSET(A148,M147,0),Calendar!$A$2:$C$10000,3,FALSE),1)) -> 1 | L147: =IF(A148="","",IF(VLOOKUP(A147,Calendar!A:E,5,FALSE)=0,"",CEILING(K147*CEILING(MAX(OFFSET(J147,M147,0),OFFSET(I147,M147,0)),roundto),roundto)+add_margin)) -> 1400000 | M147: =IF(INDIRECT("Calendar!E"&MATCH($A147,Calendar!A:A,0)-1),0,IF(INDIRECT("Calendar!E"&MATCH($A147,Calendar!A:A,0)-2),1,2)) -> 0
A148: 2025-03-25 | B148: -729594 | C148: -632351 | F148: 638795.5604 | G148: 389625.9035 | H148: 207 | I148: 1340122.187 | J148: 866272 | K148: =IF($A149="","",IF($H$3="YES",VLOOKUP(OFFSET(A149,M148,0),Calendar!$A$2:$C$10000,3,FALSE),1)) -> 1 | L148: =IF(A149="","",IF(VLOOKUP(A148,Calendar!A:E,5,FALSE)=0,"",CEILING(K148*CEILING(MAX(OFFSET(J148,M148,0),OFFSET(I148,M148,0)),roundto),roundto)+add_margin)) -> 1400000 | M148: =IF(INDIRECT("Calendar!E"&MATCH($A148,Calendar!A:A,0)-1),0,IF(INDIRECT("Calendar!E"&MATCH($A148,Calendar!A:A,0)-2),1,2)) -> 0
A149: 2025-03-24 | B149: -844047 | C149: -119433 | F149: 635777.9135 | G149: 390113.4804 | H149: 208 | I149: 1337982.178 | J149: 1643174.4 | K149: =IF($A150="","",IF($H$3="YES",VLOOKUP(OFFSET(A150,M149,0),Calendar!$A$2:$C$10000,3,FALSE),1)) -> 1 | L149: =IF(A150="","",IF(VLOOKUP(A149,Calendar!A:E,5,FALSE)=0,"",CEILING(K149*CEILING(MAX(OFFSET(J149,M149,0),OFFSET(I149,M149,0)),roundto),roundto)+add_margin)) -> 1700000 | M149: =IF(INDIRECT("Calendar!E"&MATCH($A149,Calendar!A:A,0)-1),0,IF(INDIRECT("Calendar!E"&MATCH($A149,Calendar!A:A,0)-2),1,2)) -> 0
A150: 2025-03-21 | B150: -494151 | C150: -244280 | F150: 633328.7703 | G150: 390360.7857 | H150: 209 | I150: 1335978.185 | J150: 1643174.4 | K150: =IF($A151="","",IF($H$3="YES",VLOOKUP(OFFSET(A151,M150,0),Calendar!$A$2:$C$10000,3,FALSE),1)) -> 1 | L150: =IF(A151="","",IF(VLOOKUP(A150,Calendar!A:E,5,FALSE)=0,"",CEILING(K150*CEILING(MAX(OFFSET(J150,M150,0),OFFSET(I150,M150,0)),roundto),roundto)+add_margin)) -> 1700000 | M150: =IF(INDIRECT("Calendar!E"&MATCH($A150,Calendar!A:A,0)-1),0,IF(INDIRECT("Calendar!E"&MATCH($A150,Calendar!A:A,0)-2),1,2)) -> 0
A151: 2025-03-20 | B151: -777249 | C151: -478533 | F151: 631722.3952 | G151: 390330.4982 | H151: 210 | I151: 1334317.292 | J151: 1643174.4 | K151: =IF($A152="","",IF($H$3="YES",VLOOKUP(OFFSET(A152,M151,0),Calendar!$A$2:$C$10000,3,FALSE),1)) -> 1 | L151: =IF(A152="","",IF(VLOOKUP(A151,Calendar!A:E,5,FALSE)=0,"",CEILING(K151*CEILING(MAX(OFFSET(J151,M151,0),OFFSET(I151,M151,0)),roundto),roundto)+add_margin)) -> 1700000 | M151: =IF(INDIRECT("Calendar!E"&MATCH($A151,Calendar!A:A,0)-1),0,IF(INDIRECT("Calendar!E"&MATCH($A151,Calendar!A:A,0)-2),1,2)) -> 0
A152: 2025-03-19 | B152: -667214 | C152: -109515 | F152: 629793.237 | G152: 390406.1947 | H152: 211 | I152: 1332524.387 | J152: 1643174.4 | K152: =IF($A153="","",IF($H$3="YES",VLOOKUP(OFFSET(A153,M152,0),Calendar!$A$2:$C$10000,3,FALSE),1)) -> 1 | L152: =IF(A153="","",IF(VLOOKUP(A152,Calendar!A:E,5,FALSE)=0,"",CEILING(K152*CEILING(MAX(OFFSET(J152,M152,0),OFFSET(I152,M152,0)),roundto),roundto)+add_margin)) -> 1700000 | M152: =IF(INDIRECT("Calendar!E"&MATCH($A152,Calendar!A:A,0)-1),0,IF(INDIRECT("Calendar!E"&MATCH($A152,Calendar!A:A,0)-2),1,2)) -> 0
A153: 2025-03-18 | B153: -988381 | C153: -810991 | F153: 629688.5189 | G153: 390144.343 | H153: 212 | I153: 1331948.336 | J153: 1643174.4 | K153: =IF($A154="","",IF($H$3="YES",VLOOKUP(OFFSET(A154,M153,0),Calendar!$A$2:$C$10000,3,FALSE),1)) -> 1 | L153: =IF(A154="","",IF(VLOOKUP(A153,Calendar!A:E,5,FALSE)=0,"",CEILING(K153*CEILING(MAX(OFFSET(J153,M153,0),OFFSET(I153,M153,0)),roundto),roundto)+add_margin)) -> 1700000 | M153: =IF(INDIRECT("Calendar!E"&MATCH($A153,Calendar!A:A,0)-1),0,IF(INDIRECT("Calendar!E"&MATCH($A153,Calendar!A:A,0)-2),1,2)) -> 0
A154: 2025-03-17 | B154: -1067812 | C154: -244914 | D154: =IF(B154>minIMSM,B154,"") ->  | F154: 625876.0981 | G154: 392820.6353 | H154: 214 | I154: 1332953.242 | J154: 1643174.4 | K154: =IF($A155="","",IF($H$3="YES",VLOOKUP(OFFSET(A155,M154,0),Calendar!$A$2:$C$10000,3,FALSE),1)) -> 1 | L154: =IF(A155="","",IF(VLOOKUP(A154,Calendar!A:E,5,FALSE)=0,"",CEILING(K154*CEILING(MAX(OFFSET(J154,M154,0),OFFSET(I154,M154,0)),roundto),roundto)+add_margin)) -> 1700000 | M154: =IF(INDIRECT("Calendar!E"&MATCH($A154,Calendar!A:A,0)-1),0,IF(INDIRECT("Calendar!E"&MATCH($A154,Calendar!A:A,0)-2),1,2)) -> 0
A155: 2025-03-14 | B155: -405047 | C155: 42484 | E155: 42484 | F155: 625908.8879 | G155: 390406.3433 | H155: 214 | I155: 1328640.306 | J155: 1643174.4 | K155: =IF($A156="","",IF($H$3="YES",VLOOKUP(OFFSET(A156,M155,0),Calendar!$A$2:$C$10000,3,FALSE),1)) -> 1 | L155: =IF(A156="","",IF(VLOOKUP(A155,Calendar!A:E,5,FALSE)=0,"",CEILING(K155*CEILING(MAX(OFFSET(J155,M155,0),OFFSET(I155,M155,0)),roundto),roundto)+add_margin)) -> 1700000 | M155: =IF(INDIRECT("Calendar!E"&MATCH($A155,Calendar!A:A,0)-1),0,IF(INDIRECT("Calendar!E"&MATCH($A155,Calendar!A:A,0)-2),1,2)) -> 0
A156: 2025-03-13 | B156: -204723 | C156: -50316 | F156: 625895.0233 | G156: 388023.2384 | H156: 215 | I156: 1324336.852 | J156: 1643174.4 | K156: =IF($A157="","",IF($H$3="YES",VLOOKUP(OFFSET(A157,M156,0),Calendar!$A$2:$C$10000,3,FALSE),1)) -> 1 | L156: =IF(A157="","",IF(VLOOKUP(A156,Calendar!A:E,5,FALSE)=0,"",CEILING(K156*CEILING(MAX(OFFSET(J156,M156,0),OFFSET(I156,M156,0)),roundto),roundto)+add_margin)) -> 1700000 | M156: =IF(INDIRECT("Calendar!E"&MATCH($A156,Calendar!A:A,0)-1),0,IF(INDIRECT("Calendar!E"&MATCH($A156,Calendar!A:A,0)-2),1,2)) -> 0
A157: 2025-03-12 | B157: 24438 | C157: 164435 | D157: 24438 | E157: 164435 | F157: 626671.1953 | G157: 386955.3249 | H157: 215 | I157: 1323190.78 | J157: 1643174.4 | K157: =IF($A158="","",IF($H$3="YES",VLOOKUP(OFFSET(A158,M157,0),Calendar!$A$2:$C$10000,3,FALSE),1)) -> 1 | L157: =IF(A158="","",IF(VLOOKUP(A157,Calendar!A:E,5,FALSE)=0,"",CEILING(K157*CEILING(MAX(OFFSET(J157,M157,0),OFFSET(I157,M157,0)),roundto),roundto)+add_margin)) -> 1700000 | M157: =IF(INDIRECT("Calendar!E"&MATCH($A157,Calendar!A:A,0)-1),0,IF(INDIRECT("Calendar!E"&MATCH($A157,Calendar!A:A,0)-2),1,2)) -> 0
A158: 2025-03-11 | B158: -440352 | C158: -328512 | F158: 625076.2361 | G158: 386986.518 | H158: 216 | I158: 1321651.968 | J158: 1643174.4 | K158: =IF($A159="","",IF($H$3="YES",VLOOKUP(OFFSET(A159,M158,0),Calendar!$A$2:$C$10000,3,FALSE),1)) -> 1 | L158: =IF(A159="","",IF(VLOOKUP(A158,Calendar!A:E,5,FALSE)=0,"",CEILING(K158*CEILING(MAX(OFFSET(J158,M158,0),OFFSET(I158,M158,0)),roundto),roundto)+add_margin)) -> 1700000 | M158: =IF(INDIRECT("Calendar!E"&MATCH($A158,Calendar!A:A,0)-1),0,IF(INDIRECT("Calendar!E"&MATCH($A158,Calendar!A:A,0)-2),1,2)) -> 0
A159: 2025-03-10 | B159: -976454 | C159: -403449 | F159: 622476.7064 | G159: 385785.0867 | H159: 218 | I159: 1316889.862 | J159: 1643174.4 | K159: =IF($A160="","",IF($H$3="YES",VLOOKUP(OFFSET(A160,M159,0),Calendar!$A$2:$C$10000,3,FALSE),1)) -> 1 | L159: =IF(A160="","",IF(VLOOKUP(A159,Calendar!A:E,5,FALSE)=0,"",CEILING(K159*CEILING(MAX(OFFSET(J159,M159,0),OFFSET(I159,M159,0)),roundto),roundto)+add_margin)) -> 1700000 | M159: =IF(INDIRECT("Calendar!E"&MATCH($A159,Calendar!A:A,0)-1),0,IF(INDIRECT("Calendar!E"&MATCH($A159,Calendar!A:A,0)-2),1,2)) -> 0
A160: 2025-03-07 | B160: -196979 | C160: 371152 | E160: 371152 | F160: 620717.1468 | G160: 388620.6036 | H160: 218 | I160: 1320234.233 | J160: 1643174.4 | K160: =IF($A161="","",IF($H$3="YES",VLOOKUP(OFFSET(A161,M160,0),Calendar!$A$2:$C$10000,3,FALSE),1)) -> 1 | L160: =IF(A161="","",IF(VLOOKUP(A160,Calendar!A:E,5,FALSE)=0,"",CEILING(K160*CEILING(MAX(OFFSET(J160,M160,0),OFFSET(I160,M160,0)),roundto),roundto)+add_margin)) -> 1700000 | M160: =IF(INDIRECT("Calendar!E"&MATCH($A160,Calendar!A:A,0)-1),0,IF(INDIRECT("Calendar!E"&MATCH($A160,Calendar!A:A,0)-2),1,2)) -> 0
A161: 2025-03-06 | B161: 347987 | C161: 215979 | D161: 347987 | E161: 215979 | F161: 621347.0688 | G161: 387434.3095 | H161: 218 | I161: 1318728.826 | J161: 1643174.4 | K161: =IF($A162="","",IF($H$3="YES",VLOOKUP(OFFSET(A162,M161,0),Calendar!$A$2:$C$10000,3,FALSE),1)) -> 1 | L161: =IF(A162="","",IF(VLOOKUP(A161,Calendar!A:E,5,FALSE)=0,"",CEILING(K161*CEILING(MAX(OFFSET(J161,M161,0),OFFSET(I161,M161,0)),roundto),roundto)+add_margin)) -> 1700000 | M161: =IF(INDIRECT("Calendar!E"&MATCH($A161,Calendar!A:A,0)-1),0,IF(INDIRECT("Calendar!E"&MATCH($A161,Calendar!A:A,0)-2),1,2)) -> 0
A162: 2025-03-05 | B162: 124573 | C162: 190731 | D162: 124573 | E162: 190731 | F162: 622012.5 | G162: 386748.115 | H162: 218 | I162: 1318159.107 | J162: 1643174.4 | K162: =IF($A163="","",IF($H$3="YES",VLOOKUP(OFFSET(A163,M162,0),Calendar!$A$2:$C$10000,3,FALSE),1)) -> 1 | L162: =IF(A163="","",IF(VLOOKUP(A162,Calendar!A:E,5,FALSE)=0,"",CEILING(K162*CEILING(MAX(OFFSET(J162,M162,0),OFFSET(I162,M162,0)),roundto),roundto)+add_margin)) -> 1700000 | M162: =IF(INDIRECT("Calendar!E"&MATCH($A162,Calendar!A:A,0)-1),0,IF(INDIRECT("Calendar!E"&MATCH($A162,Calendar!A:A,0)-2),1,2)) -> 0
A163: 2025-03-04 | B163: -142360 | C163: -181130 | F163: 621860.9452 | G163: 386519.0487 | H163: 219 | I163: 1317595.233 | J163: 1643174.4 | K163: =IF($A164="","",IF($H$3="YES",VLOOKUP(OFFSET(A164,M163,0),Calendar!$A$2:$C$10000,3,FALSE),1)) -> 1 | L163: =IF(A164="","",IF(VLOOKUP(A163,Calendar!A:E,5,FALSE)=0,"",CEILING(K163*CEILING(MAX(OFFSET(J163,M163,0),OFFSET(I163,M163,0)),roundto),roundto)+add_margin)) -> 1700000 | M163: =IF(INDIRECT("Calendar!E"&MATCH($A163,Calendar!A:A,0)-1),0,IF(INDIRECT("Calendar!E"&MATCH($A163,Calendar!A:A,0)-2),1,2)) -> 0
A164: 2025-03-03 | B164: -485112 | C164: -159767 | F164: 622259.65 | G164: 386258.6893 | H164: 220 | I164: 1317525.291 | J164: 1737654.4 | K164: =IF($A165="","",IF($H$3="YES",VLOOKUP(OFFSET(A165,M164,0),Calendar!$A$2:$C$10000,3,FALSE),1)) -> 1 | L164: =IF(A165="","",IF(VLOOKUP(A164,Calendar!A:E,5,FALSE)=0,"",CEILING(K164*CEILING(MAX(OFFSET(J164,M164,0),OFFSET(I164,M164,0)),roundto),roundto)+add_margin)) -> 1790000 | M164: =IF(INDIRECT("Calendar!E"&MATCH($A164,Calendar!A:A,0)-1),0,IF(INDIRECT("Calendar!E"&MATCH($A164,Calendar!A:A,0)-2),1,2)) -> 0
A165: 2025-02-28 | B165: -691785 | C165: -99808 | F165: 619922.4279 | G165: 386103.1086 | H165: 222 | I165: 1314908.023 | J165: 1737654.4 | K165: =IF($A166="","",IF($H$3="YES",VLOOKUP(OFFSET(A166,M165,0),Calendar!$A$2:$C$10000,3,FALSE),1)) -> 1 | L165: =IF(A166="","",IF(VLOOKUP(A165,Calendar!A:E,5,FALSE)=0,"",CEILING(K165*CEILING(MAX(OFFSET(J165,M165,0),OFFSET(I165,M165,0)),roundto),roundto)+add_margin)) -> 1790000 | M165: =IF(INDIRECT("Calendar!E"&MATCH($A165,Calendar!A:A,0)-1),0,IF(INDIRECT("Calendar!E"&MATCH($A165,Calendar!A:A,0)-2),1,2)) -> 0
A166: 2025-02-27 | B166: -227154 | C166: 246891 | E166: 246891 | F166: 619620.1126 | G166: 386344.5003 | H166: 222 | I166: 1315040.213 | J166: 1737654.4 | K166: =IF($A167="","",IF($H$3="YES",VLOOKUP(OFFSET(A167,M166,0),Calendar!$A$2:$C$10000,3,FALSE),1)) -> 1 | L166: =IF(A167="","",IF(VLOOKUP(A166,Calendar!A:E,5,FALSE)=0,"",CEILING(K166*CEILING(MAX(OFFSET(J166,M166,0),OFFSET(I166,M166,0)),roundto),roundto)+add_margin)) -> 1790000 | M166: =IF(INDIRECT("Calendar!E"&MATCH($A166,Calendar!A:A,0)-1),0,IF(INDIRECT("Calendar!E"&MATCH($A166,Calendar!A:A,0)-2),1,2)) -> 0
A167: 2025-02-26 | B167: -580427 | C167: -852064 | F167: 618838.0942 | G167: 386226.8304 | H167: 223 | I167: 1314046.389 | J167: 1737654.4 | K167: =IF($A168="","",IF($H$3="YES",VLOOKUP(OFFSET(A168,M167,0),Calendar!$A$2:$C$10000,3,FALSE),1)) -> 1 | L167: =IF(A168="","",IF(VLOOKUP(A167,Calendar!A:E,5,FALSE)=0,"",CEILING(K167*CEILING(MAX(OFFSET(J167,M167,0),OFFSET(I167,M167,0)),roundto),roundto)+add_margin)) -> 1790000 | M167: =IF(INDIRECT("Calendar!E"&MATCH($A167,Calendar!A:A,0)-1),0,IF(INDIRECT("Calendar!E"&MATCH($A167,Calendar!A:A,0)-2),1,2)) -> 0
A168: 2025-02-25 | B168: -1257375 | C168: -400167 | F168: 618036.1422 | G168: 384901.9594 | H168: 225 | I168: 1310859.669 | J168: 2149096 | K168: =IF($A169="","",IF($H$3="YES",VLOOKUP(OFFSET(A169,M168,0),Calendar!$A$2:$C$10000,3,FALSE),1)) -> 1 | L168: =IF(A169="","",IF(VLOOKUP(A168,Calendar!A:E,5,FALSE)=0,"",CEILING(K168*CEILING(MAX(OFFSET(J168,M168,0),OFFSET(I168,M168,0)),roundto),roundto)+add_margin)) -> 2200000 | M168: =IF(INDIRECT("Calendar!E"&MATCH($A168,Calendar!A:A,0)-1),0,IF(INDIRECT("Calendar!E"&MATCH($A168,Calendar!A:A,0)-2),1,2)) -> 0
A169: 2025-02-24 | B169: -11454 | C169: 357592 | E169: 357592 | F169: 621902.6875 | G169: 382647.7593 | H169: 224 | I169: 1310668.654 | J169: 2149096 | K169: =IF($A170="","",IF($H$3="YES",VLOOKUP(OFFSET(A170,M169,0),Calendar!$A$2:$C$10000,3,FALSE),1)) -> 1 | L169: =IF(A170="","",IF(VLOOKUP(A169,Calendar!A:E,5,FALSE)=0,"",CEILING(K169*CEILING(MAX(OFFSET(J169,M169,0),OFFSET(I169,M169,0)),roundto),roundto)+add_margin)) -> 2200000 | M169: =IF(INDIRECT("Calendar!E"&MATCH($A169,Calendar!A:A,0)-1),0,IF(INDIRECT("Calendar!E"&MATCH($A169,Calendar!A:A,0)-2),1,2)) -> 0
A170: 2025-02-21 | B170: 34976 | C170: -327035 | D170: 34976 | F170: 617372.6549 | G170: 385535.3604 | H170: 226 | I170: 1311336.304 | J170: 2149096 | K170: =IF($A171="","",IF($H$3="YES",VLOOKUP(OFFSET(A171,M170,0),Calendar!$A$2:$C$10000,3,FALSE),1)) -> 1 | L170: =IF(A171="","",IF(VLOOKUP(A170,Calendar!A:E,5,FALSE)=0,"",CEILING(K170*CEILING(MAX(OFFSET(J170,M170,0),OFFSET(I170,M170,0)),roundto),roundto)+add_margin)) -> 2200000 | M170: =IF(INDIRECT("Calendar!E"&MATCH($A170,Calendar!A:A,0)-1),0,IF(INDIRECT("Calendar!E"&MATCH($A170,Calendar!A:A,0)-2),1,2)) -> 0
A171: 2025-02-20 | B171: -223907 | C171: 63737 | E171: 63737 | F171: 618214.6106 | G171: 383262.9306 | H171: 226 | I171: 1308087.886 | J171: 2149096 | K171: =IF($A172="","",IF($H$3="YES",VLOOKUP(OFFSET(A172,M171,0),Calendar!$A$2:$C$10000,3,FALSE),1)) -> 1 | L171: =IF(A172="","",IF(VLOOKUP(A171,Calendar!A:E,5,FALSE)=0,"",CEILING(K171*CEILING(MAX(OFFSET(J171,M171,0),OFFSET(I171,M171,0)),roundto),roundto)+add_margin)) -> 2200000 | M171: =IF(INDIRECT("Calendar!E"&MATCH($A171,Calendar!A:A,0)-1),0,IF(INDIRECT("Calendar!E"&MATCH($A171,Calendar!A:A,0)-2),1,2)) -> 0
A172: 2025-02-19 | B172: 488419 | C172: 442895 | D172: 488419 | E172: 442895 | F172: 614696.6372 | G172: 390503.863 | H172: 226 | I172: 1317603.591 | J172: 2149096 | K172: =IF($A173="","",IF($H$3="YES",VLOOKUP(OFFSET(A173,M172,0),Calendar!$A$2:$C$10000,3,FALSE),1)) -> 1 | L172: =IF(A173="","",IF(VLOOKUP(A172,Calendar!A:E,5,FALSE)=0,"",CEILING(K172*CEILING(MAX(OFFSET(J172,M172,0),OFFSET(I172,M172,0)),roundto),roundto)+add_margin)) -> 2200000 | M172: =IF(INDIRECT("Calendar!E"&MATCH($A172,Calendar!A:A,0)-1),0,IF(INDIRECT("Calendar!E"&MATCH($A172,Calendar!A:A,0)-2),1,2)) -> 0
A173: 2025-02-18 | B173: 471324 | C173: 9046 | D173: 471324 | E173: 9046 | F173: 616174.9956 | G173: 387653.8867 | H173: 226 | I173: 1313951.992 | J173: 2149096 | K173: =IF($A174="","",IF($H$3="YES",VLOOKUP(OFFSET(A174,M173,0),Calendar!$A$2:$C$10000,3,FALSE),1)) -> 1 | L173: =IF(A174="","",IF(VLOOKUP(A173,Calendar!A:E,5,FALSE)=0,"",CEILING(K173*CEILING(MAX(OFFSET(J173,M173,0),OFFSET(I173,M173,0)),roundto),roundto)+add_margin)) -> 2200000 | M173: =IF(INDIRECT("Calendar!E"&MATCH($A173,Calendar!A:A,0)-1),0,IF(INDIRECT("Calendar!E"&MATCH($A173,Calendar!A:A,0)-2),1,2)) -> 0
A174: 2025-02-17 | B174: 230442 | C174: 181029 | D174: 230442 | E174: 181029 | F174: 617038.9912 | G174: 389411.5376 | H174: 226 | I174: 1317979.759 | J174: 2149096 | K174: =IF($A175="","",IF($H$3="YES",VLOOKUP(OFFSET(A175,M174,0),Calendar!$A$2:$C$10000,3,FALSE),1)) -> 1 | L174: =IF(A175="","",IF(VLOOKUP(A174,Calendar!A:E,5,FALSE)=0,"",CEILING(K174*CEILING(MAX(OFFSET(J174,M174,0),OFFSET(I174,M174,0)),roundto),roundto)+add_margin)) -> 2200000 | M174: =IF(INDIRECT("Calendar!E"&MATCH($A174,Calendar!A:A,0)-1),0,IF(INDIRECT("Calendar!E"&MATCH($A174,Calendar!A:A,0)-2),1,2)) -> 0
A175: 2025-02-14 | B175: 253646 | C175: 53828 | D175: 253646 | E175: 53828 | F175: 617476.1549 | G175: 388628.9839 | H175: 226 | I175: 1317008.326 | J175: 2149096 | K175: =IF($A176="","",IF($H$3="YES",VLOOKUP(OFFSET(A176,M175,0),Calendar!$A$2:$C$10000,3,FALSE),1)) -> 1 | L175: =IF(A176="","",IF(VLOOKUP(A175,Calendar!A:E,5,FALSE)=0,"",CEILING(K175*CEILING(MAX(OFFSET(J175,M175,0),OFFSET(I175,M175,0)),roundto),roundto)+add_margin)) -> 2200000 | M175: =IF(INDIRECT("Calendar!E"&MATCH($A175,Calendar!A:A,0)-1),0,IF(INDIRECT("Calendar!E"&MATCH($A175,Calendar!A:A,0)-2),1,2)) -> 0
A176: 2025-02-13 | B176: 323624 | C176: 159708 | D176: 323624 | E176: 159708 | F176: 616799.7478 | G176: 388936.1968 | H176: 226 | I176: 1316884.902 | J176: 2149096 | K176: =IF($A177="","",IF($H$3="YES",VLOOKUP(OFFSET(A177,M176,0),Calendar!$A$2:$C$10000,3,FALSE),1)) -> 1 | L176: =IF(A177="","",IF(VLOOKUP(A176,Calendar!A:E,5,FALSE)=0,"",CEILING(K176*CEILING(MAX(OFFSET(J176,M176,0),OFFSET(I176,M176,0)),roundto),roundto)+add_margin)) -> 2200000 | M176: =IF(INDIRECT("Calendar!E"&MATCH($A176,Calendar!A:A,0)-1),0,IF(INDIRECT("Calendar!E"&MATCH($A176,Calendar!A:A,0)-2),1,2)) -> 0
A177: 2025-02-12 | B177: 541420 | C177: 337875 | D177: 541420 | E177: 337875 | F177: 616709.4469 | G177: 389919.6772 | H177: 226 | I177: 1318564.866 | J177: 2149096 | K177: =IF($A178="","",IF($H$3="YES",VLOOKUP(OFFSET(A178,M177,0),Calendar!$A$2:$C$10000,3,FALSE),1)) -> 1 | L177: =IF(A178="","",IF(VLOOKUP(A177,Calendar!A:E,5,FALSE)=0,"",CEILING(K177*CEILING(MAX(OFFSET(J177,M177,0),OFFSET(I177,M177,0)),roundto),roundto)+add_margin)) -> 2200000 | M177: =IF(INDIRECT("Calendar!E"&MATCH($A177,Calendar!A:A,0)-1),0,IF(INDIRECT("Calendar!E"&MATCH($A177,Calendar!A:A,0)-2),1,2)) -> 0
A178: 2025-02-11 | B178: 518681 | C178: 518938 | D178: 518681 | E178: 518938 | F178: 614163.6814 | G178: 390062.9934 | H178: 226 | I178: 1316277.07 | J178: 2149096 | K178: =IF($A179="","",IF($H$3="YES",VLOOKUP(OFFSET(A179,M178,0),Calendar!$A$2:$C$10000,3,FALSE),1)) -> 1 | L178: =IF(A179="","",IF(VLOOKUP(A178,Calendar!A:E,5,FALSE)=0,"",CEILING(K178*CEILING(MAX(OFFSET(J178,M178,0),OFFSET(I178,M178,0)),roundto),roundto)+add_margin)) -> 2200000 | M178: =IF(INDIRECT("Calendar!E"&MATCH($A178,Calendar!A:A,0)-1),0,IF(INDIRECT("Calendar!E"&MATCH($A178,Calendar!A:A,0)-2),1,2)) -> 0
A179: 2025-02-10 | B179: 1026984 | C179: 461645 | D179: 1026984 | E179: 461645 | F179: 613613.7478 | G179: 391718.0655 | H179: 226 | I179: 1318706.266 | J179: 2149096 | K179: =IF($A180="","",IF($H$3="YES",VLOOKUP(OFFSET(A180,M179,0),Calendar!$A$2:$C$10000,3,FALSE),1)) -> 1 | L179: =IF(A180="","",IF(VLOOKUP(A179,Calendar!A:E,5,FALSE)=0,"",CEILING(K179*CEILING(MAX(OFFSET(J179,M179,0),OFFSET(I179,M179,0)),roundto),roundto)+add_margin)) -> 2200000 | M179: =IF(INDIRECT("Calendar!E"&MATCH($A179,Calendar!A:A,0)-1),0,IF(INDIRECT("Calendar!E"&MATCH($A179,Calendar!A:A,0)-2),1,2)) -> 0
A180: 2025-02-07 | B180: 775885 | C180: 464850 | D180: 775885 | E180: 464850 | F180: 611131 | G180: 394443.4189 | H180: 226 | I180: 1321129.154 | J180: 2149096 | K180: =IF($A181="","",IF($H$3="YES",VLOOKUP(OFFSET(A181,M180,0),Calendar!$A$2:$C$10000,3,FALSE),1)) -> 1 | L180: =IF(A181="","",IF(VLOOKUP(A180,Calendar!A:E,5,FALSE)=0,"",CEILING(K180*CEILING(MAX(OFFSET(J180,M180,0),OFFSET(I180,M180,0)),roundto),roundto)+add_margin)) -> 2200000 | M180: =IF(INDIRECT("Calendar!E"&MATCH($A180,Calendar!A:A,0)-1),0,IF(INDIRECT("Calendar!E"&MATCH($A180,Calendar!A:A,0)-2),1,2)) -> 0
A181: 2025-02-06 | B181: 827347 | C181: 307247 | D181: 827347 | E181: 307247 | F181: 609581.8496 | G181: 398075.8588 | H181: 226 | I181: 1326118.395 | J181: 2149096 | K181: =IF($A182="","",IF($H$3="YES",VLOOKUP(OFFSET(A182,M181,0),Calendar!$A$2:$C$10000,3,FALSE),1)) -> 1 | L181: =IF(A182="","",IF(VLOOKUP(A181,Calendar!A:E,5,FALSE)=0,"",CEILING(K181*CEILING(MAX(OFFSET(J181,M181,0),OFFSET(I181,M181,0)),roundto),roundto)+add_margin)) -> 2200000 | M181: =IF(INDIRECT("Calendar!E"&MATCH($A181,Calendar!A:A,0)-1),0,IF(INDIRECT("Calendar!E"&MATCH($A181,Calendar!A:A,0)-2),1,2)) -> 0
A182: 2025-02-05 | B182: 546345 | C182: 173714 | D182: 546345 | E182: 173714 | F182: 608470.6903 | G182: 396390.9522 | H182: 226 | I182: 1321974.404 | J182: 2149096 | K182: =IF($A183="","",IF($H$3="YES",VLOOKUP(OFFSET(A183,M182,0),Calendar!$A$2:$C$10000,3,FALSE),1)) -> 1 | L182: =IF(A183="","",IF(VLOOKUP(A182,Calendar!A:E,5,FALSE)=0,"",CEILING(K182*CEILING(MAX(OFFSET(J182,M182,0),OFFSET(I182,M182,0)),roundto),roundto)+add_margin)) -> 2200000 | M182: =IF(INDIRECT("Calendar!E"&MATCH($A182,Calendar!A:A,0)-1),0,IF(INDIRECT("Calendar!E"&MATCH($A182,Calendar!A:A,0)-2),1,2)) -> 0
A183: 2025-02-04 | B183: 920645 | C183: 591439 | D183: 920645 | E183: 591439 | F183: 605545.208 | G183: 402757.9542 | H183: 226 | I183: 1330509.526 | J183: 2149096 | K183: =IF($A184="","",IF($H$3="YES",VLOOKUP(OFFSET(A184,M183,0),Calendar!$A$2:$C$10000,3,FALSE),1)) -> 1 | L183: =IF(A184="","",IF(VLOOKUP(A183,Calendar!A:E,5,FALSE)=0,"",CEILING(K183*CEILING(MAX(OFFSET(J183,M183,0),OFFSET(I183,M183,0)),roundto),roundto)+add_margin)) -> 2200000 | M183: =IF(INDIRECT("Calendar!E"&MATCH($A183,Calendar!A:A,0)-1),0,IF(INDIRECT("Calendar!E"&MATCH($A183,Calendar!A:A,0)-2),1,2)) -> 0
A184: 2025-02-03 | B184: 672534 | C184: 70044 | D184: 672534 | E184: 70044 | F184: 606847.5044 | G184: 400916.8386 | H184: 226 | I184: 1328497.814 | J184: 2149096 | K184: =IF($A185="","",IF($H$3="YES",VLOOKUP(OFFSET(A185,M184,0),Calendar!$A$2:$C$10000,3,FALSE),1)) -> 1 | L184: =IF(A185="","",IF(VLOOKUP(A184,Calendar!A:E,5,FALSE)=0,"",CEILING(K184*CEILING(MAX(OFFSET(J184,M184,0),OFFSET(I184,M184,0)),roundto),roundto)+add_margin)) -> 2200000 | M184: =IF(INDIRECT("Calendar!E"&MATCH($A184,Calendar!A:A,0)-1),0,IF(INDIRECT("Calendar!E"&MATCH($A184,Calendar!A:A,0)-2),1,2)) -> 0
A185: 2025-01-31 | B185: 491604 | C185: 421560 | D185: 491604 | E185: 421560 | F185: 604751.5664 | G185: 405639.4776 | H185: 226 | I185: 1334902.626 | J185: 2149096 | K185: =IF($A186="","",IF($H$3="YES",VLOOKUP(OFFSET(A186,M185,0),Calendar!$A$2:$C$10000,3,FALSE),1)) -> 1 | L185: =IF(A186="","",IF(VLOOKUP(A185,Calendar!A:E,5,FALSE)=0,"",CEILING(K185*CEILING(MAX(OFFSET(J185,M185,0),OFFSET(I185,M185,0)),roundto),roundto)+add_margin)) -> 2200000 | M185: =IF(INDIRECT("Calendar!E"&MATCH($A185,Calendar!A:A,0)-1),0,IF(INDIRECT("Calendar!E"&MATCH($A185,Calendar!A:A,0)-2),1,2)) -> 0
A186: 2025-01-30 | B186: 265730 | C186: 55893 | D186: 265730 | E186: 55893 | F186: 604545.0796 | G186: 405971.3874 | H186: 226 | I186: 1335293.577 | J186: 2149096 | K186: =IF($A187="","",IF($H$3="YES",VLOOKUP(OFFSET(A187,M186,0),Calendar!$A$2:$C$10000,3,FALSE),1)) -> 1 | L186: =IF(A187="","",IF(VLOOKUP(A186,Calendar!A:E,5,FALSE)=0,"",CEILING(K186*CEILING(MAX(OFFSET(J186,M186,0),OFFSET(I186,M186,0)),roundto),roundto)+add_margin)) -> 2200000 | M186: =IF(INDIRECT("Calendar!E"&MATCH($A186,Calendar!A:A,0)-1),0,IF(INDIRECT("Calendar!E"&MATCH($A186,Calendar!A:A,0)-2),1,2)) -> 0
A187: 2025-01-29 | B187: 210365 | C187: 45093 | D187: 210365 | E187: 45093 | F187: 603281 | G187: 406580.2911 | H187: 226 | I187: 1335125.524 | J187: 2149096 | K187: =IF($A188="","",IF($H$3="YES",VLOOKUP(OFFSET(A188,M187,0),Calendar!$A$2:$C$10000,3,FALSE),1)) -> 1 | L187: =IF(A188="","",IF(VLOOKUP(A187,Calendar!A:E,5,FALSE)=0,"",CEILING(K187*CEILING(MAX(OFFSET(J187,M187,0),OFFSET(I187,M187,0)),roundto),roundto)+add_margin)) -> 2200000 | M187: =IF(INDIRECT("Calendar!E"&MATCH($A187,Calendar!A:A,0)-1),0,IF(INDIRECT("Calendar!E"&MATCH($A187,Calendar!A:A,0)-2),1,2)) -> 0
A188: 2025-01-28 | B188: 418253 | C188: 164411 | D188: 418253 | E188: 164411 | F188: 604144.9513 | G188: 406699.6324 | H188: 226 | I188: 1336204.29 | J188: 2197801.6 | K188: =IF($A189="","",IF($H$3="YES",VLOOKUP(OFFSET(A189,M188,0),Calendar!$A$2:$C$10000,3,FALSE),1)) -> 1 | L188: =IF(A189="","",IF(VLOOKUP(A188,Calendar!A:E,5,FALSE)=0,"",CEILING(K188*CEILING(MAX(OFFSET(J188,M188,0),OFFSET(I188,M188,0)),roundto),roundto)+add_margin)) -> 2250000 | M188: =IF(INDIRECT("Calendar!E"&MATCH($A188,Calendar!A:A,0)-1),0,IF(INDIRECT("Calendar!E"&MATCH($A188,Calendar!A:A,0)-2),1,2)) -> 0
A189: 2025-01-27 | B189: 662949 | C189: 343262 | D189: 662949 | E189: 343262 | F189: 603131.0398 | G189: 408360.2174 | H189: 226 | I189: 1338179.431 | J189: 2572342.4 | K189: =IF($A190="","",IF($H$3="YES",VLOOKUP(OFFSET(A190,M189,0),Calendar!$A$2:$C$10000,3,FALSE),1)) -> 1 | L189: =IF(A190="","",IF(VLOOKUP(A189,Calendar!A:E,5,FALSE)=0,"",CEILING(K189*CEILING(MAX(OFFSET(J189,M189,0),OFFSET(I189,M189,0)),roundto),roundto)+add_margin)) -> 2630000 | M189: =IF(INDIRECT("Calendar!E"&MATCH($A189,Calendar!A:A,0)-1),0,IF(INDIRECT("Calendar!E"&MATCH($A189,Calendar!A:A,0)-2),1,2)) -> 0
A190: 2025-01-24 | B190: 754547 | C190: 384051 | D190: 754547 | E190: 384051 | F190: 602325.1681 | G190: 410940.3217 | H190: 226 | I190: 1342017.747 | J190: 2572342.4 | K190: =IF($A191="","",IF($H$3="YES",VLOOKUP(OFFSET(A191,M190,0),Calendar!$A$2:$C$10000,3,FALSE),1)) -> 1 | L190: =IF(A191="","",IF(VLOOKUP(A190,Calendar!A:E,5,FALSE)=0,"",CEILING(K190*CEILING(MAX(OFFSET(J190,M190,0),OFFSET(I190,M190,0)),roundto),roundto)+add_margin)) -> 2630000 | M190: =IF(INDIRECT("Calendar!E"&MATCH($A190,Calendar!A:A,0)-1),0,IF(INDIRECT("Calendar!E"&MATCH($A190,Calendar!A:A,0)-2),1,2)) -> 0
A191: 2025-01-23 | B191: 513387 | C191: 320346 | D191: 513387 | E191: 320346 | F191: 601495.708 | G191: 412487.7798 | H191: 226 | I191: 1343973.712 | J191: 2572342.4 | K191: =IF($A192="","",IF($H$3="YES",VLOOKUP(OFFSET(A192,M191,0),Calendar!$A$2:$C$10000,3,FALSE),1)) -> 1 | L191: =IF(A192="","",IF(VLOOKUP(A191,Calendar!A:E,5,FALSE)=0,"",CEILING(K191*CEILING(MAX(OFFSET(J191,M191,0),OFFSET(I191,M191,0)),roundto),roundto)+add_margin)) -> 2630000 | M191: =IF(INDIRECT("Calendar!E"&MATCH($A191,Calendar!A:A,0)-1),0,IF(INDIRECT("Calendar!E"&MATCH($A191,Calendar!A:A,0)-2),1,2)) -> 0
A192: 2025-01-22 | B192: 673807 | C192: 428044 | D192: 673807 | E192: 428044 | F192: 600735.8274 | G192: 413488.3984 | H192: 226 | I192: 1345014.945 | J192: 2572342.4 | K192: =IF($A193="","",IF($H$3="YES",VLOOKUP(OFFSET(A193,M192,0),Calendar!$A$2:$C$10000,3,FALSE),1)) -> 1 | L192: =IF(A193="","",IF(VLOOKUP(A192,Calendar!A:E,5,FALSE)=0,"",CEILING(K192*CEILING(MAX(OFFSET(J192,M192,0),OFFSET(I192,M192,0)),roundto),roundto)+add_margin)) -> 2630000 | M192: =IF(INDIRECT("Calendar!E"&MATCH($A192,Calendar!A:A,0)-1),0,IF(INDIRECT("Calendar!E"&MATCH($A192,Calendar!A:A,0)-2),1,2)) -> 0
A193: 2025-01-21 | B193: 1024299 | C193: 935816 | D193: 1024299 | E193: 935816 | F193: 597111.9336 | G193: 412304.8332 | H193: 226 | I193: 1339260.633 | J193: 2572342.4 | K193: =IF($A194="","",IF($H$3="YES",VLOOKUP(OFFSET(A194,M193,0),Calendar!$A$2:$C$10000,3,FALSE),1)) -> 1 | L193: =IF(A194="","",IF(VLOOKUP(A193,Calendar!A:E,5,FALSE)=0,"",CEILING(K193*CEILING(MAX(OFFSET(J193,M193,0),OFFSET(I193,M193,0)),roundto),roundto)+add_margin)) -> 2630000 | M193: =IF(INDIRECT("Calendar!E"&MATCH($A193,Calendar!A:A,0)-1),0,IF(INDIRECT("Calendar!E"&MATCH($A193,Calendar!A:A,0)-2),1,2)) -> 0
A194: 2025-01-20 | B194: 1086034 | C194: 364152 | D194: 1086034 | E194: 364152 | F194: 596477.7788 | G194: 416190.6103 | H194: 226 | I194: 1345620.877 | J194: 2572342.4 | K194: =IF($A195="","",IF($H$3="YES",VLOOKUP(OFFSET(A195,M194,0),Calendar!$A$2:$C$10000,3,FALSE),1)) -> 1 | L194: =IF(A195="","",IF(VLOOKUP(A194,Calendar!A:E,5,FALSE)=0,"",CEILING(K194*CEILING(MAX(OFFSET(J194,M194,0),OFFSET(I194,M194,0)),roundto),roundto)+add_margin)) -> 2630000 | M194: =IF(INDIRECT("Calendar!E"&MATCH($A194,Calendar!A:A,0)-1),0,IF(INDIRECT("Calendar!E"&MATCH($A194,Calendar!A:A,0)-2),1,2)) -> 0
A195: 2025-01-17 | B195: 489950 | C195: 157980 | D195: 489950 | E195: 157980 | F195: 596405.8451 | G195: 417287.8966 | H195: 226 | I195: 1347524.059 | J195: 2572342.4 | K195: =IF($A196="","",IF($H$3="YES",VLOOKUP(OFFSET(A196,M195,0),Calendar!$A$2:$C$10000,3,FALSE),1)) -> 1 | L195: =IF(A196="","",IF(VLOOKUP(A195,Calendar!A:E,5,FALSE)=0,"",CEILING(K195*CEILING(MAX(OFFSET(J195,M195,0),OFFSET(I195,M195,0)),roundto),roundto)+add_margin)) -> 2630000 | M195: =IF(INDIRECT("Calendar!E"&MATCH($A195,Calendar!A:A,0)-1),0,IF(INDIRECT("Calendar!E"&MATCH($A195,Calendar!A:A,0)-2),1,2)) -> 0
A196: 2025-01-16 | B196: 224279 | C196: 101051 | D196: 224279 | E196: 101051 | F196: 595173.4735 | G196: 414751.0818 | H196: 226 | I196: 1341725.421 | J196: 2572342.4 | K196: =IF($A197="","",IF($H$3="YES",VLOOKUP(OFFSET(A197,M196,0),Calendar!$A$2:$C$10000,3,FALSE),1)) -> 1 | L196: =IF(A197="","",IF(VLOOKUP(A196,Calendar!A:E,5,FALSE)=0,"",CEILING(K196*CEILING(MAX(OFFSET(J196,M196,0),OFFSET(I196,M196,0)),roundto),roundto)+add_margin)) -> 2630000 | M196: =IF(INDIRECT("Calendar!E"&MATCH($A196,Calendar!A:A,0)-1),0,IF(INDIRECT("Calendar!E"&MATCH($A196,Calendar!A:A,0)-2),1,2)) -> 0
A197: 2025-01-15 | B197: 963462 | C197: 609343 | D197: 963462 | E197: 609343 | F197: 591995.8761 | G197: 410971.039 | H197: 226 | I197: 1331743.746 | J197: 2572342.4 | K197: =IF($A198="","",IF($H$3="YES",VLOOKUP(OFFSET(A198,M197,0),Calendar!$A$2:$C$10000,3,FALSE),1)) -> 1 | L197: =IF(A198="","",IF(VLOOKUP(A197,Calendar!A:E,5,FALSE)=0,"",CEILING(K197*CEILING(MAX(OFFSET(J197,M197,0),OFFSET(I197,M197,0)),roundto),roundto)+add_margin)) -> 2630000 | M197: =IF(INDIRECT("Calendar!E"&MATCH($A197,Calendar!A:A,0)-1),0,IF(INDIRECT("Calendar!E"&MATCH($A197,Calendar!A:A,0)-2),1,2)) -> 0
A198: 2025-01-14 | B198: 1343185 | C198: 870921 | D198: 1343185 | E198: 870921 | F198: 586606.2655 | G198: 408474.4684 | H198: 226 | I198: 1321860.309 | J198: 2572342.4 | K198: =IF($A199="","",IF($H$3="YES",VLOOKUP(OFFSET(A199,M198,0),Calendar!$A$2:$C$10000,3,FALSE),1)) -> 1 | L198: =IF(A199="","",IF(VLOOKUP(A198,Calendar!A:E,5,FALSE)=0,"",CEILING(K198*CEILING(MAX(OFFSET(J198,M198,0),OFFSET(I198,M198,0)),roundto),roundto)+add_margin)) -> 2630000 | M198: =IF(INDIRECT("Calendar!E"&MATCH($A198,Calendar!A:A,0)-1),0,IF(INDIRECT("Calendar!E"&MATCH($A198,Calendar!A:A,0)-2),1,2)) -> 0
A199: 2025-01-13 | B199: 1183134 | C199: 443927 | D199: 1183134 | E199: 443927 | F199: 583616.6018 | G199: 413341.7934 | H199: 226 | I199: 1327631.83 | J199: 3092462.4 | K199: =IF($A200="","",IF($H$3="YES",VLOOKUP(OFFSET(A200,M199,0),Calendar!$A$2:$C$10000,3,FALSE),1)) -> 1 | L199: =IF(A200="","",IF(VLOOKUP(A199,Calendar!A:E,5,FALSE)=0,"",CEILING(K199*CEILING(MAX(OFFSET(J199,M199,0),OFFSET(I199,M199,0)),roundto),roundto)+add_margin)) -> 3150000 | M199: =IF(INDIRECT("Calendar!E"&MATCH($A199,Calendar!A:A,0)-1),0,IF(INDIRECT("Calendar!E"&MATCH($A199,Calendar!A:A,0)-2),1,2)) -> 0
A200: 2025-01-10 | B200: 498189 | C200: 170228 | D200: 498189 | E200: 170228 | F200: 581536.0664 | G200: 416491.67 | H200: 226 | I200: 1331221.072 | J200: 3092462.4 | K200: =IF($A201="","",IF($H$3="YES",VLOOKUP(OFFSET(A201,M200,0),Calendar!$A$2:$C$10000,3,FALSE),1)) -> 1 | L200: =IF(A201="","",IF(VLOOKUP(A200,Calendar!A:E,5,FALSE)=0,"",CEILING(K200*CEILING(MAX(OFFSET(J200,M200,0),OFFSET(I200,M200,0)),roundto),roundto)+add_margin)) -> 3150000 | M200: =IF(INDIRECT("Calendar!E"&MATCH($A200,Calendar!A:A,0)-1),0,IF(INDIRECT("Calendar!E"&MATCH($A200,Calendar!A:A,0)-2),1,2)) -> 0
A201: 2025-01-09 | B201: 426838 | C201: 120387 | D201: 426838 | E201: 120387 | F201: 581752.0265 | G201: 415902.1385 | H201: 226 | I201: 1330375.876 | J201: 3092462.4 | K201: =IF($A202="","",IF($H$3="YES",VLOOKUP(OFFSET(A202,M201,0),Calendar!$A$2:$C$10000,3,FALSE),1)) -> 1 | L201: =IF(A202="","",IF(VLOOKUP(A201,Calendar!A:E,5,FALSE)=0,"",CEILING(K201*CEILING(MAX(OFFSET(J201,M201,0),OFFSET(I201,M201,0)),roundto),roundto)+add_margin)) -> 3150000 | M201: =IF(INDIRECT("Calendar!E"&MATCH($A201,Calendar!A:A,0)-1),0,IF(INDIRECT("Calendar!E"&MATCH($A201,Calendar!A:A,0)-2),1,2)) -> 0
A202: 2025-01-08 | B202: 698006 | C202: 694978 | D202: 698006 | E202: 694978 | F202: 577985.1593 | G202: 414692.6021 | H202: 226 | I202: 1324431.843 | J202: 3092462.4 | K202: =IF($A203="","",IF($H$3="YES",VLOOKUP(OFFSET(A203,M202,0),Calendar!$A$2:$C$10000,3,FALSE),1)) -> 1 | L202: =IF(A203="","",IF(VLOOKUP(A202,Calendar!A:E,5,FALSE)=0,"",CEILING(K202*CEILING(MAX(OFFSET(J202,M202,0),OFFSET(I202,M202,0)),roundto),roundto)+add_margin)) -> 3150000 | M202: =IF(INDIRECT("Calendar!E"&MATCH($A202,Calendar!A:A,0)-1),0,IF(INDIRECT("Calendar!E"&MATCH($A202,Calendar!A:A,0)-2),1,2)) -> 0
A203: 2025-01-07 | B203: 1129731 | C203: 666572 | D203: 1129731 | E203: =IF(C203>minIMSM,C203,"") -> 666572 | F203: =IF($A203="","",IFERROR((AVERAGE(E204,INDIRECT("D" & ROW(A205) & ":D" & ROW(A205) + window_size-2))),0)) -> 573677.8628 | G203: 412559.0117 | H203: 226 | I203: =IF($A203="","",F203+alpha*G203) -> 1316284.084 | J203: =IF($A203="","",beta*MAX(E204,INDIRECT("B" & ROW(A205) & ":B" & ROW(A205) + window_size_max-2))) -> 3092462.4 | K203: =IF($A204="","",IF($H$3="YES",VLOOKUP(OFFSET(A204,M203,0),Calendar!$A$2:$C$10000,3,FALSE),1)) -> 1 | L203: =IF(A204="","",IF(VLOOKUP(A203,Calendar!A:E,5,FALSE)=0,"",CEILING(K203*CEILING(MAX(OFFSET(J203,M203,0),OFFSET(I203,M203,0)),roundto),roundto)+add_margin)) -> 3150000 | M203: =IF(INDIRECT("Calendar!E"&MATCH($A203,Calendar!A:A,0)-1),0,IF(INDIRECT("Calendar!E"&MATCH($A203,Calendar!A:A,0)-2),1,2)) -> 0
A204: 2025-01-06 | B204: 1186026 | C204: 565970 | D204: 1186026 | E204: 565970 | F204: 570895.3496 | G204: 413700.7331 | H204: 226 | I204: 1315556.669 | J204: 3092462.4 | K204: =IF($A205="","",IF($H$3="YES",VLOOKUP(OFFSET(A205,M204,0),Calendar!$A$2:$C$10000,3,FALSE),1)) -> 1 | L204: =IF(A205="","",IF(VLOOKUP(A204,Calendar!A:E,5,FALSE)=0,"",CEILING(K204*CEILING(MAX(OFFSET(J204,M204,0),OFFSET(I204,M204,0)),roundto),roundto)+add_margin)) -> 3150000 | M204: =IF(INDIRECT("Calendar!E"&MATCH($A204,Calendar!A:A,0)-1),0,IF(INDIRECT("Calendar!E"&MATCH($A204,Calendar!A:A,0)-2),1,2)) -> 0
A205: 2025-01-03 | B205: 971335 | C205: 755741 | D205: 971335 | E205: 755741 | F205: 567138.9646 | G205: 417759.2225 | H205: 226 | I205: 1319105.565 | J205: 3092462.4 | K205: =IF($A206="","",IF($H$3="YES",VLOOKUP(OFFSET(A206,M205,0),Calendar!$A$2:$C$10000,3,FALSE),1)) -> 1 | L205: =IF(A206="","",IF(VLOOKUP(A205,Calendar!A:E,5,FALSE)=0,"",CEILING(K205*CEILING(MAX(OFFSET(J205,M205,0),OFFSET(I205,M205,0)),roundto),roundto)+add_margin)) -> 3150000 | M205: =IF(INDIRECT("Calendar!E"&MATCH($A205,Calendar!A:A,0)-1),0,IF(INDIRECT("Calendar!E"&MATCH($A205,Calendar!A:A,0)-2),1,2)) -> 0
A206: 2025-01-02 | B206: 543916 | C206: 221462 | D206: 543916 | E206: 221462 | F206: 568522.8186 | G206: 416791.3786 | H206: 226 | I206: 1318747.3 | J206: 3092462.4 | K206: =IF($A207="","",IF($H$3="YES",VLOOKUP(OFFSET(A207,M206,0),Calendar!$A$2:$C$10000,3,FALSE),1)) -> 1 | L206: =IF(A207="","",IF(VLOOKUP(A206,Calendar!A:E,5,FALSE)=0,"",CEILING(K206*CEILING(MAX(OFFSET(J206,M206,0),OFFSET(I206,M206,0)),roundto),roundto)+add_margin)) -> 3150000 | M206: =IF(INDIRECT("Calendar!E"&MATCH($A206,Calendar!A:A,0)-1),0,IF(INDIRECT("Calendar!E"&MATCH($A206,Calendar!A:A,0)-2),1,2)) -> 1
... 304 more rows

Sheet Parameter
A2: Window Size Statistic | B2: 250
A3: Window Size Maximum | B3: 30
A4: EWMA Factor | B4: 0.99
A5: alpha | B5: 1.8
A6: beta | B6: 1.6
A7: minIMSM in EUR | B7: 0
A8: roundto | B8: 10000
A9: Additional Margin in EUR | B9: 50000

Sheet Calendar
A1: ECC Calendar | B1: index | C1: Holiday Adjustment Scaling Factor | D1: Flag Weekday | E1: ECC Business Day | F1: Rows Until Next Business Day | G1: Days Until Business Day After Next BD
A2: 2021-01-01 | B2: =ROW(A2)-1 -> 1 | C2: =1+0.3*MAX(G2-4,0) -> 1 | E2: 0 | F2: =IF($E2=1,MATCH(1,INDIRECT("$E$"&ROW($A2)+1&":$E$2598"),0),0) -> 0 | G2: =IF($E2=1,INDIRECT("$A$"&ROW($A2)+MATCH(1,INDIRECT("$E$"&ROW($A2)+1+$F2&":$E$2598"),0)+$F2)-$A2,0) -> 0
A3: 2021-01-04 | B3: =ROW(A3)-1 -> 2 | C3: =1+0.3*MAX(G3-4,0) -> 1 | D3: =IF(ABS(WEEKDAY($A3)-4)<=1,1,0) -> 0 | E3: 1 | F3: =IF($E3=1,MATCH(1,INDIRECT("$E$"&ROW($A3)+1&":$E$2598"),0),0) -> 1 | G3: 2
A4: 2021-01-05 | B4: 3 | C4: 1 | D4: 1 | E4: 1 | F4: 1 | G4: 2
A5: 2021-01-06 | B5: 4 | C5: 1 | D5: 1 | E5: 1 | F5: 1 | G5: 2
A6: 2021-01-07 | B6: 5 | C6: 1 | D6: 1 | E6: 1 | F6: 1 | G6: 4
A7: 2021-01-08 | B7: 6 | C7: 1 | D7: 0 | E7: 1 | F7: 1 | G7: 4
A8: 2021-01-11 | B8: 7 | C8: 1 | D8: 0 | E8: 1 | F8: 1 | G8: 2
A9: 2021-01-12 | B9: 8 | C9: 1 | D9: 1 | E9: 1 | F9: 1 | G9: 2
A10: 2021-01-13 | B10: 9 | C10: 1 | D10: 1 | E10: 1 | F10: 1 | G10: 2
A11: 2021-01-14 | B11: 10 | C11: 1 | D11: 1 | E11: 1 | F11: 1 | G11: 4
A12: 2021-01-15 | B12: 11 | C12: 1 | D12: 0 | E12: 1 | F12: 1 | G12: 4
A13: 2021-01-18 | B13: 12 | C13: 1 | D13: 0 | E13: 1 | F13: 1 | G13: 2
A14: 2021-01-19 | B14: 13 | C14: 1 | D14: 1 | E14: 1 | F14: 1 | G14: 2
A15: 2021-01-20 | B15: 14 | C15: 1 | D15: 1 | E15: 1 | F15: 1 | G15: 2
A16: 2021-01-21 | B16: 15 | C16: 1 | D16: 1 | E16: 1 | F16: 1 | G16: 4
A17: 2021-01-22 | B17: 16 | C17: 1 | D17: 0 | E17: 1 | F17: 1 | G17: 4
A18: 2021-01-25 | B18: 17 | C18: 1 | D18: 0 | E18: 1 | F18: 1 | G18: 2
A19: 2021-01-26 | B19: 18 | C19: 1 | D19: 1 | E19: 1 | F19: 1 | G19: 2
A20: 2021-01-27 | B20: 19 | C20: 1 | D20: 1 | E20: 1 | F20: 1 | G20: 2
A21: 2021-01-28 | B21: 20 | C21: 1 | D21: 1 | E21: 1 | F21: 1 | G21: 4
A22: 2021-01-29 | B22: 21 | C22: 1 | D22: 0 | E22: 1 | F22: 1 | G22: 4
A23: 2021-02-01 | B23: 22 | C23: 1 | D23: 0 | E23: 1 | F23: 1 | G23: 2
A24: 2021-02-02 | B24: 23 | C24: 1 | D24: 1 | E24: 1 | F24: 1 | G24: 2
A25: 2021-02-03 | B25: 24 | C25: 1 | D25: 1 | E25: 1 | F25: 1 | G25: 2
A26: 2021-02-04 | B26: 25 | C26: 1 | D26: 1 | E26: 1 | F26: 1 | G26: 4
A27: 2021-02-05 | B27: 26 | C27: 1 | D27: 0 | E27: 1 | F27: 1 | G27: 4
A28: 2021-02-08 | B28: 27 | C28: 1 | D28: 0 | E28: 1 | F28: 1 | G28: 2
A29: 2021-02-09 | B29: 28 | C29: 1 | D29: 1 | E29: 1 | F29: 1 | G29: 2
A30: 2021-02-10 | B30: 29 | C30: 1 | D30: 1 | E30: 1 | F30: 1 | G30: 2
A31: 2021-02-11 | B31: 30 | C31: 1 | D31: 1 | E31: 1 | F31: 1 | G31: 4
A32: 2021-02-12 | B32: 31 | C32: 1 | D32: 0 | E32: 1 | F32: 1 | G32: 4
A33: 2021-02-15 | B33: 32 | C33: 1 | D33: 0 | E33: 1 | F33: 1 | G33: 2
A34: 2021-02-16 | B34: 33 | C34: 1 | D34: 1 | E34: 1 | F34: 1 | G34: 2
A35: 2021-02-17 | B35: 34 | C35: 1 | D35: 1 | E35: 1 | F35: 1 | G35: 2
A36: 2021-02-18 | B36: 35 | C36: 1 | D36: 1 | E36: 1 | F36: 1 | G36: 4
A37: 2021-02-19 | B37: 36 | C37: 1 | D37: 0 | E37: 1 | F37: 1 | G37: 4
A38: 2021-02-22 | B38: 37 | C38: 1 | D38: 0 | E38: 1 | F38: 1 | G38: 2
A39: 2021-02-23 | B39: 38 | C39: 1 | D39: 1 | E39: 1 | F39: 1 | G39: 2
A40: 2021-02-24 | B40: 39 | C40: 1 | D40: 1 | E40: 1 | F40: 1 | G40: 2
A41: 2021-02-25 | B41: 40 | C41: 1 | D41: 1 | E41: 1 | F41: 1 | G41: 4
A42: 2021-02-26 | B42: 41 | C42: 1 | D42: 0 | E42: 1 | F42: 1 | G42: 4
A43: 2021-03-01 | B43: 42 | C43: 1 | D43: 0 | E43: 1 | F43: 1 | G43: 2
A44: 2021-03-02 | B44: 43 | C44: 1 | D44: 1 | E44: 1 | F44: 1 | G44: 2
A45: 2021-03-03 | B45: 44 | C45: 1 | D45: 1 | E45: 1 | F45: 1 | G45: 2
A46: 2021-03-04 | B46: 45 | C46: 1 | D46: 1 | E46: 1 | F46: 1 | G46: 4
A47: 2021-03-05 | B47: 46 | C47: 1 | D47: 0 | E47: 1 | F47: 1 | G47: 4
A48: 2021-03-08 | B48: 47 | C48: 1 | D48: 0 | E48: 1 | F48: 1 | G48: 2
A49: 2021-03-09 | B49: 48 | C49: 1 | D49: 1 | E49: 1 | F49: 1 | G49: 2
A50: 2021-03-10 | B50: 49 | C50: 1 | D50: 1 | E50: 1 | F50: 1 | G50: 2
A51: 2021-03-11 | B51: 50 | C51: 1 | D51: 1 | E51: 1 | F51: 1 | G51: 4
A52: 2021-03-12 | B52: 51 | C52: 1 | D52: 0 | E52: 1 | F52: 1 | G52: 4
A53: 2021-03-15 | B53: 52 | C53: 1 | D53: 0 | E53: 1 | F53: 1 | G53: 2
A54: 2021-03-16 | B54: 53 | C54: 1 | D54: 1 | E54: 1 | F54: 1 | G54: 2
A55: 2021-03-17 | B55: 54 | C55: 1 | D55: 1 | E55: 1 | F55: 1 | G55: 2
A56: 2021-03-18 | B56: 55 | C56: 1 | D56: 1 | E56: 1 | F56: 1 | G56: 4
A57: 2021-03-19 | B57: 56 | C57: 1 | D57: 0 | E57: 1 | F57: 1 | G57: 4
A58: 2021-03-22 | B58: 57 | C58: 1 | D58: 0 | E58: 1 | F58: 1 | G58: 2
A59: 2021-03-23 | B59: 58 | C59: 1 | D59: 1 | E59: 1 | F59: 1 | G59: 2
A60: 2021-03-24 | B60: 59 | C60: 1 | D60: 1 | E60: 1 | F60: 1 | G60: 2
A61: 2021-03-25 | B61: 60 | C61: 1 | D61: 1 | E61: 1 | F61: 1 | G61: 4
A62: 2021-03-26 | B62: 61 | C62: 1 | D62: 0 | E62: 1 | F62: 1 | G62: 4
A63: 2021-03-29 | B63: 62 | C63: 1 | D63: 0 | E63: 1 | F63: 1 | G63: 2
A64: 2021-03-30 | B64: 63 | C64: 1 | D64: 1 | E64: 1 | F64: 1 | G64: 2
A65: 2021-03-31 | B65: 64 | C65: 1.6 | D65: 1 | E65: 1 | F65: 1 | G65: 6
A66: 2021-04-01 | B66: 65 | C66: 1.6 | D66: 1 | E66: 1 | F66: 3 | G66: =IF($E66=1,INDIRECT("$A$"&ROW($A66)+MATCH(1,INDIRECT("$E$"&ROW($A66)+1+$F66&":$E$2598"),0)+$F66)-$A66,0) -> 6
A67: 2021-04-02 | B67: =ROW(A67)-1 -> 66 | C67: =1+0.3*MAX(G67-4,0) -> 1 | D67: =IF(ABS(WEEKDAY($A67)-4)<=1,1,0) -> 0 | E67: 0 | F67: =IF($E67=1,MATCH(1,INDIRECT("$E$"&ROW($A67)+1&":$E$2598"),0),0) -> 0 | G67: 0
A68: 2021-04-05 | B68: 67 | C68: 1 | D68: 0 | E68: 0 | F68: 0 | G68: 0
A69: 2021-04-06 | B69: 68 | C69: 1 | D69: 1 | E69: 1 | F69: 1 | G69: 2
A70: 2021-04-07 | B70: 69 | C70: 1 | D70: 1 | E70: 1 | F70: 1 | G70: 2
A71: 2021-04-08 | B71: 70 | C71: 1 | D71: 1 | E71: 1 | F71: 1 | G71: 4
A72: 2021-04-09 | B72: 71 | C72: 1 | D72: 0 | E72: 1 | F72: 1 | G72: 4
A73: 2021-04-12 | B73: 72 | C73: 1 | D73: 0 | E73: 1 | F73: 1 | G73: 2
A74: 2021-04-13 | B74: 73 | C74: 1 | D74: 1 | E74: 1 | F74: 1 | G74: 2
A75: 2021-04-14 | B75: 74 | C75: 1 | D75: 1 | E75: 1 | F75: 1 | G75: 2
A76: 2021-04-15 | B76: 75 | C76: 1 | D76: 1 | E76: 1 | F76: 1 | G76: 4
A77: 2021-04-16 | B77: 76 | C77: 1 | D77: 0 | E77: 1 | F77: 1 | G77: 4
A78: 2021-04-19 | B78: 77 | C78: 1 | D78: 0 | E78: 1 | F78: 1 | G78: 2
A79: 2021-04-20 | B79: 78 | C79: 1 | D79: 1 | E79: 1 | F79: 1 | G79: 2
A80: 2021-04-21 | B80: 79 | C80: 1 | D80: 1 | E80: 1 | F80: 1 | G80: 2
A81: 2021-04-22 | B81: 80 | C81: 1 | D81: 1 | E81: 1 | F81: 1 | G81: 4
A82: 2021-04-23 | B82: 81 | C82: 1 | D82: 0 | E82: 1 | F82: 1 | G82: 4
A83: 2021-04-26 | B83: 82 | C83: 1 | D83: 0 | E83: 1 | F83: 1 | G83: 2
A84: 2021-04-27 | B84: 83 | C84: 1 | D84: 1 | E84: 1 | F84: 1 | G84: 2
A85: 2021-04-28 | B85: 84 | C85: 1 | D85: 1 | E85: 1 | F85: 1 | G85: 2
A86: 2021-04-29 | B86: 85 | C86: 1 | D86: 1 | E86: 1 | F86: 1 | G86: 4
A87: 2021-04-30 | B87: 86 | C87: 1 | D87: 0 | E87: 1 | F87: 1 | G87: 4
A88: 2021-05-03 | B88: 87 | C88: 1 | D88: 0 | E88: 1 | F88: 1 | G88: 2
A89: 2021-05-04 | B89: 88 | C89: 1 | D89: 1 | E89: 1 | F89: 1 | G89: 2
A90: 2021-05-05 | B90: 89 | C90: 1 | D90: 1 | E90: 1 | F90: 1 | G90: 2
A91: 2021-05-06 | B91: 90 | C91: 1 | D91: 1 | E91: 1 | F91: 1 | G91: 4
A92: 2021-05-07 | B92: 91 | C92: 1 | D92: 0 | E92: 1 | F92: 1 | G92: 4
A93: 2021-05-10 | B93: 92 | C93: 1 | D93: 0 | E93: 1 | F93: 1 | G93: 2
A94: 2021-05-11 | B94: 93 | C94: 1 | D94: 1 | E94: 1 | F94: 1 | G94: 2
A95: 2021-05-12 | B95: 94 | C95: 1 | D95: 1 | E95: 1 | F95: 1 | G95: 2
A96: 2021-05-13 | B96: 95 | C96: 1 | D96: 1 | E96: 1 | F96: 1 | G96: 4
A97: 2021-05-14 | B97: 96 | C97: 1 | D97: 0 | E97: 1 | F97: 1 | G97: 4
A98: 2021-05-17 | B98: 97 | C98: 1 | D98: 0 | E98: 1 | F98: 1 | G98: 2
A99: 2021-05-18 | B99: 98 | C99: 1 | D99: 1 | E99: 1 | F99: 1 | G99: 2
A100: 2021-05-19 | B100: 99 | C100: 1 | D100: 1 | E100: 1 | F100: 1 | G100: 2
A101: 2021-05-20 | B101: 100 | C101: 1 | D101: 1 | E101: 1 | F101: 1 | G101: 4
A102: 2021-05-21 | B102: 101 | C102: 1 | D102: 0 | E102: 1 | F102: 1 | G102: 4
A103: 2021-05-24 | B103: 102 | C103: 1 | D103: 0 | E103: 1 | F103: 1 | G103: 2
A104: 2021-05-25 | B104: 103 | C104: 1 | D104: 1 | E104: 1 | F104: 1 | G104: 2
A105: 2021-05-26 | B105: 104 | C105: 1 | D105: 1 | E105: 1 | F105: 1 | G105: 2
A106: 2021-05-27 | B106: 105 | C106: 1 | D106: 1 | E106: 1 | F106: 1 | G106: 4
A107: 2021-05-28 | B107: 106 | C107: 1 | D107: 0 | E107: 1 | F107: 1 | G107: 4
A108: 2021-05-31 | B108: 107 | C108: 1 | D108: 0 | E108: 1 | F108: 1 | G108: 2
A109: 2021-06-01 | B109: 108 | C109: 1 | D109: 1 | E109: 1 | F109: 1 | G109: 2
A110: 2021-06-02 | B110: 109 | C110: 1 | D110: 1 | E110: 1 | F110: 1 | G110: 2
A111: 2021-06-03 | B111: 110 | C111: 1 | D111: 1 | E111: 1 | F111: 1 | G111: 4
A112: 2021-06-04 | B112: 111 | C112: 1 | D112: 0 | E112: 1 | F112: 1 | G112: 4
A113: 2021-06-07 | B113: 112 | C113: 1 | D113: 0 | E113: 1 | F113: 1 | G113: 2
A114: 2021-06-08 | B114: 113 | C114: 1 | D114: 1 | E114: 1 | F114: 1 | G114: 2
A115: 2021-06-09 | B115: 114 | C115: 1 | D115: 1 | E115: 1 | F115: 1 | G115: 2
A116: 2021-06-10 | B116: 115 | C116: 1 | D116: 1 | E116: 1 | F116: 1 | G116: 4
A117: 2021-06-11 | B117: 116 | C117: 1 | D117: 0 | E117: 1 | F117: 1 | G117: 4
A118: 2021-06-14 | B118: 117 | C118: 1 | D118: 0 | E118: 1 | F118: 1 | G118: 2
A119: 2021-06-15 | B119: 118 | C119: 1 | D119: 1 | E119: 1 | F119: 1 | G119: 2
A120: 2021-06-16 | B120: 119 | C120: 1 | D120: 1 | E120: 1 | F120: 1 | G120: 2
A121: 2021-06-17 | B121: 120 | C121: 1 | D121: 1 | E121: 1 | F121: 1 | G121: 4
A122: 2021-06-18 | B122: 121 | C122: 1 | D122: 0 | E122: 1 | F122: 1 | G122: 4
A123: 2021-06-21 | B123: 122 | C123: 1 | D123: 0 | E123: 1 | F123: 1 | G123: 2
A124: 2021-06-22 | B124: 123 | C124: 1 | D124: 1 | E124: 1 | F124: 1 | G124: 2
A125: 2021-06-23 | B125: 124 | C125: 1 | D125: 1 | E125: 1 | F125: 1 | G125: 2
A126: 2021-06-24 | B126: 125 | C126: 1 | D126: 1 | E126: 1 | F126: 1 | G126: 4
A127: 2021-06-25 | B127: 126 | C127: 1 | D127: 0 | E127: 1 | F127: 1 | G127: 4
A128: 2021-06-28 | B128: 127 | C128: 1 | D128: 0 | E128: 1 | F128: 1 | G128: 2
A129: 2021-06-29 | B129: 128 | C129: 1 | D129: 1 | E129: 1 | F129: 1 | G129: 2
A130: 2021-06-30 | B130: 129 | C130: 1 | D130: 1 | E130: 1 | F130: 1 | G130: =IF($E130=1,INDIRECT("$A$"&ROW($A130)+MATCH(1,INDIRECT("$E$"&ROW($A130)+1+$F130&":$E$2598"),0)+$F130)-$A130,0) -> 2
A131: 2021-07-01 | B131: =ROW(A131)-1 -> 130 | C131: =1+0.3*MAX(G131-4,0) -> 1 | D131: =IF(ABS(WEEKDAY($A131)-4)<=1,1,0) -> 1 | E131: 1 | F131: =IF($E131=1,MATCH(1,INDIRECT("$E$"&ROW($A131)+1&":$E$2598"),0),0) -> 1 | G131: 4
A132: 2021-07-02 | B132: 131 | C132: 1 | D132: 0 | E132: 1 | F132: 1 | G132: 4
A133: 2021-07-05 | B133: 132 | C133: 1 | D133: 0 | E133: 1 | F133: 1 | G133: 2
A134: 2021-07-06 | B134: 133 | C134: 1 | D134: 1 | E134: 1 | F134: 1 | G134: 2
A135: 2021-07-07 | B135: 134 | C135: 1 | D135: 1 | E135: 1 | F135: 1 | G135: 2
A136: 2021-07-08 | B136: 135 | C136: 1 | D136: 1 | E136: 1 | F136: 1 | G136: 4
A137: 2021-07-09 | B137: 136 | C137: 1 | D137: 0 | E137: 1 | F137: 1 | G137: 4
A138: 2021-07-12 | B138: 137 | C138: 1 | D138: 0 | E138: 1 | F138: 1 | G138: 2
A139: 2021-07-13 | B139: 138 | C139: 1 | D139: 1 | E139: 1 | F139: 1 | G139: 2
A140: 2021-07-14 | B140: 139 | C140: 1 | D140: 1 | E140: 1 | F140: 1 | G140: 2
A141: 2021-07-15 | B141: 140 | C141: 1 | D141: 1 | E141: 1 | F141: 1 | G141: 4
A142: 2021-07-16 | B142: 141 | C142: 1 | D142: 0 | E142: 1 | F142: 1 | G142: 4
A143: 2021-07-19 | B143: 142 | C143: 1 | D143: 0 | E143: 1 | F143: 1 | G143: 2
A144: 2021-07-20 | B144: 143 | C144: 1 | D144: 1 | E144: 1 | F144: 1 | G144: 2
A145: 2021-07-21 | B145: 144 | C145: 1 | D145: 1 | E145: 1 | F145: 1 | G145: 2
A146: 2021-07-22 | B146: 145 | C146: 1 | D146: 1 | E146: 1 | F146: 1 | G146: 4
A147: 2021-07-23 | B147: 146 | C147: 1 | D147: 0 | E147: 1 | F147: 1 | G147: 4
A148: 2021-07-26 | B148: 147 | C148: 1 | D148: 0 | E148: 1 | F148: 1 | G148: 2
A149: 2021-07-27 | B149: 148 | C149: 1 | D149: 1 | E149: 1 | F149: 1 | G149: 2
A150: 2021-07-28 | B150: 149 | C150: 1 | D150: 1 | E150: 1 | F150: 1 | G150: 2
A151: 2021-07-29 | B151: 150 | C151: 1 | D151: 1 | E151: 1 | F151: 1 | G151: 4
A152: 2021-07-30 | B152: 151 | C152: 1 | D152: 0 | E152: 1 | F152: 1 | G152: 4
A153: 2021-08-02 | B153: 152 | C153: 1 | D153: 0 | E153: 1 | F153: 1 | G153: 2
A154: 2021-08-03 | B154: 153 | C154: 1 | D154: 1 | E154: 1 | F154: 1 | G154: 2
A155: 2021-08-04 | B155: 154 | C155: 1 | D155: 1 | E155: 1 | F155: 1 | G155: 2
A156: 2021-08-05 | B156: 155 | C156: 1 | D156: 1 | E156: 1 | F156: 1 | G156: 4
A157: 2021-08-06 | B157: 156 | C157: 1 | D157: 0 | E157: 1 | F157: 1 | G157: 4
A158: 2021-08-09 | B158: 157 | C158: 1 | D158: 0 | E158: 1 | F158: 1 | G158: 2
A159: 2021-08-10 | B159: 158 | C159: 1 | D159: 1 | E159: 1 | F159: 1 | G159: 2
A160: 2021-08-11 | B160: 159 | C160: 1 | D160: 1 | E160: 1 | F160: 1 | G160: 2
A161: 2021-08-12 | B161: 160 | C161: 1 | D161: 1 | E161: 1 | F161: 1 | G161: 4
A162: 2021-08-13 | B162: 161 | C162: 1 | D162: 0 | E162: 1 | F162: 1 | G162: 4
A163: 2021-08-16 | B163: 162 | C163: 1 | D163: 0 | E163: 1 | F163: 1 | G163: 2
A164: 2021-08-17 | B164: 163 | C164: 1 | D164: 1 | E164: 1 | F164: 1 | G164: 2
A165: 2021-08-18 | B165: 164 | C165: 1 | D165: 1 | E165: 1 | F165: 1 | G165: 2
A166: 2021-08-19 | B166: 165 | C166: 1 | D166: 1 | E166: 1 | F166: 1 | G166: 4
A167: 2021-08-20 | B167: 166 | C167: 1 | D167: 0 | E167: 1 | F167: 1 | G167: 4
A168: 2021-08-23 | B168: 167 | C168: 1 | D168: 0 | E168: 1 | F168: 1 | G168: 2
A169: 2021-08-24 | B169: 168 | C169: 1 | D169: 1 | E169: 1 | F169: 1 | G169: 2
A170: 2021-08-25 | B170: 169 | C170: 1 | D170: 1 | E170: 1 | F170: 1 | G170: 2
A171: 2021-08-26 | B171: 170 | C171: 1 | D171: 1 | E171: 1 | F171: 1 | G171: 4
A172: 2021-08-27 | B172: 171 | C172: 1 | D172: 0 | E172: 1 | F172: 1 | G172: 4
A173: 2021-08-30 | B173: 172 | C173: 1 | D173: 0 | E173: 1 | F173: 1 | G173: 2
A174: 2021-08-31 | B174: 173 | C174: 1 | D174: 1 | E174: 1 | F174: 1 | G174: 2
A175: 2021-09-01 | B175: 174 | C175: 1 | D175: 1 | E175: 1 | F175: 1 | G175: 2
A176: 2021-09-02 | B176: 175 | C176: 1 | D176: 1 | E176: 1 | F176: 1 | G176: 4
A177: 2021-09-03 | B177: 176 | C177: 1 | D177: 0 | E177: 1 | F177: 1 | G177: 4
A178: 2021-09-06 | B178: 177 | C178: 1 | D178: 0 | E178: 1 | F178: 1 | G178: 2
A179: 2021-09-07 | B179: 178 | C179: 1 | D179: 1 | E179: 1 | F179: 1 | G179: 2
A180: 2021-09-08 | B180: 179 | C180: 1 | D180: 1 | E180: 1 | F180: 1 | G180: 2
A181: 2021-09-09 | B181: 180 | C181: 1 | D181: 1 | E181: 1 | F181: 1 | G181: 4
A182: 2021-09-10 | B182: 181 | C182: 1 | D182: 0 | E182: 1 | F182: 1 | G182: 4
A183: 2021-09-13 | B183: 182 | C183: 1 | D183: 0 | E183: 1 | F183: 1 | G183: 2
A184: 2021-09-14 | B184: 183 | C184: 1 | D184: 1 | E184: 1 | F184: 1 | G184: 2
A185: 2021-09-15 | B185: 184 | C185: 1 | D185: 1 | E185: 1 | F185: 1 | G185: 2
A186: 2021-09-16 | B186: 185 | C186: 1 | D186: 1 | E186: 1 | F186: 1 | G186: 4
A187: 2021-09-17 | B187: 186 | C187: 1 | D187: 0 | E187: 1 | F187: 1 | G187: 4
A188: 2021-09-20 | B188: 187 | C188: 1 | D188: 0 | E188: 1 | F188: 1 | G188: 2
A189: 2021-09-21 | B189: 188 | C189: 1 | D189: 1 | E189: 1 | F189: 1 | G189: 2
A190: 2021-09-22 | B190: 189 | C190: 1 | D190: 1 | E190: 1 | F190: 1 | G190: 2
A191: 2021-09-23 | B191: 190 | C191: 1 | D191: 1 | E191: 1 | F191: 1 | G191: 4
A192: 2021-09-24 | B192: 191 | C192: 1 | D192: 0 | E192: 1 | F192: 1 | G192: 4
A193: 2021-09-27 | B193: 192 | C193: 1 | D193: 0 | E193: 1 | F193: 1 | G193: 2
A194: 2021-09-28 | B194: 193 | C194: 1 | D194: 1 | E194: 1 | F194: 1 | G194: =IF($E194=1,INDIRECT("$A$"&ROW($A194)+MATCH(1,INDIRECT("$E$"&ROW($A194)+1+$F194&":$E$2598"),0)+$F194)-$A194,0) -> 2
A195: 2021-09-29 | B195: =ROW(A195)-1 -> 194 | C195: =1+0.3*MAX(G195-4,0) -> 1 | D195: =IF(ABS(WEEKDAY($A195)-4)<=1,1,0) -> 1 | E195: 1 | F195: =IF($E195=1,MATCH(1,INDIRECT("$E$"&ROW($A195)+1&":$E$2598"),0),0) -> 1 | G195: 2
A196: 2021-09-30 | B196: 195 | C196: 1 | D196: 1 | E196: 1 | F196: 1 | G196: 4
A197: 2021-10-01 | B197: 196 | C197: 1 | D197: 0 | E197: 1 | F197: 1 | G197: 4
A198: 2021-10-04 | B198: 197 | C198: 1 | D198: 0 | E198: 1 | F198: 1 | G198: 2
A199: 2021-10-05 | B199: 198 | C199: 1 | D199: 1 | E199: 1 | F199: 1 | G199: 2
A200: 2021-10-06 | B200: 199 | C200: 1 | D200: 1 | E200: 1 | F200: 1 | G200: 2
... 1627 more rows

Sheet Disclaimer
D5: Disclaimer
D6: last update: 2025-03-06
D8: This tool is only a service for recalculating the Initial Margin Spot Market. Although the tool was constructed with greatest diligence, errors, rounding errors and therefore deviations from the productive process cannot be excluded. In cases of doubt, the calculated value of the IMSM programm shall prevail. The disclaimer at http://www.ecc.de/ecc-en/extras/disclaimer shall apply to the use of this tool as well.
